﻿organisation_name,service_responsible,supplier_code,supplier_name,payment_date,transaction_ref,net_amount_by_line_item,irrecoverable_vat,purpose_of_spend,procurement_category_name,transaction_type,payment_type,card_transaction,invoice_date,financial_year,financial_period,supplier_invoice_reference,cost_centre_code,cost_centre_desc,account_code,account_desc,SeRCOP_subdivision_code,SeRCOP_Subdivision_description,SeRCOP_division_codee,SeRCOP_division_description,SeRCOP_service_code,SeRCOP_service_description,SeRCOP_major_service_code,SeRCOP_major_service_description
GUILDFORD BOROUGH COUNCIL,Development Control,587740,12 CP Barristers,17/05/2022,30063959,357.5,0,Consultancy,,Invoice,BACS,No,31/01/2022 00:00,2022,2,INV/SV417,D5100,Development Control - Fee Earn,D6001,Consultancy,CPC00,Development Control Advice,CPC,Development Control,CP,Planning and Development Services,C,"Cultural, Environmental & Planning Services"
GUILDFORD BOROUGH COUNCIL,Licensing,587740,12 CP Barristers,19/04/2022,30046521,476.67,0,Consultancy,,Invoice,BACS,No,31/01/2022 00:00,2022,1,INV/SV418,H2100,Licensing Services,D6001,Consultancy,CEE15,Alcohol and entertainment licensing,CEE,Environmental Health (Regulatory Services),CE,Environmental & Regulatory Services,C,"Cultural, Environmental & Planning Services"
GUILDFORD BOROUGH COUNCIL,Development Control,587740,12 CP Barristers,10/05/2022,30046856,981.25,0,Services,,Invoice,BACS,No,09/04/2022 00:00,2022,2,INV/SV456,D5200,Development Control Non Fee,D6004,Services,CPC00,Development Control Advice,CPC,Development Control,CP,Planning and Development Services,C,"Cultural, Environmental & Planning Services"
GUILDFORD BOROUGH COUNCIL,Renovations,1000338,3MS Gold Services Ltd,07/04/2022,30046154,6056.46,0,Contractor Payments,,Invoice,BACS,No,24/12/2021 00:00,2022,1,2681,N40295,Disabled adaptations,1233,Contractor Payments,,,,,,,,
GUILDFORD BOROUGH COUNCIL,Renovations,1000338,3MS Gold Services Ltd,14/04/2022,30046617,2478.82,0,Contractor Payments,,Invoice,BACS,No,24/03/2022 00:00,2022,1,2738,N40295,Disabled adaptations,1233,Contractor Payments,,,,,,,,
GUILDFORD BOROUGH COUNCIL,Renovations,1000338,3MS Gold Services Ltd,14/04/2022,30046617,3718.42,0,Contractor Payments,,Invoice,BACS,No,24/03/2022 00:00,2022,1,2738,N40295,Disabled adaptations,1233,Contractor Payments,,,,,,,,
GUILDFORD BOROUGH COUNCIL,Renovations,1000338,3MS Gold Services Ltd,16/06/2022,30070551,4097.8,0,Contractor Payments,,Invoice,BACS,No,10/06/2022 00:00,2022,3,2769,N40295,Disabled adaptations,1233,Contractor Payments,,,,,,,,
GUILDFORD BOROUGH COUNCIL,Renovations,1000338,3MS Gold Services Ltd,16/06/2022,30070551,2731.86,0,Contractor Payments,,Invoice,BACS,No,10/06/2022 00:00,2022,3,2769,N40295,Disabled adaptations,1233,Contractor Payments,,,,,,,,
GUILDFORD BOROUGH COUNCIL,Renovations,1000338,3MS Gold Services Ltd,16/06/2022,30070552,3491.44,0,Contractor Payments,,Invoice,BACS,No,13/06/2022 00:00,2022,3,2773,N40295,Disabled adaptations,1233,Contractor Payments,,,,,,,,
GUILDFORD BOROUGH COUNCIL,Renovations,1000338,3MS Gold Services Ltd,16/06/2022,30070552,2327.62,0,Contractor Payments,,Invoice,BACS,No,13/06/2022 00:00,2022,3,2773,N40295,Disabled adaptations,1233,Contractor Payments,,,,,,,,
GUILDFORD BOROUGH COUNCIL,Renovations,1000338,3MS Gold Services Ltd,16/06/2022,30070553,3813.1,0,Contractor Payments,,Invoice,BACS,No,13/06/2022 00:00,2022,3,2774,N40295,Disabled adaptations,1233,Contractor Payments,,,,,,,,
GUILDFORD BOROUGH COUNCIL,Renovations,1000338,3MS Gold Services Ltd,16/06/2022,30070553,2542.06,0,Contractor Payments,,Invoice,BACS,No,13/06/2022 00:00,2022,3,2774,N40295,Disabled adaptations,1233,Contractor Payments,,,,,,,,
GUILDFORD BOROUGH COUNCIL,Renovations,1000338,3MS Gold Services Ltd,16/06/2022,30070554,4070.07,0,Contractor Payments,,Invoice,BACS,No,13/06/2022 00:00,2022,3,2775,N40295,Disabled adaptations,1233,Contractor Payments,,,,,,,,
GUILDFORD BOROUGH COUNCIL,Renovations,1000338,3MS Gold Services Ltd,16/06/2022,30070554,2713.38,0,Contractor Payments,,Invoice,BACS,No,13/06/2022 00:00,2022,3,2775,N40295,Disabled adaptations,1233,Contractor Payments,,,,,,,,
GUILDFORD BOROUGH COUNCIL,Renovations,1000338,3MS Gold Services Ltd,16/06/2022,30070555,3976.62,0,Contractor Payments,,Invoice,BACS,No,13/06/2022 00:00,2022,3,2783,N40295,Disabled adaptations,1233,Contractor Payments,,,,,,,,
GUILDFORD BOROUGH COUNCIL,Renovations,1000338,3MS Gold Services Ltd,16/06/2022,30070555,2651.08,0,Contractor Payments,,Invoice,BACS,No,13/06/2022 00:00,2022,3,2783,N40295,Disabled adaptations,1233,Contractor Payments,,,,,,,,
GUILDFORD BOROUGH COUNCIL,Renovations,1000338,3MS Gold Services Ltd,16/06/2022,30070556,1641.64,0,Contractor Payments,,Invoice,BACS,No,13/06/2022 00:00,2022,3,2785,N40295,Disabled adaptations,1233,Contractor Payments,,,,,,,,
GUILDFORD BOROUGH COUNCIL,Renovations,1000338,3MS Gold Services Ltd,16/06/2022,30070556,1094.56,0,Contractor Payments,,Invoice,BACS,No,13/06/2022 00:00,2022,3,2785,N40295,Disabled adaptations,1233,Contractor Payments,,,,,,,,
GUILDFORD BOROUGH COUNCIL,Major Projects,1000077,3R Finance Ltd,23/06/2022,30067444,1237.5,0,Agency,,Invoice,BACS,No,30/05/2022 00:00,2022,3,INV-65268,F5530,Major Projects,A5191,Agency,DBX70,Other Management Costs,DBX,Support Service and Management Costs,DB,Children's Social Care,E,Childrens and Education Services
GUILDFORD BOROUGH COUNCIL,Major Projects,1000077,3R Finance Ltd,26/05/2022,30065850,1237.5,0,Agency,,Invoice,BACS,No,16/05/2022 00:00,2022,2,INV-64329,F5530,Major Projects,A5191,Agency,DBX70,Other Management Costs,DBX,Support Service and Management Costs,DB,Children's Social Care,E,Childrens and Education Services
GUILDFORD BOROUGH COUNCIL,Major Projects,1000077,3R Finance Ltd,26/05/2022,30052561,2227.5,0,Agency,,Invoice,BACS,No,03/05/2022 00:00,2022,2,INV-63519,F5530,Major Projects,A5191,Agency,DBX70,Other Management Costs,DBX,Support Service and Management Costs,DB,Children's Social Care,E,Childrens and Education Services
GUILDFORD BOROUGH COUNCIL,Major Projects,1000077,3R Finance Ltd,26/05/2022,30063950,990,0,Agency,,Invoice,BACS,No,09/05/2022 00:00,2022,2,INV-63827,F5530,Major Projects,A5191,Agency,DBX70,Other Management Costs,DBX,Support Service and Management Costs,DB,Children's Social Care,E,Childrens and Education Services
GUILDFORD BOROUGH COUNCIL,Major Projects,1000077,3R Finance Ltd,26/05/2022,30066602,1237.5,0,Agency,,Invoice,BACS,No,23/05/2022 00:00,2022,2,INV-64803,F5530,Major Projects,A5191,Agency,DBX70,Other Management Costs,DBX,Support Service and Management Costs,DB,Children's Social Care,E,Childrens and Education Services
GUILDFORD BOROUGH COUNCIL,Major Projects,1000077,3R Finance Ltd,05/05/2022,30046469,1237.5,0,Agency,,Invoice,BACS,No,11/04/2022 00:00,2022,1,INV-62114,F5530,Major Projects,A5191,Agency,DBX70,Other Management Costs,DBX,Support Service and Management Costs,DB,Children's Social Care,E,Childrens and Education Services
GUILDFORD BOROUGH COUNCIL,Major Projects,1000077,3R Finance Ltd,17/05/2022,30046755,990,0,Agency,,Invoice,BACS,No,19/04/2022 00:00,2022,1,INV-62520,F5530,Major Projects,A5191,Agency,DBX70,Other Management Costs,DBX,Support Service and Management Costs,DB,Children's Social Care,E,Childrens and Education Services
GUILDFORD BOROUGH COUNCIL,Major Projects,1000077,3R Finance Ltd,30/06/2022,30068550,742.5,0,Agency,,Invoice,BACS,No,06/06/2022 00:00,2022,3,INV-65616,F5530,Major Projects,A5191,Agency,DBX70,Other Management Costs,DBX,Support Service and Management Costs,DB,Children's Social Care,E,Childrens and Education Services
GUILDFORD BOROUGH COUNCIL,Countryside and Parks Services,320160,A & P Services (Surrey) Ltd,26/04/2022,30045659,1250.69,0,Equipment,Agricultural Engineers,Invoice,BACS,No,31/03/2022 00:00,2022,1,7298,A1200,Sports Grounds,D2001,Equipment,CCE00,Community Parks & Open Spaces,CCE,Open Spaces,CC,Cultural & Related Services,C,"Cultural, Environmental & Planning Services"
GUILDFORD BOROUGH COUNCIL,Vehicle Maintenance,320160,A & P Services (Surrey) Ltd,23/06/2022,30067441,670.28,0,Repair And Maintenance Of Vehicles,Agricultural Engineers,Invoice,BACS,No,30/05/2022 00:00,2022,3,7400,K5551,Fleet Workshops,C1002,Repair And Maintenance Of Vehicles,W3A48,Current Service Costs - Fleet Management,W3A,Current Service Costs adjustment,W3,Current Service Costs,W,Other Operating Income and Expenditure
GUILDFORD BOROUGH COUNCIL,Countryside and Parks Services,320160,A & P Services (Surrey) Ltd,28/04/2022,30046322,504.71,0,Repair And Maintenance Of Vehicles,Agricultural Engineers,Invoice,BACS,No,07/04/2022 00:00,2022,1,7320,A1100,Horticulture,C1002,Repair And Maintenance Of Vehicles,CCE00,Community Parks & Open Spaces,CCE,Open Spaces,CC,Cultural & Related Services,C,"Cultural, Environmental & Planning Services"
GUILDFORD BOROUGH COUNCIL,Countryside and Parks Services,320160,A & P Services (Surrey) Ltd,26/05/2022,30066142,513,0,Repair And Maintenance Of Vehicles,Agricultural Engineers,Invoice,BACS,No,18/05/2022 00:00,2022,2,7389,A1100,Horticulture,C1002,Repair And Maintenance Of Vehicles,CCE00,Community Parks & Open Spaces,CCE,Open Spaces,CC,Cultural & Related Services,C,"Cultural, Environmental & Planning Services"
GUILDFORD BOROUGH COUNCIL,Vehicle Maintenance,320160,A & P Services (Surrey) Ltd,26/05/2022,30065954,826.92,0,Repair And Maintenance Of Vehicles,Agricultural Engineers,Invoice,BACS,No,16/05/2022 00:00,2022,2,7385,K5551,Fleet Workshops,C1002,Repair And Maintenance Of Vehicles,W3A48,Current Service Costs - Fleet Management,W3A,Current Service Costs adjustment,W3,Current Service Costs,W,Other Operating Income and Expenditure
GUILDFORD BOROUGH COUNCIL,Vehicle Maintenance,320160,A & P Services (Surrey) Ltd,26/05/2022,30052728,1352.82,0,Repair And Maintenance Of Vehicles,Agricultural Engineers,Invoice,BACS,No,04/05/2022 00:00,2022,2,7368,K5551,Fleet Workshops,C1002,Repair And Maintenance Of Vehicles,W3A48,Current Service Costs - Fleet Management,W3A,Current Service Costs adjustment,W3,Current Service Costs,W,Other Operating Income and Expenditure
GUILDFORD BOROUGH COUNCIL,Vehicle Maintenance,320160,A & P Services (Surrey) Ltd,05/05/2022,30046471,1306.78,0,Repair And Maintenance Of Vehicles,Agricultural Engineers,Invoice,BACS,No,11/04/2022 00:00,2022,1,7334,K5551,Fleet Workshops,C1002,Repair And Maintenance Of Vehicles,W3A48,Current Service Costs - Fleet Management,W3A,Current Service Costs adjustment,W3,Current Service Costs,W,Other Operating Income and Expenditure
GUILDFORD BOROUGH COUNCIL,Guildford House,1000706,A of B Cards,26/05/2022,30067009,506.88,0,Stock For Re-Sale,,Invoice,BACS,No,20/05/2022 00:00,2022,2,390,A4511,Guildford House Administration,D2004,Stock For Re-Sale,CCA30,Museums & Galleries,CCA,Culture & Heritage,CC,Cultural & Related Services,C,"Cultural, Environmental & Planning Services"
GUILDFORD BOROUGH COUNCIL,Responsive & Planned Maintenance,713700,A P Benson Roofing & Building Limited,28/06/2022,30072696,6258,0,Asset Maintenance,Roofers,Invoice,BACS,No,23/06/2022 00:00,2022,3,4914,M5113,Repairs-Responsive (BHS),B1001,Asset Maintenance,XXX99,*** UNASSIGNED ***,WCC,CEC Recharges,WC,CEC Recharges,A,Central Services
GUILDFORD BOROUGH COUNCIL,Responsive & Planned Maintenance,713700,A P Benson Roofing & Building Limited,21/06/2022,30071404,4980,0,Asset Maintenance,Roofers,Invoice,BACS,No,30/03/2022 00:00,2022,3,4857,M5113,Repairs-Responsive (BHS),B1001,Asset Maintenance,XXX99,*** UNASSIGNED ***,WCC,CEC Recharges,WC,CEC Recharges,A,Central Services
GUILDFORD BOROUGH COUNCIL,Building Maintenance,969700,A Star Maintenance Contractors Ltd (CIS),07/04/2022,30045911,9000,0,Services,Property Maintenance Contractors,Invoice,BACS,No,29/03/2022 00:00,2022,1,14233,K1515,Building Maintenance,D6004,Services,DBX45,Property Services,DBX,Support Service and Management Costs,DB,Children's Social Care,E,Childrens and Education Services
GUILDFORD BOROUGH COUNCIL,Building Maintenance,969700,A Star Maintenance Contractors Ltd (CIS),07/04/2022,30045911,7615.45,0,Materials,Property Maintenance Contractors,Invoice,BACS,No,29/03/2022 00:00,2022,1,14233,K1515,Building Maintenance,D2003,Materials,DBX45,Property Services,DBX,Support Service and Management Costs,DB,Children's Social Care,E,Childrens and Education Services
GUILDFORD BOROUGH COUNCIL,Building Maintenance,969700,A Star Maintenance Contractors Ltd (CIS),12/04/2022,30046317,3182.5,0,Services,Property Maintenance Contractors,Invoice,BACS,No,31/03/2022 00:00,2022,1,14238,K1515,Building Maintenance,D6004,Services,DBX45,Property Services,DBX,Support Service and Management Costs,DB,Children's Social Care,E,Childrens and Education Services
GUILDFORD BOROUGH COUNCIL,Building Maintenance,969700,A Star Maintenance Contractors Ltd (CIS),12/04/2022,30046317,3785.06,0,Materials,Property Maintenance Contractors,Invoice,BACS,No,31/03/2022 00:00,2022,1,14238,K1515,Building Maintenance,D2003,Materials,DBX45,Property Services,DBX,Support Service and Management Costs,DB,Children's Social Care,E,Childrens and Education Services
GUILDFORD BOROUGH COUNCIL,Building Maintenance,969700,A Star Maintenance Contractors Ltd (CIS),12/04/2022,30046328,347.84,0,Materials,Property Maintenance Contractors,Invoice,BACS,No,31/03/2022 00:00,2022,1,14237,K1515,Building Maintenance,D2003,Materials,DBX45,Property Services,DBX,Support Service and Management Costs,DB,Children's Social Care,E,Childrens and Education Services
GUILDFORD BOROUGH COUNCIL,Building Maintenance,969700,A Star Maintenance Contractors Ltd (CIS),12/05/2022,30063977,9000,0,Services,Property Maintenance Contractors,Invoice,BACS,No,26/04/2022 00:00,2022,2,14262,K1515,Building Maintenance,D6004,Services,DBX45,Property Services,DBX,Support Service and Management Costs,DB,Children's Social Care,E,Childrens and Education Services
GUILDFORD BOROUGH COUNCIL,Building Maintenance,969700,A Star Maintenance Contractors Ltd (CIS),12/05/2022,30063977,4464.74,0,Materials,Property Maintenance Contractors,Invoice,BACS,No,26/04/2022 00:00,2022,2,14262,K1515,Building Maintenance,D2003,Materials,DBX45,Property Services,DBX,Support Service and Management Costs,DB,Children's Social Care,E,Childrens and Education Services
GUILDFORD BOROUGH COUNCIL,Building Maintenance,969700,A Star Maintenance Contractors Ltd (CIS),12/05/2022,30063985,3500,0,Services,Property Maintenance Contractors,Invoice,BACS,No,26/04/2022 00:00,2022,2,14263,K1515,Building Maintenance,D6004,Services,DBX45,Property Services,DBX,Support Service and Management Costs,DB,Children's Social Care,E,Childrens and Education Services
GUILDFORD BOROUGH COUNCIL,Building Maintenance,969700,A Star Maintenance Contractors Ltd (CIS),12/05/2022,30063985,636.86,0,Materials,Property Maintenance Contractors,Invoice,BACS,No,26/04/2022 00:00,2022,2,14263,K1515,Building Maintenance,D2003,Materials,DBX45,Property Services,DBX,Support Service and Management Costs,DB,Children's Social Care,E,Childrens and Education Services
GUILDFORD BOROUGH COUNCIL,Building Maintenance,969700,A Star Maintenance Contractors Ltd (CIS),24/05/2022,30066374,590.4,0,Materials,Property Maintenance Contractors,Invoice,BACS,No,10/05/2022 00:00,2022,2,14278,K1515,Building Maintenance,D2003,Materials,DBX45,Property Services,DBX,Support Service and Management Costs,DB,Children's Social Care,E,Childrens and Education Services
GUILDFORD BOROUGH COUNCIL,Building Maintenance,969700,A Star Maintenance Contractors Ltd (CIS),24/05/2022,30066374,500,0,Services,Property Maintenance Contractors,Invoice,BACS,No,10/05/2022 00:00,2022,2,14278,K1515,Building Maintenance,D6004,Services,DBX45,Property Services,DBX,Support Service and Management Costs,DB,Children's Social Care,E,Childrens and Education Services
GUILDFORD BOROUGH COUNCIL,Building Maintenance,969700,A Star Maintenance Contractors Ltd (CIS),24/05/2022,30066366,7000,0,Services,Property Maintenance Contractors,Invoice,BACS,No,10/05/2022 00:00,2022,2,14277,K1515,Building Maintenance,D6004,Services,DBX45,Property Services,DBX,Support Service and Management Costs,DB,Children's Social Care,E,Childrens and Education Services
GUILDFORD BOROUGH COUNCIL,Building Maintenance,969700,A Star Maintenance Contractors Ltd (CIS),24/05/2022,30066366,4820.18,0,Materials,Property Maintenance Contractors,Invoice,BACS,No,10/05/2022 00:00,2022,2,14277,K1515,Building Maintenance,D2003,Materials,DBX45,Property Services,DBX,Support Service and Management Costs,DB,Children's Social Care,E,Childrens and Education Services
GUILDFORD BOROUGH COUNCIL,Building Maintenance,969700,A Star Maintenance Contractors Ltd (CIS),14/04/2022,30046490,1200,0,Services,Property Maintenance Contractors,Invoice,BACS,No,05/04/2022 00:00,2022,1,14244,K1515,Building Maintenance,D6004,Services,DBX45,Property Services,DBX,Support Service and Management Costs,DB,Children's Social Care,E,Childrens and Education Services
GUILDFORD BOROUGH COUNCIL,Building Maintenance,969700,A Star Maintenance Contractors Ltd (CIS),14/04/2022,30046465,2000,0,Services,Property Maintenance Contractors,Invoice,BACS,No,05/04/2022 00:00,2022,1,14243,K1515,Building Maintenance,D6004,Services,DBX45,Property Services,DBX,Support Service and Management Costs,DB,Children's Social Care,E,Childrens and Education Services
GUILDFORD BOROUGH COUNCIL,Building Maintenance,969700,A Star Maintenance Contractors Ltd (CIS),14/04/2022,30046465,2851.18,0,Materials,Property Maintenance Contractors,Invoice,BACS,No,05/04/2022 00:00,2022,1,14243,K1515,Building Maintenance,D2003,Materials,DBX45,Property Services,DBX,Support Service and Management Costs,DB,Children's Social Care,E,Childrens and Education Services
GUILDFORD BOROUGH COUNCIL,Building Maintenance,969700,A Star Maintenance Contractors Ltd (CIS),17/05/2022,30064991,1200,0,Services,Property Maintenance Contractors,Invoice,BACS,No,05/05/2022 00:00,2022,2,14273,K1515,Building Maintenance,D6004,Services,DBX45,Property Services,DBX,Support Service and Management Costs,DB,Children's Social Care,E,Childrens and Education Services
GUILDFORD BOROUGH COUNCIL,Building Maintenance,969700,A Star Maintenance Contractors Ltd (CIS),14/06/2022,30068850,8420.67,0,Materials,Property Maintenance Contractors,Invoice,BACS,No,31/05/2022 00:00,2022,3,14297,K1515,Building Maintenance,D2003,Materials,DBX45,Property Services,DBX,Support Service and Management Costs,DB,Children's Social Care,E,Childrens and Education Services
GUILDFORD BOROUGH COUNCIL,Building Maintenance,969700,A Star Maintenance Contractors Ltd (CIS),21/04/2022,30046890,1200,0,Services,Property Maintenance Contractors,Invoice,BACS,No,12/04/2022 00:00,2022,1,14251,K1515,Building Maintenance,D6004,Services,DBX45,Property Services,DBX,Support Service and Management Costs,DB,Children's Social Care,E,Childrens and Education Services
GUILDFORD BOROUGH COUNCIL,Building Maintenance,969700,A Star Maintenance Contractors Ltd (CIS),21/04/2022,30046890,4385.64,0,Materials,Property Maintenance Contractors,Invoice,BACS,No,12/04/2022 00:00,2022,1,14251,K1515,Building Maintenance,D2003,Materials,DBX45,Property Services,DBX,Support Service and Management Costs,DB,Children's Social Care,E,Childrens and Education Services
GUILDFORD BOROUGH COUNCIL,Building Maintenance,969700,A Star Maintenance Contractors Ltd (CIS),21/04/2022,30046852,389.32,0,Materials,Property Maintenance Contractors,Invoice,BACS,No,12/04/2022 00:00,2022,1,14252,K1515,Building Maintenance,D2003,Materials,DBX45,Property Services,DBX,Support Service and Management Costs,DB,Children's Social Care,E,Childrens and Education Services
GUILDFORD BOROUGH COUNCIL,Building Maintenance,969700,A Star Maintenance Contractors Ltd (CIS),31/05/2022,30067373,2000,0,Services,Property Maintenance Contractors,Invoice,BACS,No,18/05/2022 00:00,2022,2,14280,K1515,Building Maintenance,D6004,Services,DBX45,Property Services,DBX,Support Service and Management Costs,DB,Children's Social Care,E,Childrens and Education Services
GUILDFORD BOROUGH COUNCIL,Building Maintenance,969700,A Star Maintenance Contractors Ltd (CIS),31/05/2022,30067373,339.7,0,Materials,Property Maintenance Contractors,Invoice,BACS,No,18/05/2022 00:00,2022,2,14280,K1515,Building Maintenance,D2003,Materials,DBX45,Property Services,DBX,Support Service and Management Costs,DB,Children's Social Care,E,Childrens and Education Services
GUILDFORD BOROUGH COUNCIL,Building Maintenance,969700,A Star Maintenance Contractors Ltd (CIS),07/06/2022,30067526,450,0,Services,Property Maintenance Contractors,Invoice,BACS,No,25/05/2022 00:00,2022,3,14290,K1515,Building Maintenance,D6004,Services,DBX45,Property Services,DBX,Support Service and Management Costs,DB,Children's Social Care,E,Childrens and Education Services
GUILDFORD BOROUGH COUNCIL,Building Maintenance,969700,A Star Maintenance Contractors Ltd (CIS),07/06/2022,30067528,10000,0,Services,Property Maintenance Contractors,Invoice,BACS,No,25/05/2022 00:00,2022,3,14289,K1515,Building Maintenance,D6004,Services,DBX45,Property Services,DBX,Support Service and Management Costs,DB,Children's Social Care,E,Childrens and Education Services
GUILDFORD BOROUGH COUNCIL,Building Maintenance,969700,A Star Maintenance Contractors Ltd (CIS),07/06/2022,30067528,17139.21,0,Materials,Property Maintenance Contractors,Invoice,BACS,No,25/05/2022 00:00,2022,3,14289,K1515,Building Maintenance,D2003,Materials,DBX45,Property Services,DBX,Support Service and Management Costs,DB,Children's Social Care,E,Childrens and Education Services
GUILDFORD BOROUGH COUNCIL,Building Maintenance,969700,A Star Maintenance Contractors Ltd (CIS),21/06/2022,30071319,1800,0,Services,Property Maintenance Contractors,Invoice,BACS,No,08/06/2022 00:00,2022,3,14302,K1515,Building Maintenance,D6004,Services,DBX45,Property Services,DBX,Support Service and Management Costs,DB,Children's Social Care,E,Childrens and Education Services
GUILDFORD BOROUGH COUNCIL,Building Maintenance,969700,A Star Maintenance Contractors Ltd (CIS),21/06/2022,30071319,463.9,0,Materials,Property Maintenance Contractors,Invoice,BACS,No,08/06/2022 00:00,2022,3,14302,K1515,Building Maintenance,D2003,Materials,DBX45,Property Services,DBX,Support Service and Management Costs,DB,Children's Social Care,E,Childrens and Education Services
GUILDFORD BOROUGH COUNCIL,Building Maintenance,969700,A Star Maintenance Contractors Ltd (CIS),10/05/2022,30046221,1500,0,Services,Property Maintenance Contractors,Invoice,BACS,No,29/03/2022 00:00,2022,2,14232,K1515,Building Maintenance,D6004,Services,DBX45,Property Services,DBX,Support Service and Management Costs,DB,Children's Social Care,E,Childrens and Education Services
GUILDFORD BOROUGH COUNCIL,Building Maintenance,969700,A Star Maintenance Contractors Ltd (CIS),10/05/2022,30046221,822.1,0,Materials,Property Maintenance Contractors,Invoice,BACS,No,29/03/2022 00:00,2022,2,14232,K1515,Building Maintenance,D2003,Materials,DBX45,Property Services,DBX,Support Service and Management Costs,DB,Children's Social Care,E,Childrens and Education Services
GUILDFORD BOROUGH COUNCIL,Other Short Term Creditors,1000511,A&E Builders Limited,23/06/2022,30071455,35040,0,Payments,,Invoice,BACS,No,21/04/2022 00:00,2022,3,177565,L02088,Care & Repair Client Fund,2489,Payments,,,,,,,,
GUILDFORD BOROUGH COUNCIL,Strategic Support,718130,A.I.M. Removals & Deliveries,26/05/2022,30065138,690,0,Expenses,Removal Service Providers,Invoice,BACS,No,12/05/2022 00:00,2022,2,9910,M8121,Strategic Support (SHS),D8004,Expenses,XXX99,*** UNASSIGNED ***,WCC,CEC Recharges,WC,CEC Recharges,A,Central Services
GUILDFORD BOROUGH COUNCIL,Strategic Support,718130,A.I.M. Removals & Deliveries,26/05/2022,30065959,750,0,Expenses,Removal Service Providers,Invoice,BACS,No,16/05/2022 00:00,2022,2,9890,M8121,Strategic Support (SHS),D8004,Expenses,XXX99,*** UNASSIGNED ***,WCC,CEC Recharges,WC,CEC Recharges,A,Central Services
GUILDFORD BOROUGH COUNCIL,Renovations,718130,A.I.M. Removals & Deliveries,21/06/2022,30067153,1650,0,Contractor Payments,Removal Service Providers,Invoice,BACS,No,25/05/2022 00:00,2022,2,9866,N40295,Disabled adaptations,1233,Contractor Payments,,,,,,,,
GUILDFORD BOROUGH COUNCIL,Leisure Management Contract,667000,A.S.L. Ltd (CIS),28/06/2022,30072646,3940,0,Asset Maintenance,Sewerage And Drainage Service Providers,Invoice,BACS,No,23/06/2022 00:00,2022,3,71793,A7540,Spectrum,B1001,Asset Maintenance,CCD30,Indoor Sports & Recreation Facilities,CCD,Recreation & Sport,CC,Cultural & Related Services,C,"Cultural, Environmental & Planning Services"
GUILDFORD BOROUGH COUNCIL,Leisure Management Contract,667000,A.S.L. Ltd (CIS),21/06/2022,30070413,480,0,Asset Maintenance,Sewerage And Drainage Service Providers,Invoice,BACS,No,10/06/2022 00:00,2022,3,71681,A7540,Spectrum,B1001,Asset Maintenance,CCD30,Indoor Sports & Recreation Facilities,CCD,Recreation & Sport,CC,Cultural & Related Services,C,"Cultural, Environmental & Planning Services"
GUILDFORD BOROUGH COUNCIL,Woking Road Depot,941010,A1 Wokingham Wet Waste Limited Ltd,26/05/2022,30066644,844.3,0,Waste Removal,Car And Van Parts Suppliers,Invoice,BACS,No,23/05/2022 00:00,2022,2,32442,B4452,Woking Road Depot,D6010,Waste Removal,W3A48,Current Service Costs - Fleet Management,W3A,Current Service Costs adjustment,W3,Current Service Costs,W,Other Operating Income and Expenditure
GUILDFORD BOROUGH COUNCIL,Woking Road Depot,941010,A1 Wokingham Wet Waste Limited Ltd,05/05/2022,30046447,862.3,0,Waste Removal,Car And Van Parts Suppliers,Invoice,BACS,No,11/04/2022 00:00,2022,1,31995,B4452,Woking Road Depot,D6010,Waste Removal,W3A48,Current Service Costs - Fleet Management,W3A,Current Service Costs adjustment,W3,Current Service Costs,W,Other Operating Income and Expenditure
GUILDFORD BOROUGH COUNCIL,Parks Countryside Management,1000666,AA Fencing UK Ltd,21/06/2022,30068567,5211.47,0,Grounds Maintenance,,Invoice,BACS,No,25/05/2022 00:00,2022,3,28735,A1300,Trees And Countryside,B6001,Grounds Maintenance,CCE00,Community Parks & Open Spaces,CCE,Open Spaces,CC,Cultural & Related Services,C,"Cultural, Environmental & Planning Services"
GUILDFORD BOROUGH COUNCIL,Corporate Property Management,926480,ABM Surveys Limited,12/05/2022,30042645,280,0,Services,Pest And Vermin Control Service Providers,Invoice,BACS,No,22/02/2022 00:00,2022,2,1955,G4575,Asset Management,D6004,Services,DBX45,Property Services,DBX,Support Service and Management Costs,DB,Children's Social Care,E,Childrens and Education Services
GUILDFORD BOROUGH COUNCIL,Corporate Property Management,926480,ABM Surveys Limited,30/06/2022,30068813,450,0,Consultancy,Pest And Vermin Control Service Providers,Invoice,BACS,No,09/06/2022 00:00,2022,3,1987,G4575,Asset Management,D6001,Consultancy,DBX45,Property Services,DBX,Support Service and Management Costs,DB,Children's Social Care,E,Childrens and Education Services
GUILDFORD BOROUGH COUNCIL,SPA Sites,926480,ABM Surveys Limited,30/06/2022,30068810,700,0,Grounds Maintenance,Pest And Vermin Control Service Providers,Invoice,BACS,No,09/06/2022 00:00,2022,3,1993,A1010,SPA Sites,B6001,Grounds Maintenance,CCE00,Community Parks & Open Spaces,CCE,Open Spaces,CC,Cultural & Related Services,C,"Cultural, Environmental & Planning Services"
GUILDFORD BOROUGH COUNCIL,Homelessness Support,1000154,Acacia Villas Guest House,12/05/2022,30046753,630,0,Emergency Accomodation,,Invoice,BACS,No,03/04/2022 00:00,2022,2,AVGH-NH12,C3311,Homelessness,D8009,Emergency Accomodation,KGU00,Supporting People - Strategy,KGU,Supporting People,KG,Housing General Fund,K,Housing Services
GUILDFORD BOROUGH COUNCIL,Homelessness Support,1000154,Acacia Villas Guest House,05/05/2022,30046728,350,0,Emergency Accomodation,,Invoice,BACS,No,03/04/2022 00:00,2022,2,AVGH-IO03,C3311,Homelessness,D8009,Emergency Accomodation,KGU00,Supporting People - Strategy,KGU,Supporting People,KG,Housing General Fund,K,Housing Services
GUILDFORD BOROUGH COUNCIL,Homelessness Support,1000154,Acacia Villas Guest House,05/05/2022,30046732,650,0,Emergency Accomodation,,Invoice,BACS,No,20/03/2022 00:00,2022,2,AVGH-NH10,C3311,Homelessness,D8009,Emergency Accomodation,KGU00,Supporting People - Strategy,KGU,Supporting People,KG,Housing General Fund,K,Housing Services
GUILDFORD BOROUGH COUNCIL,Homelessness Support,1000154,Acacia Villas Guest House,05/05/2022,30046737,350,0,Emergency Accomodation,,Invoice,BACS,No,27/03/2022 00:00,2022,2,AVGH-IO02,C3311,Homelessness,D8009,Emergency Accomodation,KGU00,Supporting People - Strategy,KGU,Supporting People,KG,Housing General Fund,K,Housing Services
GUILDFORD BOROUGH COUNCIL,Homelessness Support,1000154,Acacia Villas Guest House,05/05/2022,30046743,630,0,Emergency Accomodation,,Invoice,BACS,No,27/03/2022 00:00,2022,2,AVGH-NH11,C3311,Homelessness,D8009,Emergency Accomodation,KGU00,Supporting People - Strategy,KGU,Supporting People,KG,Housing General Fund,K,Housing Services
GUILDFORD BOROUGH COUNCIL,Homelessness Support,1000154,Acacia Villas Guest House,07/06/2022,30067448,350,0,Emergency Accomodation,,Invoice,BACS,No,10/04/2022 00:00,2022,2,AVGH-IO4,C3311,Homelessness,D8009,Emergency Accomodation,KGU00,Supporting People - Strategy,KGU,Supporting People,KG,Housing General Fund,K,Housing Services
GUILDFORD BOROUGH COUNCIL,Homelessness Support,1000154,Acacia Villas Guest House,07/06/2022,30067455,630,0,Emergency Accomodation,,Invoice,BACS,No,10/04/2022 00:00,2022,3,AVGH-NH13,C3311,Homelessness,D8009,Emergency Accomodation,KGU00,Supporting People - Strategy,KGU,Supporting People,KG,Housing General Fund,K,Housing Services
GUILDFORD BOROUGH COUNCIL,Homelessness Support,1000154,Acacia Villas Guest House,07/06/2022,30067465,630,0,Emergency Accomodation,,Invoice,BACS,No,17/04/2022 00:00,2022,3,AVGH-NH14,C3311,Homelessness,D8009,Emergency Accomodation,KGU00,Supporting People - Strategy,KGU,Supporting People,KG,Housing General Fund,K,Housing Services
GUILDFORD BOROUGH COUNCIL,Homelessness Support,1000154,Acacia Villas Guest House,07/06/2022,30067467,350,0,Emergency Accomodation,,Invoice,BACS,No,17/04/2022 00:00,2022,3,AVGH-IO5,C3311,Homelessness,D8009,Emergency Accomodation,KGU00,Supporting People - Strategy,KGU,Supporting People,KG,Housing General Fund,K,Housing Services
GUILDFORD BOROUGH COUNCIL,Homelessness Support,1000154,Acacia Villas Guest House,09/06/2022,30067554,350,0,Emergency Accomodation,,Invoice,BACS,No,15/05/2022 00:00,2022,3,AVGH-IO9,C3311,Homelessness,D8009,Emergency Accomodation,KGU00,Supporting People - Strategy,KGU,Supporting People,KG,Housing General Fund,K,Housing Services
GUILDFORD BOROUGH COUNCIL,Homelessness Support,1000154,Acacia Villas Guest House,09/06/2022,30068624,350,0,Emergency Accomodation,,Invoice,BACS,No,08/05/2022 00:00,2022,3,AVGH-IO8,C3311,Homelessness,D8009,Emergency Accomodation,KGU00,Supporting People - Strategy,KGU,Supporting People,KG,Housing General Fund,K,Housing Services
GUILDFORD BOROUGH COUNCIL,Homelessness Support,1000154,Acacia Villas Guest House,09/06/2022,30067498,350,0,Emergency Accomodation,,Invoice,BACS,No,01/05/2022 00:00,2022,3,AVGH-IO7,C3311,Homelessness,D8009,Emergency Accomodation,KGU00,Supporting People - Strategy,KGU,Supporting People,KG,Housing General Fund,K,Housing Services
GUILDFORD BOROUGH COUNCIL,Homelessness Support,1000154,Acacia Villas Guest House,09/06/2022,30067500,630,0,Emergency Accomodation,,Invoice,BACS,No,08/05/2022 00:00,2022,3,AVGH-NH17,C3311,Homelessness,D8009,Emergency Accomodation,KGU00,Supporting People - Strategy,KGU,Supporting People,KG,Housing General Fund,K,Housing Services
GUILDFORD BOROUGH COUNCIL,Homelessness Support,1000154,Acacia Villas Guest House,09/06/2022,30067518,630,0,Emergency Accomodation,,Invoice,BACS,No,24/04/2022 00:00,2022,3,AVGH-NH15,C3311,Homelessness,D8009,Emergency Accomodation,KGU00,Supporting People - Strategy,KGU,Supporting People,KG,Housing General Fund,K,Housing Services
GUILDFORD BOROUGH COUNCIL,Homelessness Support,1000154,Acacia Villas Guest House,09/06/2022,30067530,350,0,Emergency Accomodation,,Invoice,BACS,No,24/04/2022 00:00,2022,3,AVGH-IO6,C3311,Homelessness,D8009,Emergency Accomodation,KGU00,Supporting People - Strategy,KGU,Supporting People,KG,Housing General Fund,K,Housing Services
GUILDFORD BOROUGH COUNCIL,Homelessness Support,1000154,Acacia Villas Guest House,09/06/2022,30067537,630,0,Emergency Accomodation,,Invoice,BACS,No,15/05/2022 00:00,2022,3,AVGH-NH18,C3311,Homelessness,D8009,Emergency Accomodation,KGU00,Supporting People - Strategy,KGU,Supporting People,KG,Housing General Fund,K,Housing Services
GUILDFORD BOROUGH COUNCIL,Homelessness Support,1000154,Acacia Villas Guest House,09/06/2022,30067539,630,0,Emergency Accomodation,,Invoice,BACS,No,01/05/2022 00:00,2022,3,AVGH-NH16,C3311,Homelessness,D8009,Emergency Accomodation,KGU00,Supporting People - Strategy,KGU,Supporting People,KG,Housing General Fund,K,Housing Services
GUILDFORD BOROUGH COUNCIL,Grants,1000568,Adaptec Mobility,16/06/2022,30070268,5650,0,Grants To Private Owners,,Invoice,BACS,No,19/05/2022 00:00,2022,3,Adaptec Mobility invoice INV-0490,N51008,Mandatory DFG,1311,Grants To Private Owners,XXX99,*** UNASSIGNED ***,WCC,CEC Recharges,WC,CEC Recharges,A,Central Services
GUILDFORD BOROUGH COUNCIL,Investment Properties,459000,Addison Glass & Windscreens Ltd,30/06/2022,30069348,710,0,GF Assets - Maintenance,Window And Door Installers,Invoice,BACS,No,09/06/2022 00:00,2022,3,INV-3213,B6111,Investment Property,B1004,GF Assets - Maintenance,CPJ00,Market Undertakings,CPJ,Economic Development,CP,Planning and Development Services,C,"Cultural, Environmental & Planning Services"
GUILDFORD BOROUGH COUNCIL,Lead Specialist - Finance,789120,Adelante Software Ltd,28/04/2022,30046198,881.15,0,ICT Software,Software Developers,Invoice,BACS,No,06/04/2022 00:00,2022,1,132383,G3565,Finance Specialists,D7002,ICT Software,DBX35,Finance (including Internal Audit),DBX,Support Service and Management Costs,DB,Children's Social Care,E,Childrens and Education Services
GUILDFORD BOROUGH COUNCIL,Lead Specialist - Finance,789120,Adelante Software Ltd,26/05/2022,30063978,729.85,0,ICT Software,Software Developers,Invoice,BACS,No,09/05/2022 00:00,2022,2,133218,G3565,Finance Specialists,D7002,ICT Software,DBX35,Finance (including Internal Audit),DBX,Support Service and Management Costs,DB,Children's Social Care,E,Childrens and Education Services
GUILDFORD BOROUGH COUNCIL,Lead Specialist - Finance,789120,Adelante Software Ltd,30/06/2022,30068847,561.1,0,ICT Software,Software Developers,Invoice,BACS,No,08/06/2022 00:00,2022,3,134051,G3565,Finance Specialists,D7002,ICT Software,DBX35,Finance (including Internal Audit),DBX,Support Service and Management Costs,DB,Children's Social Care,E,Childrens and Education Services
GUILDFORD BOROUGH COUNCIL,Town Centre CCTV,774120,Advanced Electronic Security Ltd,28/06/2022,30067903,1100,0,Equipment,Other Security Equipment Suppliers,Invoice,BACS,No,04/06/2022 00:00,2022,3,12725,F7540,Town Centre CCTV System,D2001,Equipment,HTX10,Highways & Transport - Professional and Engineering Services,HTX,Highways Management and Support,HT,"Highways, Roads and Transport Services",H,"Highways, Roads and Transport Services"
GUILDFORD BOROUGH COUNCIL,Town Centre CCTV,774120,Advanced Electronic Security Ltd,26/05/2022,30052683,900,0,Services,Other Security Equipment Suppliers,Invoice,BACS,No,03/05/2022 00:00,2022,2,12724,F7540,Town Centre CCTV System,D6004,Services,HTX10,Highways & Transport - Professional and Engineering Services,HTX,Highways Management and Support,HT,"Highways, Roads and Transport Services",H,"Highways, Roads and Transport Services"
GUILDFORD BOROUGH COUNCIL,Town Centre CCTV,774120,Advanced Electronic Security Ltd,30/06/2022,30068561,1250,0,Services,Other Security Equipment Suppliers,Invoice,BACS,No,06/06/2022 00:00,2022,3,12726,F7540,Town Centre CCTV System,D6004,Services,HTX10,Highways & Transport - Professional and Engineering Services,HTX,Highways Management and Support,HT,"Highways, Roads and Transport Services",H,"Highways, Roads and Transport Services"
GUILDFORD BOROUGH COUNCIL,Vehicle Maintenance,221340,Aebi Schmidt UK Limited,03/05/2022,30047308,1804.01,0,Repair And Maintenance Of Vehicles,Other Vehicle Dealers,Invoice,BACS,No,14/02/2022 00:00,2022,1,60277394,K5551,Fleet Workshops,C1002,Repair And Maintenance Of Vehicles,W3A48,Current Service Costs - Fleet Management,W3A,Current Service Costs adjustment,W3,Current Service Costs,W,Other Operating Income and Expenditure
GUILDFORD BOROUGH COUNCIL,Vehicle Maintenance,221340,Aebi Schmidt UK Limited,24/05/2022,30047435,595.35,0,Repair And Maintenance Of Vehicles,Other Vehicle Dealers,Invoice,BACS,No,28/04/2022 00:00,2022,2,60279261,K5551,Fleet Workshops,C1002,Repair And Maintenance Of Vehicles,W3A48,Current Service Costs - Fleet Management,W3A,Current Service Costs adjustment,W3,Current Service Costs,W,Other Operating Income and Expenditure
GUILDFORD BOROUGH COUNCIL,Vehicle Maintenance,221340,Aebi Schmidt UK Limited,14/04/2022,30046455,1138.01,0,Repair And Maintenance Of Vehicles,Other Vehicle Dealers,Invoice,BACS,No,18/02/2022 00:00,2022,1,60277535,K5551,Fleet Workshops,C1002,Repair And Maintenance Of Vehicles,W3A48,Current Service Costs - Fleet Management,W3A,Current Service Costs adjustment,W3,Current Service Costs,W,Other Operating Income and Expenditure
GUILDFORD BOROUGH COUNCIL,Vehicle Maintenance,221340,Aebi Schmidt UK Limited,14/04/2022,30046461,1124.2,0,Repair And Maintenance Of Vehicles,Other Vehicle Dealers,Invoice,BACS,No,21/02/2022 00:00,2022,1,60277584,K5551,Fleet Workshops,C1002,Repair And Maintenance Of Vehicles,W3A48,Current Service Costs - Fleet Management,W3A,Current Service Costs adjustment,W3,Current Service Costs,W,Other Operating Income and Expenditure
GUILDFORD BOROUGH COUNCIL,Vehicle Maintenance,221340,Aebi Schmidt UK Limited,26/05/2022,30065838,1103.19,0,Repair And Maintenance Of Vehicles,Other Vehicle Dealers,Invoice,BACS,No,13/05/2022 00:00,2022,2,60279652,K5551,Fleet Workshops,C1002,Repair And Maintenance Of Vehicles,W3A48,Current Service Costs - Fleet Management,W3A,Current Service Costs adjustment,W3,Current Service Costs,W,Other Operating Income and Expenditure
GUILDFORD BOROUGH COUNCIL,Vehicle Maintenance,221340,Aebi Schmidt UK Limited,14/06/2022,30066626,1109.49,0,Repair And Maintenance Of Vehicles,Other Vehicle Dealers,Invoice,BACS,No,20/05/2022 00:00,2022,2,60279808,K5551,Fleet Workshops,C1002,Repair And Maintenance Of Vehicles,W3A48,Current Service Costs - Fleet Management,W3A,Current Service Costs adjustment,W3,Current Service Costs,W,Other Operating Income and Expenditure
GUILDFORD BOROUGH COUNCIL,Vehicle Maintenance,221340,Aebi Schmidt UK Limited,16/06/2022,30067921,1559.32,0,Repair And Maintenance Of Vehicles,Other Vehicle Dealers,Invoice,BACS,No,23/05/2022 00:00,2022,3,60279935,K5551,Fleet Workshops,C1002,Repair And Maintenance Of Vehicles,W3A48,Current Service Costs - Fleet Management,W3A,Current Service Costs adjustment,W3,Current Service Costs,W,Other Operating Income and Expenditure
GUILDFORD BOROUGH COUNCIL,Vehicle Maintenance,221340,Aebi Schmidt UK Limited,21/06/2022,30068541,1541.57,0,Repair And Maintenance Of Vehicles,Other Vehicle Dealers,Invoice,BACS,No,27/05/2022 00:00,2022,3,60279988,K5551,Fleet Workshops,C1002,Repair And Maintenance Of Vehicles,W3A48,Current Service Costs - Fleet Management,W3A,Current Service Costs adjustment,W3,Current Service Costs,W,Other Operating Income and Expenditure
GUILDFORD BOROUGH COUNCIL,Executive - Miscellaneous,188030,Aecom Infrastructure & Environment UK Ltd,14/06/2022,30066792,11655,0,Consultants Fees,Construction Project Management Consultants,Invoice,BACS,No,19/05/2022 00:00,2022,2,28494476,P79027,Walnut Tree Bridge Replacement,1221,Consultants Fees,XXX99,*** UNASSIGNED ***,WCC,CEC Recharges,WC,CEC Recharges,A,Central Services
GUILDFORD BOROUGH COUNCIL,New Build,761720,Aecom Limited,28/04/2022,30046359,2372.32,0,Consultants Fees,Construction Project Management Consultants,Invoice,BACS,No,08/04/2022 00:00,2022,1,28491051,N30011,Guildford Park,1221,Consultants Fees,XXX99,*** UNASSIGNED ***,WCC,CEC Recharges,WC,CEC Recharges,A,Central Services
GUILDFORD BOROUGH COUNCIL,New Build,761720,Aecom Limited,28/04/2022,30046352,5000,0,Consultants Fees,Construction Project Management Consultants,Invoice,BACS,No,07/04/2022 00:00,2022,1,28490888,N30011,Guildford Park,1221,Consultants Fees,XXX99,*** UNASSIGNED ***,WCC,CEC Recharges,WC,CEC Recharges,A,Central Services
GUILDFORD BOROUGH COUNCIL,New Build,761720,Aecom Limited,26/05/2022,30064922,3350,0,Consultants Fees,Construction Project Management Consultants,Invoice,BACS,No,10/05/2022 00:00,2022,2,28493504,N30011,Guildford Park,1221,Consultants Fees,XXX99,*** UNASSIGNED ***,WCC,CEC Recharges,WC,CEC Recharges,A,Central Services
GUILDFORD BOROUGH COUNCIL,New Build,761720,Aecom Limited,17/05/2022,30064013,6392.5,0,Consultants Fees,Construction Project Management Consultants,Invoice,BACS,No,10/03/2022 00:00,2022,2,28487562,N30011,Guildford Park,1221,Consultants Fees,XXX99,*** UNASSIGNED ***,WCC,CEC Recharges,WC,CEC Recharges,A,Central Services
GUILDFORD BOROUGH COUNCIL,Building Maintenance,766060,AGB Contractors Limited,24/05/2022,30066364,864,0,Services,General Builders,Invoice,BACS,No,13/05/2022 00:00,2022,2,220513,K1515,Building Maintenance,D6004,Services,DBX45,Property Services,DBX,Support Service and Management Costs,DB,Children's Social Care,E,Childrens and Education Services
GUILDFORD BOROUGH COUNCIL,Building Maintenance,766060,AGB Contractors Limited,14/04/2022,30046522,999,0,Services,General Builders,Invoice,BACS,No,07/04/2022 00:00,2022,1,220407,K1515,Building Maintenance,D6004,Services,DBX45,Property Services,DBX,Support Service and Management Costs,DB,Children's Social Care,E,Childrens and Education Services
GUILDFORD BOROUGH COUNCIL,Building Maintenance,766060,AGB Contractors Limited,14/04/2022,30046529,432.5,0,Services,General Builders,Invoice,BACS,No,29/03/2022 00:00,2022,1,220329,K1515,Building Maintenance,D6004,Services,DBX45,Property Services,DBX,Support Service and Management Costs,DB,Children's Social Care,E,Childrens and Education Services
GUILDFORD BOROUGH COUNCIL,Building Maintenance,766060,AGB Contractors Limited,17/05/2022,30065029,540,0,Services,General Builders,Invoice,BACS,No,06/05/2022 00:00,2022,2,220506,K1515,Building Maintenance,D6004,Services,DBX45,Property Services,DBX,Support Service and Management Costs,DB,Children's Social Care,E,Childrens and Education Services
GUILDFORD BOROUGH COUNCIL,Building Maintenance,766060,AGB Contractors Limited,30/06/2022,30073434,1080,0,Services,General Builders,Invoice,BACS,No,21/06/2022 00:00,2022,3,220621,K1515,Building Maintenance,D6004,Services,DBX45,Property Services,DBX,Support Service and Management Costs,DB,Children's Social Care,E,Childrens and Education Services
GUILDFORD BOROUGH COUNCIL,Building Maintenance,766060,AGB Contractors Limited,07/06/2022,30067532,1053,0,Services,General Builders,Invoice,BACS,No,26/05/2022 00:00,2022,3,220526,K1515,Building Maintenance,D6004,Services,DBX45,Property Services,DBX,Support Service and Management Costs,DB,Children's Social Care,E,Childrens and Education Services
GUILDFORD BOROUGH COUNCIL,Building Maintenance,766060,AGB Contractors Limited,10/05/2022,30047429,594,0,Services,General Builders,Invoice,BACS,No,14/04/2022 00:00,2022,2,220414,K1515,Building Maintenance,D6004,Services,DBX45,Property Services,DBX,Support Service and Management Costs,DB,Children's Social Care,E,Childrens and Education Services
GUILDFORD BOROUGH COUNCIL,Grants to Voluntary Organisations,354400,Age UK Surrey,23/06/2022,30069334,22437,0,Grants And Subscriptions,Adult Day Care Providers,Invoice,BACS,No,31/05/2022 00:00,2022,3,1644,C3111,Community Grant Scheme,D9001,Grants And Subscriptions,AAM00,Corporate Management,AAM,Corporate Management,AA,Corporate & Democratic Core,A,Central Services
GUILDFORD BOROUGH COUNCIL,Inventories,178400,Akw Medi-Care Limited,26/04/2022,30046227,269.27,0,Purchases,Mobility Disability Equipment Suppliers,Invoice,BACS,No,01/04/2022 00:00,2022,1,2032481,I01001,Stocks,2591,Purchases,,,,,,,,
GUILDFORD BOROUGH COUNCIL,Inventories,178400,Akw Medi-Care Limited,12/04/2022,30046174,1287.9,0,Purchases,Mobility Disability Equipment Suppliers,Invoice,BACS,No,10/03/2022 00:00,2022,1,2024464,I01001,Stocks,2591,Purchases,,,,,,,,
GUILDFORD BOROUGH COUNCIL,Inventories,178400,Akw Medi-Care Limited,28/04/2022,30046738,292.32,0,Purchases,Mobility Disability Equipment Suppliers,Invoice,BACS,No,04/04/2022 00:00,2022,1,2033216,I01001,Stocks,2591,Purchases,,,,,,,,
GUILDFORD BOROUGH COUNCIL,Inventories,178400,Akw Medi-Care Limited,28/04/2022,30047155,432.8,0,Purchases,Mobility Disability Equipment Suppliers,Invoice,BACS,No,08/04/2022 00:00,2022,1,2035082,I01001,Stocks,2591,Purchases,,,,,,,,
GUILDFORD BOROUGH COUNCIL,Inventories,178400,Akw Medi-Care Limited,24/05/2022,30052682,353.02,0,Purchases,Mobility Disability Equipment Suppliers,Invoice,BACS,No,27/04/2022 00:00,2022,2,2040169,I01001,Stocks,2591,Purchases,,,,,,,,
GUILDFORD BOROUGH COUNCIL,Inventories,178400,Akw Medi-Care Limited,26/05/2022,30065971,316.7,0,Purchases,Mobility Disability Equipment Suppliers,Invoice,BACS,No,10/05/2022 00:00,2022,2,2043685,I01001,Stocks,2591,Purchases,,,,,,,,
GUILDFORD BOROUGH COUNCIL,Inventories,178400,Akw Medi-Care Limited,26/05/2022,30066370,506.59,0,Purchases,Mobility Disability Equipment Suppliers,Invoice,BACS,No,16/05/2022 00:00,2022,2,2045459,I01001,Stocks,2591,Purchases,,,,,,,,
GUILDFORD BOROUGH COUNCIL,Inventories,178400,Akw Medi-Care Limited,26/05/2022,30066343,309.19,0,Purchases,Mobility Disability Equipment Suppliers,Invoice,BACS,No,16/05/2022 00:00,2022,2,2045785,I01001,Stocks,2591,Purchases,,,,,,,,
GUILDFORD BOROUGH COUNCIL,Inventories,178400,Akw Medi-Care Limited,26/05/2022,30066334,626.1,0,Purchases,Mobility Disability Equipment Suppliers,Invoice,BACS,No,12/05/2022 00:00,2022,2,2045047,I01001,Stocks,2591,Purchases,,,,,,,,
GUILDFORD BOROUGH COUNCIL,Inventories,178400,Akw Medi-Care Limited,26/05/2022,30066272,288.09,0,Purchases,Mobility Disability Equipment Suppliers,Invoice,BACS,No,11/05/2022 00:00,2022,2,2044419,I01001,Stocks,2591,Purchases,,,,,,,,
GUILDFORD BOROUGH COUNCIL,Inventories,178400,Akw Medi-Care Limited,26/05/2022,30066318,754.57,0,Purchases,Mobility Disability Equipment Suppliers,Invoice,BACS,No,13/05/2022 00:00,2022,2,2045427,I01001,Stocks,2591,Purchases,,,,,,,,
GUILDFORD BOROUGH COUNCIL,Inventories,178400,Akw Medi-Care Limited,19/04/2022,30046173,564.04,0,Purchases,Mobility Disability Equipment Suppliers,Invoice,BACS,No,25/03/2022 00:00,2022,1,2029677,I01001,Stocks,2591,Purchases,,,,,,,,
GUILDFORD BOROUGH COUNCIL,Inventories,178400,Akw Medi-Care Limited,21/04/2022,30046829,284.27,0,Purchases,Mobility Disability Equipment Suppliers,Invoice,BACS,No,09/02/2022 00:00,2022,1,2013509,I01001,Stocks,2591,Purchases,,,,,,,,
GUILDFORD BOROUGH COUNCIL,Inventories,178400,Akw Medi-Care Limited,21/06/2022,30067522,292.32,0,Purchases,Mobility Disability Equipment Suppliers,Invoice,BACS,No,25/05/2022 00:00,2022,3,2049476,I01001,Stocks,2591,Purchases,,,,,,,,
GUILDFORD BOROUGH COUNCIL,Inventories,178400,Akw Medi-Care Limited,19/05/2022,30052705,550.5,0,Purchases,Mobility Disability Equipment Suppliers,Invoice,BACS,No,26/04/2022 00:00,2022,2,2039527,I01001,Stocks,2591,Purchases,,,,,,,,
GUILDFORD BOROUGH COUNCIL,Development Control,454730,Alexander Advertising (International) Ltd,23/06/2022,30068589,289.66,0,Publications,Full Service Marketing Agencies,Invoice,BACS,No,31/05/2022 00:00,2022,3,4806D22,D5100,Development Control - Fee Earn,D5001,Publications,CPC00,Development Control Advice,CPC,Development Control,CP,Planning and Development Services,C,"Cultural, Environmental & Planning Services"
GUILDFORD BOROUGH COUNCIL,Development Control,454730,Alexander Advertising (International) Ltd,23/06/2022,30068535,289.66,0,"Advertising, Publicity & Promotion",Full Service Marketing Agencies,Invoice,BACS,No,31/05/2022 00:00,2022,3,4805D22,D5100,Development Control - Fee Earn,D5002,"Advertising, Publicity & Promotion",CPC00,Development Control Advice,CPC,Development Control,CP,Planning and Development Services,C,"Cultural, Environmental & Planning Services"
GUILDFORD BOROUGH COUNCIL,Development Control,454730,Alexander Advertising (International) Ltd,23/06/2022,30068564,289.66,0,Publications,Full Service Marketing Agencies,Invoice,BACS,No,31/05/2022 00:00,2022,3,4807D22,D5100,Development Control - Fee Earn,D5001,Publications,CPC00,Development Control Advice,CPC,Development Control,CP,Planning and Development Services,C,"Cultural, Environmental & Planning Services"
GUILDFORD BOROUGH COUNCIL,Development Control,454730,Alexander Advertising (International) Ltd,28/04/2022,30046291,398.69,0,"Advertising, Publicity & Promotion",Full Service Marketing Agencies,Invoice,BACS,No,05/04/2022 00:00,2022,1,3943D22,D5100,Development Control - Fee Earn,D5002,"Advertising, Publicity & Promotion",CPC00,Development Control Advice,CPC,Development Control,CP,Planning and Development Services,C,"Cultural, Environmental & Planning Services"
GUILDFORD BOROUGH COUNCIL,Development Control,454730,Alexander Advertising (International) Ltd,24/05/2022,30057770,652.4,0,"Advertising, Publicity & Promotion",Full Service Marketing Agencies,Invoice,BACS,No,29/04/2022 00:00,2022,2,4145D22,D5100,Development Control - Fee Earn,D5002,"Advertising, Publicity & Promotion",CPC00,Development Control Advice,CPC,Development Control,CP,Planning and Development Services,C,"Cultural, Environmental & Planning Services"
GUILDFORD BOROUGH COUNCIL,Development Control,454730,Alexander Advertising (International) Ltd,26/05/2022,30063824,434.93,0,"Advertising, Publicity & Promotion",Full Service Marketing Agencies,Invoice,BACS,No,06/05/2022 00:00,2022,2,4235D22,D5100,Development Control - Fee Earn,D5002,"Advertising, Publicity & Promotion",CPC00,Development Control Advice,CPC,Development Control,CP,Planning and Development Services,C,"Cultural, Environmental & Planning Services"
GUILDFORD BOROUGH COUNCIL,Development Control,454730,Alexander Advertising (International) Ltd,26/05/2022,30065929,434.93,0,"Advertising, Publicity & Promotion",Full Service Marketing Agencies,Invoice,BACS,No,13/05/2022 00:00,2022,2,4408A22,D5100,Development Control - Fee Earn,D5002,"Advertising, Publicity & Promotion",CPC00,Development Control Advice,CPC,Development Control,CP,Planning and Development Services,C,"Cultural, Environmental & Planning Services"
GUILDFORD BOROUGH COUNCIL,Development Control,454730,Alexander Advertising (International) Ltd,26/05/2022,30066615,506.92,0,"Advertising, Publicity & Promotion",Full Service Marketing Agencies,Invoice,BACS,No,20/05/2022 00:00,2022,2,4556D22,D5100,Development Control - Fee Earn,D5002,"Advertising, Publicity & Promotion",CPC00,Development Control Advice,CPC,Development Control,CP,Planning and Development Services,C,"Cultural, Environmental & Planning Services"
GUILDFORD BOROUGH COUNCIL,Development Control,454730,Alexander Advertising (International) Ltd,19/04/2022,30046664,289.95,0,"Advertising, Publicity & Promotion",Full Service Marketing Agencies,Invoice,BACS,No,04/02/2022 00:00,2022,1,2991G22,D5100,Development Control - Fee Earn,D5002,"Advertising, Publicity & Promotion",CPC00,Development Control Advice,CPC,Development Control,CP,Planning and Development Services,C,"Cultural, Environmental & Planning Services"
GUILDFORD BOROUGH COUNCIL,Development Control,454730,Alexander Advertising (International) Ltd,30/06/2022,30070594,253.46,0,"Advertising, Publicity & Promotion",Full Service Marketing Agencies,Invoice,BACS,No,10/06/2022 00:00,2022,3,155D23,D5100,Development Control - Fee Earn,D5002,"Advertising, Publicity & Promotion",CPC00,Development Control Advice,CPC,Development Control,CP,Planning and Development Services,C,"Cultural, Environmental & Planning Services"
GUILDFORD BOROUGH COUNCIL,Development Control,454730,Alexander Advertising (International) Ltd,21/06/2022,30067454,434.5,0,"Advertising, Publicity & Promotion",Full Service Marketing Agencies,Invoice,BACS,No,27/05/2022 00:00,2022,3,4691D22,D5100,Development Control - Fee Earn,D5002,"Advertising, Publicity & Promotion",CPC00,Development Control Advice,CPC,Development Control,CP,Planning and Development Services,C,"Cultural, Environmental & Planning Services"
GUILDFORD BOROUGH COUNCIL,Development Control,454730,Alexander Advertising (International) Ltd,09/06/2022,30068525,289.95,0,"Advertising, Publicity & Promotion",Full Service Marketing Agencies,Invoice,BACS,No,25/03/2022 00:00,2022,3,3721D22,D5100,Development Control - Fee Earn,D5002,"Advertising, Publicity & Promotion",CPC00,Development Control Advice,CPC,Development Control,CP,Planning and Development Services,C,"Cultural, Environmental & Planning Services"
GUILDFORD BOROUGH COUNCIL,Development Control,454730,Alexander Advertising (International) Ltd,10/05/2022,30046875,579.91,0,"Advertising, Publicity & Promotion",Full Service Marketing Agencies,Invoice,BACS,No,13/04/2022 00:00,2022,1,4042D22,D5100,Development Control - Fee Earn,D5002,"Advertising, Publicity & Promotion",CPC00,Development Control Advice,CPC,Development Control,CP,Planning and Development Services,C,"Cultural, Environmental & Planning Services"
GUILDFORD BOROUGH COUNCIL,Income Collection,914220,Allpay Ltd,26/04/2022,30046965,3810.66,0,Bank Charges,Other Financial Service Providers,Invoice,BACS,No,31/03/2022 00:00,2022,1,725899,M1121,Income Collection (BHS),D8002,Bank Charges,XXX99,*** UNASSIGNED ***,WCC,CEC Recharges,WC,CEC Recharges,A,Central Services
GUILDFORD BOROUGH COUNCIL,Income Collection,914220,Allpay Ltd,23/06/2022,30068584,1382.78,0,Bank Charges,Other Financial Service Providers,Invoice,BACS,No,31/05/2022 00:00,2022,3,0000733240GBDD,M1121,Income Collection (BHS),D8002,Bank Charges,XXX99,*** UNASSIGNED ***,WCC,CEC Recharges,WC,CEC Recharges,A,Central Services
GUILDFORD BOROUGH COUNCIL,Income Collection,914220,Allpay Ltd,24/05/2022,30052700,1378.38,0,Bank Charges,Other Financial Service Providers,Invoice,BACS,No,30/04/2022 00:00,2022,2,729541,M1121,Income Collection (BHS),D8002,Bank Charges,XXX99,*** UNASSIGNED ***,WCC,CEC Recharges,WC,CEC Recharges,A,Central Services
GUILDFORD BOROUGH COUNCIL,Car Leasing Holding Code (Service),878400,Alphabet (GB) Ltd,26/04/2022,30046356,274.97,0,Car Leasing,Fleet Management Agencies,Invoice,BACS,No,31/03/2022 00:00,2022,1,80282688,G1131,Car Leasing Holding Code,C3002,Car Leasing,,,,,,,,
GUILDFORD BOROUGH COUNCIL,Building Maintenance,1000451,AMG Electrical Ltd,07/04/2022,30045953,1614.61,0,Services,,Invoice,BACS,No,22/02/2022 00:00,2022,1,2202-04,K1515,Building Maintenance,D6004,Services,DBX45,Property Services,DBX,Support Service and Management Costs,DB,Children's Social Care,E,Childrens and Education Services
GUILDFORD BOROUGH COUNCIL,Building Maintenance,1000451,AMG Electrical Ltd,07/04/2022,30045953,269.94,0,Materials,,Invoice,BACS,No,22/02/2022 00:00,2022,1,2202-04,K1515,Building Maintenance,D2003,Materials,DBX45,Property Services,DBX,Support Service and Management Costs,DB,Children's Social Care,E,Childrens and Education Services
GUILDFORD BOROUGH COUNCIL,Building Maintenance,1000451,AMG Electrical Ltd,07/04/2022,30045968,1314.12,0,Services,,Invoice,BACS,No,30/03/2022 00:00,2022,1,2203-06,K1515,Building Maintenance,D6004,Services,DBX45,Property Services,DBX,Support Service and Management Costs,DB,Children's Social Care,E,Childrens and Education Services
GUILDFORD BOROUGH COUNCIL,Building Maintenance,1000451,AMG Electrical Ltd,07/04/2022,30045968,426.05,0,Materials,,Invoice,BACS,No,30/03/2022 00:00,2022,1,2203-06,K1515,Building Maintenance,D2003,Materials,DBX45,Property Services,DBX,Support Service and Management Costs,DB,Children's Social Care,E,Childrens and Education Services
GUILDFORD BOROUGH COUNCIL,Building Maintenance,1000451,AMG Electrical Ltd,07/04/2022,30045924,784.47,0,Services,,Invoice,BACS,No,09/02/2022 00:00,2022,1,2202-02,K1515,Building Maintenance,D6004,Services,DBX45,Property Services,DBX,Support Service and Management Costs,DB,Children's Social Care,E,Childrens and Education Services
GUILDFORD BOROUGH COUNCIL,Building Maintenance,1000451,AMG Electrical Ltd,23/06/2022,30071451,3263.46,0,Services,,Invoice,BACS,No,18/06/2022 00:00,2022,3,2206-07,K1515,Building Maintenance,D6004,Services,DBX45,Property Services,DBX,Support Service and Management Costs,DB,Children's Social Care,E,Childrens and Education Services
GUILDFORD BOROUGH COUNCIL,Building Maintenance,1000451,AMG Electrical Ltd,23/06/2022,30071451,1684.38,0,Materials,,Invoice,BACS,No,18/06/2022 00:00,2022,3,2206-07,K1515,Building Maintenance,D2003,Materials,DBX45,Property Services,DBX,Support Service and Management Costs,DB,Children's Social Care,E,Childrens and Education Services
GUILDFORD BOROUGH COUNCIL,Building Maintenance,1000451,AMG Electrical Ltd,03/05/2022,30047414,977.44,0,Services,,Invoice,BACS,No,20/04/2022 00:00,2022,1,2204-03,K1515,Building Maintenance,D6004,Services,DBX45,Property Services,DBX,Support Service and Management Costs,DB,Children's Social Care,E,Childrens and Education Services
GUILDFORD BOROUGH COUNCIL,Building Maintenance,1000451,AMG Electrical Ltd,14/04/2022,30046439,1113,0,Services,,Invoice,BACS,No,04/04/2022 00:00,2022,1,2204-01,K1515,Building Maintenance,D6004,Services,DBX45,Property Services,DBX,Support Service and Management Costs,DB,Children's Social Care,E,Childrens and Education Services
GUILDFORD BOROUGH COUNCIL,Building Maintenance,1000451,AMG Electrical Ltd,14/04/2022,30046439,466,0,Materials,,Invoice,BACS,No,04/04/2022 00:00,2022,1,2204-01,K1515,Building Maintenance,D2003,Materials,DBX45,Property Services,DBX,Support Service and Management Costs,DB,Children's Social Care,E,Childrens and Education Services
GUILDFORD BOROUGH COUNCIL,Building Maintenance,1000451,AMG Electrical Ltd,14/04/2022,30046541,931.04,0,Services,,Invoice,BACS,No,08/04/2022 00:00,2022,1,2204-02,K1515,Building Maintenance,D6004,Services,DBX45,Property Services,DBX,Support Service and Management Costs,DB,Children's Social Care,E,Childrens and Education Services
GUILDFORD BOROUGH COUNCIL,Building Maintenance,1000451,AMG Electrical Ltd,26/05/2022,30066545,1388.77,0,Services,,Invoice,BACS,No,17/05/2022 00:00,2022,2,2205-04,K1515,Building Maintenance,D6004,Services,DBX45,Property Services,DBX,Support Service and Management Costs,DB,Children's Social Care,E,Childrens and Education Services
GUILDFORD BOROUGH COUNCIL,Building Maintenance,1000451,AMG Electrical Ltd,17/05/2022,30065047,826.35,0,Services,,Invoice,BACS,No,10/05/2022 00:00,2022,2,2205-01,K1515,Building Maintenance,D6004,Services,DBX45,Property Services,DBX,Support Service and Management Costs,DB,Children's Social Care,E,Childrens and Education Services
GUILDFORD BOROUGH COUNCIL,Building Maintenance,1000451,AMG Electrical Ltd,17/05/2022,30065843,1094.52,0,Services,,Invoice,BACS,No,11/05/2022 00:00,2022,2,2205-02,K1515,Building Maintenance,D6004,Services,DBX45,Property Services,DBX,Support Service and Management Costs,DB,Children's Social Care,E,Childrens and Education Services
GUILDFORD BOROUGH COUNCIL,Building Maintenance,1000451,AMG Electrical Ltd,14/06/2022,30069368,1430.85,0,Services,,Invoice,BACS,No,13/05/2022 00:00,2022,3,S/04/05/22,K1515,Building Maintenance,D6004,Services,DBX45,Property Services,DBX,Support Service and Management Costs,DB,Children's Social Care,E,Childrens and Education Services
GUILDFORD BOROUGH COUNCIL,Building Maintenance,1000451,AMG Electrical Ltd,14/06/2022,30069373,1105.46,0,Services,,Invoice,BACS,No,07/06/2022 00:00,2022,3,2206-06,K1515,Building Maintenance,D6004,Services,DBX45,Property Services,DBX,Support Service and Management Costs,DB,Children's Social Care,E,Childrens and Education Services
GUILDFORD BOROUGH COUNCIL,Building Maintenance,1000451,AMG Electrical Ltd,14/06/2022,30069399,1025.52,0,Services,,Invoice,BACS,No,11/05/2022 00:00,2022,3,2205-03,K1515,Building Maintenance,D6004,Services,DBX45,Property Services,DBX,Support Service and Management Costs,DB,Children's Social Care,E,Childrens and Education Services
GUILDFORD BOROUGH COUNCIL,Building Maintenance,1000451,AMG Electrical Ltd,14/06/2022,30069430,729.25,0,Services,,Invoice,BACS,No,03/06/2022 00:00,2022,3,2206-01N,K1515,Building Maintenance,D6004,Services,DBX45,Property Services,DBX,Support Service and Management Costs,DB,Children's Social Care,E,Childrens and Education Services
GUILDFORD BOROUGH COUNCIL,Building Maintenance,1000451,AMG Electrical Ltd,14/06/2022,30069430,888.05,0,Materials,,Invoice,BACS,No,03/06/2022 00:00,2022,3,2206-01N,K1515,Building Maintenance,D2003,Materials,DBX45,Property Services,DBX,Support Service and Management Costs,DB,Children's Social Care,E,Childrens and Education Services
GUILDFORD BOROUGH COUNCIL,Building Maintenance,1000451,AMG Electrical Ltd,14/06/2022,30068785,2008.08,0,Services,,Invoice,BACS,No,25/05/2022 00:00,2022,3,2205-06,K1515,Building Maintenance,D6004,Services,DBX45,Property Services,DBX,Support Service and Management Costs,DB,Children's Social Care,E,Childrens and Education Services
GUILDFORD BOROUGH COUNCIL,Building Maintenance,1000451,AMG Electrical Ltd,14/06/2022,30068785,561.82,0,Materials,,Invoice,BACS,No,25/05/2022 00:00,2022,3,2205-06,K1515,Building Maintenance,D2003,Materials,DBX45,Property Services,DBX,Support Service and Management Costs,DB,Children's Social Care,E,Childrens and Education Services
GUILDFORD BOROUGH COUNCIL,Building Maintenance,1000451,AMG Electrical Ltd,21/04/2022,30046896,1384.5,0,Services,,Invoice,BACS,No,13/04/2022 00:00,2022,1,S/03/22,K1515,Building Maintenance,D6004,Services,DBX45,Property Services,DBX,Support Service and Management Costs,DB,Children's Social Care,E,Childrens and Education Services
GUILDFORD BOROUGH COUNCIL,Building Maintenance,1000451,AMG Electrical Ltd,07/06/2022,30067509,2019.2,0,Services,,Invoice,BACS,No,25/05/2022 00:00,2022,3,2205-05,K1515,Building Maintenance,D6004,Services,DBX45,Property Services,DBX,Support Service and Management Costs,DB,Children's Social Care,E,Childrens and Education Services
GUILDFORD BOROUGH COUNCIL,Building Maintenance,1000451,AMG Electrical Ltd,07/06/2022,30067509,2351.08,0,Materials,,Invoice,BACS,No,25/05/2022 00:00,2022,3,2205-05,K1515,Building Maintenance,D2003,Materials,DBX45,Property Services,DBX,Support Service and Management Costs,DB,Children's Social Care,E,Childrens and Education Services
GUILDFORD BOROUGH COUNCIL,Building Maintenance,1000451,AMG Electrical Ltd,21/06/2022,30071348,848.54,0,Services,,Invoice,BACS,No,10/06/2022 00:00,2022,3,2206-03,K1515,Building Maintenance,D6004,Services,DBX45,Property Services,DBX,Support Service and Management Costs,DB,Children's Social Care,E,Childrens and Education Services
GUILDFORD BOROUGH COUNCIL,Building Maintenance,1000451,AMG Electrical Ltd,21/06/2022,30071318,838.04,0,Services,,Invoice,BACS,No,10/06/2022 00:00,2022,3,2206-04,K1515,Building Maintenance,D6004,Services,DBX45,Property Services,DBX,Support Service and Management Costs,DB,Children's Social Care,E,Childrens and Education Services
GUILDFORD BOROUGH COUNCIL,Building Maintenance,1000451,AMG Electrical Ltd,21/06/2022,30071307,1149.61,0,Services,,Invoice,BACS,No,14/06/2022 00:00,2022,3,2206-05,K1515,Building Maintenance,D6004,Services,DBX45,Property Services,DBX,Support Service and Management Costs,DB,Children's Social Care,E,Childrens and Education Services
GUILDFORD BOROUGH COUNCIL,Building Maintenance,1000451,AMG Electrical Ltd,21/06/2022,30071313,1445,0,Services,,Invoice,BACS,No,14/06/2022 00:00,2022,3,2206-AA04,K1515,Building Maintenance,D6004,Services,DBX45,Property Services,DBX,Support Service and Management Costs,DB,Children's Social Care,E,Childrens and Education Services
GUILDFORD BOROUGH COUNCIL,Building Maintenance,1000451,AMG Electrical Ltd,10/05/2022,30047518,1250.22,0,Services,,Invoice,BACS,No,27/04/2022 00:00,2022,2,2204-04,K1515,Building Maintenance,D6004,Services,DBX45,Property Services,DBX,Support Service and Management Costs,DB,Children's Social Care,E,Childrens and Education Services
GUILDFORD BOROUGH COUNCIL,Guildford House,652250,Amica Accessories Ltd,28/04/2022,30046202,259.2,0,Stock For Re-Sale,Other Clothing And Accessory Suppliers,Invoice,BACS,No,06/04/2022 00:00,2022,1,6967,A4511,Guildford House Administration,D2004,Stock For Re-Sale,CCA30,Museums & Galleries,CCA,Culture & Heritage,CC,Cultural & Related Services,C,"Cultural, Environmental & Planning Services"
GUILDFORD BOROUGH COUNCIL,Industrial Estates,1000098,Amiri Construction Limited,21/06/2022,30070356,8924.24,0,Contractor Payments,,Invoice,BACS,No,07/06/2022 00:00,2022,3,1179/19,P72037,Midleton Ind Est Redevelop,1233,Contractor Payments,XXX99,*** UNASSIGNED ***,WCC,CEC Recharges,WC,CEC Recharges,A,Central Services
GUILDFORD BOROUGH COUNCIL,Industrial Estates,1000098,Amiri Construction Limited,10/05/2022,30052668,30324.77,0,Contractor Payments,,Invoice,BACS,No,28/04/2022 00:00,2022,2,1179/18,P72037,Midleton Ind Est Redevelop,1233,Contractor Payments,XXX99,*** UNASSIGNED ***,WCC,CEC Recharges,WC,CEC Recharges,A,Central Services
GUILDFORD BOROUGH COUNCIL,Building Maintenance,413190,anonymous,07/04/2022,30045956,1000,0,Services,,Invoice,BACS,No,04/04/2022 00:00,2022,1,436,K1515,Building Maintenance,D6004,Services,DBX45,Property Services,DBX,Support Service and Management Costs,DB,Children's Social Care,E,Childrens and Education Services
GUILDFORD BOROUGH COUNCIL,Building Maintenance,413190,anonymous,07/04/2022,30045956,1143,0,Materials,,Invoice,BACS,No,04/04/2022 00:00,2022,1,436,K1515,Building Maintenance,D2003,Materials,DBX45,Property Services,DBX,Support Service and Management Costs,DB,Children's Social Care,E,Childrens and Education Services
GUILDFORD BOROUGH COUNCIL,Building Maintenance,113100,anonymous,26/04/2022,30046983,1600,0,Materials,Joiners And Carpenters,Invoice,BACS,No,07/04/2022 00:00,2022,1,497,K1515,Building Maintenance,D2003,Materials,DBX45,Property Services,DBX,Support Service and Management Costs,DB,Children's Social Care,E,Childrens and Education Services
GUILDFORD BOROUGH COUNCIL,Building Maintenance,113100,anonymous,26/04/2022,30046983,1275,0,Services,Joiners And Carpenters,Invoice,BACS,No,07/04/2022 00:00,2022,1,497,K1515,Building Maintenance,D6004,Services,DBX45,Property Services,DBX,Support Service and Management Costs,DB,Children's Social Care,E,Childrens and Education Services
GUILDFORD BOROUGH COUNCIL,Other Short Term Debtors,927730,anonymous,23/06/2022,30071354,850,0,Cash Paid,Software Developers,Invoice,BACS,No,20/06/2022 00:00,2022,3,Rent in advance,J01064,Housing H4U Scheme,2175,Cash Paid,,,,,,,,
GUILDFORD BOROUGH COUNCIL,Building Maintenance,113100,anonymous,12/05/2022,30063945,1250,0,Materials,Joiners And Carpenters,Invoice,BACS,No,04/05/2022 00:00,2022,2,498,K1515,Building Maintenance,D2003,Materials,DBX45,Property Services,DBX,Support Service and Management Costs,DB,Children's Social Care,E,Childrens and Education Services
GUILDFORD BOROUGH COUNCIL,Building Maintenance,113100,anonymous,12/05/2022,30063945,1530,0,Services,Joiners And Carpenters,Invoice,BACS,No,04/05/2022 00:00,2022,2,498,K1515,Building Maintenance,D6004,Services,DBX45,Property Services,DBX,Support Service and Management Costs,DB,Children's Social Care,E,Childrens and Education Services
GUILDFORD BOROUGH COUNCIL,Building Maintenance,180000,anonymous,12/05/2022,30063976,478.2,0,Services,,Invoice,BACS,No,09/05/2022 00:00,2022,2,101,K1515,Building Maintenance,D6004,Services,DBX45,Property Services,DBX,Support Service and Management Costs,DB,Children's Social Care,E,Childrens and Education Services
GUILDFORD BOROUGH COUNCIL,Building Maintenance,413190,anonymous,12/05/2022,30064010,600,0,Materials,,Invoice,BACS,No,04/05/2022 00:00,2022,2,438,K1515,Building Maintenance,D2003,Materials,DBX45,Property Services,DBX,Support Service and Management Costs,DB,Children's Social Care,E,Childrens and Education Services
GUILDFORD BOROUGH COUNCIL,Building Maintenance,413190,anonymous,12/05/2022,30064010,600,0,Services,,Invoice,BACS,No,04/05/2022 00:00,2022,2,438,K1515,Building Maintenance,D6004,Services,DBX45,Property Services,DBX,Support Service and Management Costs,DB,Children's Social Care,E,Childrens and Education Services
GUILDFORD BOROUGH COUNCIL,Building Maintenance,113100,anonymous,28/04/2022,30047206,2100,0,Materials,Joiners And Carpenters,Invoice,BACS,No,07/04/2022 00:00,2022,1,496,K1515,Building Maintenance,D2003,Materials,DBX45,Property Services,DBX,Support Service and Management Costs,DB,Children's Social Care,E,Childrens and Education Services
GUILDFORD BOROUGH COUNCIL,Building Maintenance,113100,anonymous,28/04/2022,30047206,1850,0,Services,Joiners And Carpenters,Invoice,BACS,No,07/04/2022 00:00,2022,1,496,K1515,Building Maintenance,D6004,Services,DBX45,Property Services,DBX,Support Service and Management Costs,DB,Children's Social Care,E,Childrens and Education Services
GUILDFORD BOROUGH COUNCIL,Other Short Term Debtors,874080,anonymous,24/05/2022,30066504,1686.83,0,Cash Paid,,Invoice,BACS,No,20/05/2022 00:00,2022,2,Rent in advance,J01064,Housing H4U Scheme,2175,Cash Paid,,,,,,,,
GUILDFORD BOROUGH COUNCIL,Other Short Term Debtors,1000716,anonymous,26/05/2022,30064981,820,0,Cash Paid,,Invoice,BACS,No,12/05/2022 00:00,2022,2,Rent in advance,J01064,Housing H4U Scheme,2175,Cash Paid,,,,,,,,
GUILDFORD BOROUGH COUNCIL,Crematorium,174500,anonymous,26/05/2022,30066514,4022,0,Services,,Invoice,BACS,No,12/05/2022 00:00,2022,2,20,A1500,Crematorium,D6004,Services,CEA10,Crematoria,CEA,"Cemetery, Cremation and Mortuary Services",CE,Environmental & Regulatory Services,C,"Cultural, Environmental & Planning Services"
GUILDFORD BOROUGH COUNCIL,Building Maintenance,534450,anonymous,05/05/2022,30047402,21306.05,0,Services,,Invoice,BACS,No,24/04/2022 00:00,2022,2,20,K1515,Building Maintenance,D6004,Services,DBX45,Property Services,DBX,Support Service and Management Costs,DB,Children's Social Care,E,Childrens and Education Services
GUILDFORD BOROUGH COUNCIL,Case Services,157000,anonymous,14/06/2022,30067449,2210.09,0,Materials,,Invoice,BACS,No,30/05/2022 00:00,2022,3,5909,C6100,Case Services,D2003,Materials,DBX35,Finance (including Internal Audit),DBX,Support Service and Management Costs,DB,Children's Social Care,E,Childrens and Education Services
GUILDFORD BOROUGH COUNCIL,Building Maintenance,180000,anonymous,30/06/2022,30073484,891,0,Services,,Invoice,BACS,No,21/06/2022 00:00,2022,3,1,K1515,Building Maintenance,D6004,Services,DBX45,Property Services,DBX,Support Service and Management Costs,DB,Children's Social Care,E,Childrens and Education Services
GUILDFORD BOROUGH COUNCIL,Building Maintenance,413190,anonymous,21/04/2022,30046887,450,0,Materials,,Invoice,BACS,No,07/04/2022 00:00,2022,1,437,K1515,Building Maintenance,D2003,Materials,DBX45,Property Services,DBX,Support Service and Management Costs,DB,Children's Social Care,E,Childrens and Education Services
GUILDFORD BOROUGH COUNCIL,Building Maintenance,413190,anonymous,21/04/2022,30046887,500,0,Services,,Invoice,BACS,No,07/04/2022 00:00,2022,1,437,K1515,Building Maintenance,D6004,Services,DBX45,Property Services,DBX,Support Service and Management Costs,DB,Children's Social Care,E,Childrens and Education Services
GUILDFORD BOROUGH COUNCIL,Building Maintenance,413190,anonymous,31/05/2022,30067383,865,0,Services,,Invoice,BACS,No,24/05/2022 00:00,2022,2,439,K1515,Building Maintenance,D6004,Services,DBX45,Property Services,DBX,Support Service and Management Costs,DB,Children's Social Care,E,Childrens and Education Services
GUILDFORD BOROUGH COUNCIL,Building Maintenance,413190,anonymous,31/05/2022,30067383,700,0,Materials,,Invoice,BACS,No,24/05/2022 00:00,2022,2,439,K1515,Building Maintenance,D2003,Materials,DBX45,Property Services,DBX,Support Service and Management Costs,DB,Children's Social Care,E,Childrens and Education Services
GUILDFORD BOROUGH COUNCIL,Building Maintenance,113100,anonymous,07/06/2022,30067521,3000,0,Materials,Joiners And Carpenters,Invoice,BACS,No,24/05/2022 00:00,2022,3,499,K1515,Building Maintenance,D2003,Materials,DBX45,Property Services,DBX,Support Service and Management Costs,DB,Children's Social Care,E,Childrens and Education Services
GUILDFORD BOROUGH COUNCIL,Building Maintenance,113100,anonymous,07/06/2022,30067521,3055,0,Services,Joiners And Carpenters,Invoice,BACS,No,24/05/2022 00:00,2022,3,499,K1515,Building Maintenance,D6004,Services,DBX45,Property Services,DBX,Support Service and Management Costs,DB,Children's Social Care,E,Childrens and Education Services
GUILDFORD BOROUGH COUNCIL,Other Short Term Debtors,782150,anonymous,07/06/2022,30067561,892.17,0,Cash Paid,,Invoice,BACS,No,01/06/2022 00:00,2022,3,Rent in advance,J01064,Housing H4U Scheme,2175,Cash Paid,,,,,,,,
GUILDFORD BOROUGH COUNCIL,Building Maintenance,413190,anonymous,21/06/2022,30071332,680,0,Services,,Invoice,BACS,No,27/05/2022 00:00,2022,3,440,K1515,Building Maintenance,D6004,Services,DBX45,Property Services,DBX,Support Service and Management Costs,DB,Children's Social Care,E,Childrens and Education Services
GUILDFORD BOROUGH COUNCIL,Building Maintenance,413190,anonymous,21/06/2022,30071332,800,0,Materials,,Invoice,BACS,No,27/05/2022 00:00,2022,3,440,K1515,Building Maintenance,D2003,Materials,DBX45,Property Services,DBX,Support Service and Management Costs,DB,Children's Social Care,E,Childrens and Education Services
GUILDFORD BOROUGH COUNCIL,Other Short Term Debtors,1000727,anonymous,09/06/2022,30068529,950,0,Cash Paid,,Invoice,BACS,No,01/06/2022 00:00,2022,3,Rent in advance,J01064,Housing H4U Scheme,2175,Cash Paid,,,,,,,,
GUILDFORD BOROUGH COUNCIL,Building Maintenance,113100,anonymous,09/06/2022,30068683,2350,0,Materials,Joiners And Carpenters,Invoice,BACS,No,27/05/2022 00:00,2022,3,500a,K1515,Building Maintenance,D2003,Materials,DBX45,Property Services,DBX,Support Service and Management Costs,DB,Children's Social Care,E,Childrens and Education Services
GUILDFORD BOROUGH COUNCIL,Building Maintenance,113100,anonymous,09/06/2022,30068683,1800,0,Materials,Joiners And Carpenters,Invoice,BACS,No,27/05/2022 00:00,2022,3,500a,K1515,Building Maintenance,D2003,Materials,DBX45,Property Services,DBX,Support Service and Management Costs,DB,Children's Social Care,E,Childrens and Education Services
GUILDFORD BOROUGH COUNCIL,Other Short Term Debtors,464800,anonymous,10/05/2022,30047537,5790,0,Cash Paid,,Invoice,BACS,No,03/05/2022 00:00,2022,2,Rent in advance,J01064,Housing H4U Scheme,2175,Cash Paid,,,,,,,,
GUILDFORD BOROUGH COUNCIL,Other Short Term Debtors,782150,anonymous,22/06/2022,30071453,7800,0,Cash Paid,,Invoice,CHAPS,No,21/06/2022 00:00,2022,3,Rent in advance,J01064,Housing H4U Scheme,2175,Cash Paid,,,,,,,,
GUILDFORD BOROUGH COUNCIL,Industrial Estates,933760,Ant Structures Ltd,26/04/2022,30045817,664,0,Contractor Payments,Scaffolders,Invoice,BACS,No,31/03/2022 00:00,2022,1,945,P72045,Strategic Property Acquisitions,1233,Contractor Payments,,,,,,,,
GUILDFORD BOROUGH COUNCIL,Industrial Estates,933760,Ant Structures Ltd,28/06/2022,30067541,664,0,Contractor Payments,Scaffolders,Invoice,BACS,No,31/05/2022 00:00,2022,3,947,P72045,Strategic Property Acquisitions,1233,Contractor Payments,,,,,,,,
GUILDFORD BOROUGH COUNCIL,Industrial Estates,933760,Ant Structures Ltd,24/05/2022,30052566,664,0,Contractor Payments,Scaffolders,Invoice,BACS,No,30/04/2022 00:00,2022,2,946,P72045,Strategic Property Acquisitions,1233,Contractor Payments,,,,,,,,
GUILDFORD BOROUGH COUNCIL,Insurance Revenue Account,851950,Aon UK Limited,28/04/2022,30046895,7500,0,Insurance,Other Insurance Service Providers,Invoice,BACS,No,04/04/2022 00:00,2022,1,514138506,F8531,Insurance Revenue Account,A7124,Insurance,DBX35,Finance (including Internal Audit),DBX,Support Service and Management Costs,DB,Children's Social Care,E,Childrens and Education Services
GUILDFORD BOROUGH COUNCIL,Insurance Revenue Account,851950,Aon UK Limited,10/05/2022,30045804,246860.08,0,Insurance,Other Insurance Service Providers,Invoice,BACS,No,10/03/2022 00:00,2022,2,513563760,F8531,Insurance Revenue Account,A7124,Insurance,DBX35,Finance (including Internal Audit),DBX,Support Service and Management Costs,DB,Children's Social Care,E,Childrens and Education Services
GUILDFORD BOROUGH COUNCIL,Insurance Revenue Account,851950,Aon UK Limited,10/05/2022,30045815,101439.13,0,Insurance,Other Insurance Service Providers,Invoice,BACS,No,10/03/2022 00:00,2022,2,513561891,F8531,Insurance Revenue Account,A7124,Insurance,DBX35,Finance (including Internal Audit),DBX,Support Service and Management Costs,DB,Children's Social Care,E,Childrens and Education Services
GUILDFORD BOROUGH COUNCIL,Insurance Revenue Account,851950,Aon UK Limited,10/05/2022,30047280,24274.08,0,Transport Insurance,Other Insurance Service Providers,Invoice,BACS,No,14/04/2022 00:00,2022,1,514402890,F8531,Insurance Revenue Account,C5001,Transport Insurance,DBX35,Finance (including Internal Audit),DBX,Support Service and Management Costs,DB,Children's Social Care,E,Childrens and Education Services
GUILDFORD BOROUGH COUNCIL,Community Meals and Transport,604000,Apetito Ltd,26/04/2022,30046699,9974.54,0,Catering,Frozen Food Suppliers,Invoice,BACS,No,31/03/2022 00:00,2022,1,9003855557,C8142,Community Meals Service,D3001,Catering,KGU00,Supporting People - Strategy,KGU,Supporting People,KG,Housing General Fund,K,Housing Services
GUILDFORD BOROUGH COUNCIL,Day Services,604000,Apetito Ltd,26/04/2022,30046681,1162.14,0,Catering,Frozen Food Suppliers,Invoice,BACS,No,31/03/2022 00:00,2022,1,9003856312,C8100,Community Hubs,D3001,Catering,KGU00,Supporting People - Strategy,KGU,Supporting People,KG,Housing General Fund,K,Housing Services
GUILDFORD BOROUGH COUNCIL,Day Services,604000,Apetito Ltd,12/04/2022,30046163,1279.32,0,Catering,Frozen Food Suppliers,Invoice,BACS,No,28/02/2022 00:00,2022,1,9003855059,C8100,Community Hubs,D3001,Catering,KGU00,Supporting People - Strategy,KGU,Supporting People,KG,Housing General Fund,K,Housing Services
GUILDFORD BOROUGH COUNCIL,Community Meals and Transport,604000,Apetito Ltd,12/04/2022,30046214,7965.59,0,Catering,Frozen Food Suppliers,Invoice,BACS,No,31/10/2021 00:00,2022,1,9003708462,C8142,Community Meals Service,D3001,Catering,KGU00,Supporting People - Strategy,KGU,Supporting People,KG,Housing General Fund,K,Housing Services
GUILDFORD BOROUGH COUNCIL,Day Services,604000,Apetito Ltd,12/04/2022,30046224,359.81,0,Catering,Frozen Food Suppliers,Invoice,BACS,No,31/01/2022 00:00,2022,1,MONTHLYAPEGT9,C8100,Community Hubs,D3001,Catering,KGU00,Supporting People - Strategy,KGU,Supporting People,KG,Housing General Fund,K,Housing Services
GUILDFORD BOROUGH COUNCIL,Community Meals and Transport,604000,Apetito Ltd,12/04/2022,30046208,6577.13,0,Catering,Frozen Food Suppliers,Invoice,BACS,No,28/02/2022 00:00,2022,1,9003854969,C8142,Community Meals Service,D3001,Catering,KGU00,Supporting People - Strategy,KGU,Supporting People,KG,Housing General Fund,K,Housing Services
GUILDFORD BOROUGH COUNCIL,Community Meals and Transport,604000,Apetito Ltd,24/05/2022,30047445,1749.36,0,External Vehicle Hire,Frozen Food Suppliers,Invoice,BACS,No,01/05/2022 00:00,2022,2,9003922594,C8142,Community Meals Service,C3001,External Vehicle Hire,KGU00,Supporting People - Strategy,KGU,Supporting People,KG,Housing General Fund,K,Housing Services
GUILDFORD BOROUGH COUNCIL,Community Meals and Transport,604000,Apetito Ltd,14/04/2022,30046467,13155.15,0,Catering,Frozen Food Suppliers,Invoice,BACS,No,31/01/2022 00:00,2022,1,MONTHLYAPETIV,C8142,Community Meals Service,D3001,Catering,KGU00,Supporting People - Strategy,KGU,Supporting People,KG,Housing General Fund,K,Housing Services
GUILDFORD BOROUGH COUNCIL,Community Safety,822600,Applied Resilience Limited,26/04/2022,30045827,700.42,0,Consultancy,Other Business Service Providers,Invoice,BACS,No,01/04/2022 00:00,2022,1,GBC113,F5724,Safer Guildford Partnership,D6001,Consultancy,CEH00,Community Safety (Safety Services),CEH,Community Safety (Safety Services),CE,Environmental & Regulatory Services,C,"Cultural, Environmental & Planning Services"
GUILDFORD BOROUGH COUNCIL,Civil Emergencies,822600,Applied Resilience Limited,24/05/2022,30057734,2818.75,0,Consultancy,Other Business Service Providers,Invoice,BACS,No,01/05/2022 00:00,2022,2,GBC114,F1511,Civil Emergencies,D6001,Consultancy,ACG00,Emergency Planning,ACG,Emergency Planning,AC,Central Services to the Public,A,Central Services
GUILDFORD BOROUGH COUNCIL,Civil Emergencies,822600,Applied Resilience Limited,30/06/2022,30068533,2818.75,0,Consultancy,Other Business Service Providers,Invoice,BACS,No,01/06/2022 00:00,2022,3,GBC115,F1511,Civil Emergencies,D6001,Consultancy,ACG00,Emergency Planning,ACG,Emergency Planning,AC,Central Services to the Public,A,Central Services
GUILDFORD BOROUGH COUNCIL,Climate Change,105080,APSE,24/05/2022,30065154,2280,0,Consultancy,Trade Associations And Regulatory Bodies,Invoice,BACS,No,28/04/2022 00:00,2022,2,2223/412,B3911,Climate Change Strategy,D6001,Consultancy,CEZ00,Climate Change Costs,CEZ,Climate Change Costs,CE,Environmental & Regulatory Services,C,"Cultural, Environmental & Planning Services"
GUILDFORD BOROUGH COUNCIL,Major Projects,105080,APSE,26/05/2022,30065134,45850,0,Consultancy,Trade Associations And Regulatory Bodies,Invoice,BACS,No,12/05/2022 00:00,2022,2,2223/559,F5530,Major Projects,D6001,Consultancy,DBX70,Other Management Costs,DBX,Support Service and Management Costs,DB,Children's Social Care,E,Childrens and Education Services
GUILDFORD BOROUGH COUNCIL,Climate Change,105080,APSE,26/05/2022,30065172,1950,0,Consultancy,Trade Associations And Regulatory Bodies,Invoice,BACS,No,12/05/2022 00:00,2022,2,2223/558,B3911,Climate Change Strategy,D6001,Consultancy,CEZ00,Climate Change Costs,CEZ,Climate Change Costs,CE,Environmental & Regulatory Services,C,"Cultural, Environmental & Planning Services"
GUILDFORD BOROUGH COUNCIL,Climate Change,105080,APSE,26/05/2022,30065162,2600,0,Consultancy,Trade Associations And Regulatory Bodies,Invoice,BACS,No,12/05/2022 00:00,2022,2,2223/557,B3911,Climate Change Strategy,D6001,Consultancy,CEZ00,Climate Change Costs,CEZ,Climate Change Costs,CE,Environmental & Regulatory Services,C,"Cultural, Environmental & Planning Services"
GUILDFORD BOROUGH COUNCIL,Refuse and Recycling,105080,APSE,30/06/2022,30073407,1331,0,Services,Trade Associations And Regulatory Bodies,Invoice,BACS,No,12/07/2021 00:00,2022,3,PN2122/81,K3551,Refuse - Domestic,D6004,Services,CEW40,Disposal of Waste,CEW,Waste Disposal,CE,Environmental & Regulatory Services,C,"Cultural, Environmental & Planning Services"
GUILDFORD BOROUGH COUNCIL,Woking Road Depot,105080,APSE,30/06/2022,30073490,2512,0,Services,Trade Associations And Regulatory Bodies,Invoice,BACS,No,06/04/2021 00:00,2022,3,2122/201,B4452,Woking Road Depot,D6004,Services,W3A48,Current Service Costs - Fleet Management,W3A,Current Service Costs adjustment,W3,Current Service Costs,W,Other Operating Income and Expenditure
GUILDFORD BOROUGH COUNCIL,Grants,622420,Aquaneed Limited,26/05/2022,30066379,7322.08,0,Grants To Private Owners,Fixed Disability Equipment Suppliers,Invoice,BACS,No,09/05/2022 00:00,2022,2,Aquaneed SI22078,N51008,Mandatory DFG,1311,Grants To Private Owners,XXX99,*** UNASSIGNED ***,WCC,CEC Recharges,WC,CEC Recharges,A,Central Services
GUILDFORD BOROUGH COUNCIL,Grants,622420,Aquaneed Limited,26/05/2022,30066380,5294.24,0,Grants To Private Owners,Fixed Disability Equipment Suppliers,Invoice,BACS,No,18/05/2022 00:00,2022,2,Aquaneed SI22084 re 33 Gosden Hill Rd,N51008,Mandatory DFG,1311,Grants To Private Owners,XXX99,*** UNASSIGNED ***,WCC,CEC Recharges,WC,CEC Recharges,A,Central Services
GUILDFORD BOROUGH COUNCIL,Grants,622420,Aquaneed Limited,10/05/2022,30047543,7039.15,0,Grants To Private Owners,Fixed Disability Equipment Suppliers,Invoice,BACS,No,13/04/2022 00:00,2022,2,Aquaneed Ltd SI22061,N51008,Mandatory DFG,1311,Grants To Private Owners,XXX99,*** UNASSIGNED ***,WCC,CEC Recharges,WC,CEC Recharges,A,Central Services
GUILDFORD BOROUGH COUNCIL,Countryside and Parks Services,348850,Aquavent Limited,26/05/2022,30064930,345,0,Services,Water Treatment Service Providers,Invoice,BACS,No,09/05/2022 00:00,2022,2,INV-5528,A1250,Stoke Park,D6004,Services,CCE00,Community Parks & Open Spaces,CCE,Open Spaces,CC,Cultural & Related Services,C,"Cultural, Environmental & Planning Services"
GUILDFORD BOROUGH COUNCIL,Executive - Miscellaneous,138190,Arcadis Consulting (UK) Limited,21/04/2022,30045636,27000,0,Consultants Fees,Other Construction Consultants,Invoice,BACS,No,29/03/2022 00:00,2022,1,14150315,P79027,Walnut Tree Bridge Replacement,1221,Consultants Fees,XXX99,*** UNASSIGNED ***,WCC,CEC Recharges,WC,CEC Recharges,A,Central Services
GUILDFORD BOROUGH COUNCIL,Corporate Financial,600320,Arlingclose Ltd,26/04/2022,30046897,25000,0,Consultancy,Other Financial Service Providers,Invoice,BACS,No,01/04/2022 00:00,2022,1,ACF2876,F1135,Treasury Management Admin,D6001,Consultancy,DBX35,Finance (including Internal Audit),DBX,Support Service and Management Costs,DB,Children's Social Care,E,Childrens and Education Services
GUILDFORD BOROUGH COUNCIL,Industrial Estates,874420,Artelia Projects UK Limited,23/06/2022,30067952,2790,0,Consultants Fees,Civil Engineers,Invoice,BACS,No,31/05/2022 00:00,2022,3,PIN011914,P72037,Midleton Ind Est Redevelop,1221,Consultants Fees,XXX99,*** UNASSIGNED ***,WCC,CEC Recharges,WC,CEC Recharges,A,Central Services
GUILDFORD BOROUGH COUNCIL,Industrial Estates,874420,Artelia Projects UK Limited,23/06/2022,30067897,2769,0,Consultants Fees,Civil Engineers,Invoice,BACS,No,31/05/2022 00:00,2022,3,PIN011913,P72037,Midleton Ind Est Redevelop,1221,Consultants Fees,XXX99,*** UNASSIGNED ***,WCC,CEC Recharges,WC,CEC Recharges,A,Central Services
GUILDFORD BOROUGH COUNCIL,Industrial Estates,874420,Artelia Projects UK Limited,24/05/2022,30052672,2769,0,Consultants Fees,Civil Engineers,Invoice,BACS,No,30/04/2022 00:00,2022,2,PIN011776,P72037,Midleton Ind Est Redevelop,1221,Consultants Fees,XXX99,*** UNASSIGNED ***,WCC,CEC Recharges,WC,CEC Recharges,A,Central Services
GUILDFORD BOROUGH COUNCIL,Industrial Estates,874420,Artelia Projects UK Limited,24/05/2022,30052697,2790,0,Consultants Fees,Civil Engineers,Invoice,BACS,No,30/04/2022 00:00,2022,2,PIN011777,P72037,Midleton Ind Est Redevelop,1221,Consultants Fees,XXX99,*** UNASSIGNED ***,WCC,CEC Recharges,WC,CEC Recharges,A,Central Services
GUILDFORD BOROUGH COUNCIL,Environmental Health,775190,Arton Monoseal Ltd,28/06/2022,30067499,1175,0,Services,Asbestos Removal Service Providers,Invoice,BACS,No,01/06/2022 00:00,2022,3,INV-5523,C1113,Environmental Control,D6004,Services,CEE25,Environmental Protection,CEE,Environmental Health (Regulatory Services),CE,Environmental & Regulatory Services,C,"Cultural, Environmental & Planning Services"
GUILDFORD BOROUGH COUNCIL,Street Cleansing,775190,Arton Monoseal Ltd,28/04/2022,30045816,980,0,Waste Removal,Asbestos Removal Service Providers,Invoice,BACS,No,04/04/2022 00:00,2022,1,INV-5487,K4551,Street Cleansing,D6010,Waste Removal,CES00,Street Cleansing (not chargeable to highways),CES,Street Cleansing (not chargeable to highways),CE,Environmental & Regulatory Services,C,"Cultural, Environmental & Planning Services"
GUILDFORD BOROUGH COUNCIL,Street Cleansing,775190,Arton Monoseal Ltd,26/05/2022,30063953,260,0,Waste Removal,Asbestos Removal Service Providers,Invoice,BACS,No,09/05/2022 00:00,2022,2,INV-5509,K4551,Street Cleansing,D6010,Waste Removal,CES00,Street Cleansing (not chargeable to highways),CES,Street Cleansing (not chargeable to highways),CE,Environmental & Regulatory Services,C,"Cultural, Environmental & Planning Services"
GUILDFORD BOROUGH COUNCIL,Street Cleansing,775190,Arton Monoseal Ltd,30/06/2022,30070395,440,0,Waste Removal,Asbestos Removal Service Providers,Invoice,BACS,No,08/06/2022 00:00,2022,3,INV-5525,K4551,Street Cleansing,D6010,Waste Removal,CES00,Street Cleansing (not chargeable to highways),CES,Street Cleansing (not chargeable to highways),CE,Environmental & Regulatory Services,C,"Cultural, Environmental & Planning Services"
GUILDFORD BOROUGH COUNCIL,Major Projects,1000235,Arup,31/05/2022,30066773,10386.36,0,Consultancy,,Invoice,BACS,No,05/05/2022 00:00,2022,2,88-2201306,F5530,Major Projects,D6001,Consultancy,DBX70,Other Management Costs,DBX,Support Service and Management Costs,DB,Children's Social Care,E,Childrens and Education Services
GUILDFORD BOROUGH COUNCIL,Major Projects,1000235,Arup,21/06/2022,30067201,10386.36,0,Consultancy,,Invoice,BACS,No,25/05/2022 00:00,2022,3,88-2202096,F5530,Major Projects,D6001,Consultancy,DBX70,Other Management Costs,DBX,Support Service and Management Costs,DB,Children's Social Care,E,Childrens and Education Services
GUILDFORD BOROUGH COUNCIL,Guildhall,840480,Ash Contracting Ltd,26/04/2022,30046741,45338.18,0,GF Assets - Maintenance,General Builders,Invoice,BACS,No,13/04/2022 00:00,2022,1,MG/22/01130422,F3311,Guildhall,B1004,GF Assets - Maintenance,CCA30,Museums & Galleries,CCA,Culture & Heritage,CC,Cultural & Related Services,C,"Cultural, Environmental & Planning Services"
GUILDFORD BOROUGH COUNCIL,Guildhall,840480,Ash Contracting Ltd,30/06/2022,30073465,52569.18,0,GF Assets - Maintenance,General Builders,Invoice,BACS,No,28/06/2022 00:00,2022,3,MG/22/01280622,F3311,Guildhall,B1004,GF Assets - Maintenance,CCA30,Museums & Galleries,CCA,Culture & Heritage,CC,Cultural & Related Services,C,"Cultural, Environmental & Planning Services"
GUILDFORD BOROUGH COUNCIL,Executive - Miscellaneous,722840,Ashurst LLP,24/05/2022,30065135,101468.9,0,Legal Expenses,Other Legal Service Providers,Invoice,BACS,No,28/04/2022 00:00,2022,2,500077013,P79023,Guild Town Centre Regeneration,1395,Legal Expenses,XXX99,*** UNASSIGNED ***,WCC,CEC Recharges,WC,CEC Recharges,A,Central Services
GUILDFORD BOROUGH COUNCIL,Executive - Miscellaneous,722840,Ashurst LLP,26/05/2022,30066290,1893,0,Consultants Fees,Other Legal Service Providers,Invoice,BACS,No,17/05/2022 00:00,2022,2,500077989,P79023,Guild Town Centre Regeneration,1221,Consultants Fees,XXX99,*** UNASSIGNED ***,WCC,CEC Recharges,WC,CEC Recharges,A,Central Services
GUILDFORD BOROUGH COUNCIL,Off Street Parking,809030,ASSA ABLOY Ltd,26/05/2022,30052722,333,0,Licences,Keys And Locksmiths,Invoice,BACS,No,04/05/2022 00:00,2022,2,1221951518,B2111,Car Parks - Administration,D8001,Licences,HTP10,Off-Street Parking,HTP,Parking Services,HT,"Highways, Roads and Transport Services",H,"Highways, Roads and Transport Services"
GUILDFORD BOROUGH COUNCIL,Lead Specialist - ICT,720890,Astun Technology Ltd,26/04/2022,30046842,17500,0,ICT Software,Software Developers,Invoice,BACS,No,01/04/2022 00:00,2022,1,INV-0681,G3547,ICT Development,D7002,ICT Software,DBX70,Other Management Costs,DBX,Support Service and Management Costs,DB,Children's Social Care,E,Childrens and Education Services
GUILDFORD BOROUGH COUNCIL,Lead Specialist - ICT,720890,Astun Technology Ltd,26/04/2022,30046842,1500,0,ICT Software,Software Developers,Invoice,BACS,No,01/04/2022 00:00,2022,1,INV-0681,G3547,ICT Development,D7002,ICT Software,DBX70,Other Management Costs,DBX,Support Service and Management Costs,DB,Children's Social Care,E,Childrens and Education Services
GUILDFORD BOROUGH COUNCIL,Lead Specialist - ICT,720890,Astun Technology Ltd,26/04/2022,30046842,1700,0,ICT Software,Software Developers,Invoice,BACS,No,01/04/2022 00:00,2022,1,INV-0681,G3547,ICT Development,D7002,ICT Software,DBX70,Other Management Costs,DBX,Support Service and Management Costs,DB,Children's Social Care,E,Childrens and Education Services
GUILDFORD BOROUGH COUNCIL,Parks Countryside Management,908500,AVS Fencing Supplies Ltd,14/06/2022,30068802,640.5,0,Materials,Builders Merchants,Invoice,BACS,No,04/05/2022 00:00,2022,3,0102/10253567,A1300,Trees And Countryside,D2003,Materials,CCE00,Community Parks & Open Spaces,CCE,Open Spaces,CC,Cultural & Related Services,C,"Cultural, Environmental & Planning Services"
GUILDFORD BOROUGH COUNCIL,Parks Countryside Management,908500,AVS Fencing Supplies Ltd,14/06/2022,30068784,612.9,0,Materials,Builders Merchants,Invoice,BACS,No,03/05/2022 00:00,2022,3,0102/10253543,A1300,Trees And Countryside,D2003,Materials,CCE00,Community Parks & Open Spaces,CCE,Open Spaces,CC,Cultural & Related Services,C,"Cultural, Environmental & Planning Services"
GUILDFORD BOROUGH COUNCIL,Public Conveniences,118990,B T U (Installation & Maintenance) Ltd,07/04/2022,30046088,274.68,0,Asset Maintenance,Mechanical Engineers,Invoice,BACS,No,07/03/2022 00:00,2022,1,OP/I279450,K6500,Public Conveniences,B1001,Asset Maintenance,W3A48,Current Service Costs - Fleet Management,W3A,Current Service Costs adjustment,W3,Current Service Costs,W,Other Operating Income and Expenditure
GUILDFORD BOROUGH COUNCIL,Responsive & Planned Maintenance,118990,B T U (Installation & Maintenance) Ltd,07/04/2022,30046088,1033.39,0,Asset Maintenance,Mechanical Engineers,Invoice,BACS,No,07/03/2022 00:00,2022,1,OP/I279450,M5106,Repairs-Shelt-Responsive (BHS),B1001,Asset Maintenance,XXX99,*** UNASSIGNED ***,WCC,CEC Recharges,WC,CEC Recharges,A,Central Services
GUILDFORD BOROUGH COUNCIL,Responsive & Planned Maintenance,118990,B T U (Installation & Maintenance) Ltd,07/04/2022,30046088,368.21,0,Asset Maintenance,Mechanical Engineers,Invoice,BACS,No,07/03/2022 00:00,2022,1,OP/I279450,M5106,Repairs-Shelt-Responsive (BHS),B1001,Asset Maintenance,XXX99,*** UNASSIGNED ***,WCC,CEC Recharges,WC,CEC Recharges,A,Central Services
GUILDFORD BOROUGH COUNCIL,Flats Communal Services,118990,B T U (Installation & Maintenance) Ltd,07/04/2022,30046088,270.94,0,Asset Maintenance,Mechanical Engineers,Invoice,BACS,No,07/03/2022 00:00,2022,1,OP/I279450,M2657,Cabell Rd 237-251 Odd (8),B1001,Asset Maintenance,XXX99,*** UNASSIGNED ***,WCC,CEC Recharges,WC,CEC Recharges,A,Central Services
GUILDFORD BOROUGH COUNCIL,Flats Communal Services,118990,B T U (Installation & Maintenance) Ltd,07/04/2022,30046088,458.81,0,Asset Maintenance,Mechanical Engineers,Invoice,BACS,No,07/03/2022 00:00,2022,1,OP/I279450,M2680,Dunmore 53-59 Odd (4),B1001,Asset Maintenance,XXX99,*** UNASSIGNED ***,WCC,CEC Recharges,WC,CEC Recharges,A,Central Services
GUILDFORD BOROUGH COUNCIL,Responsive & Planned Maintenance,118990,B T U (Installation & Maintenance) Ltd,07/04/2022,30046088,328.72,0,Asset Maintenance,Mechanical Engineers,Invoice,BACS,No,07/03/2022 00:00,2022,1,OP/I279450,M5106,Repairs-Shelt-Responsive (BHS),B1001,Asset Maintenance,XXX99,*** UNASSIGNED ***,WCC,CEC Recharges,WC,CEC Recharges,A,Central Services
GUILDFORD BOROUGH COUNCIL,Responsive & Planned Maintenance,118990,B T U (Installation & Maintenance) Ltd,26/04/2022,30046564,328.99,0,Asset Maintenance,Mechanical Engineers,Invoice,BACS,No,01/04/2022 00:00,2022,1,OP/I279920,M5106,Repairs-Shelt-Responsive (BHS),B1001,Asset Maintenance,XXX99,*** UNASSIGNED ***,WCC,CEC Recharges,WC,CEC Recharges,A,Central Services
GUILDFORD BOROUGH COUNCIL,Responsive & Planned Maintenance,118990,B T U (Installation & Maintenance) Ltd,26/04/2022,30046564,610.14,0,Asset Maintenance,Mechanical Engineers,Invoice,BACS,No,01/04/2022 00:00,2022,1,OP/I279920,M5106,Repairs-Shelt-Responsive (BHS),B1001,Asset Maintenance,XXX99,*** UNASSIGNED ***,WCC,CEC Recharges,WC,CEC Recharges,A,Central Services
GUILDFORD BOROUGH COUNCIL,Responsive & Planned Maintenance,118990,B T U (Installation & Maintenance) Ltd,26/04/2022,30046564,283.03,0,Asset Maintenance,Mechanical Engineers,Invoice,BACS,No,01/04/2022 00:00,2022,1,OP/I279920,M5106,Repairs-Shelt-Responsive (BHS),B1001,Asset Maintenance,XXX99,*** UNASSIGNED ***,WCC,CEC Recharges,WC,CEC Recharges,A,Central Services
GUILDFORD BOROUGH COUNCIL,Guildford House,118990,B T U (Installation & Maintenance) Ltd,23/06/2022,30070527,1869.02,0,Asset Maintenance,Mechanical Engineers,Invoice,BACS,No,30/05/2022 00:00,2022,3,OP/I280591,A4511,Guildford House Administration,B1001,Asset Maintenance,CCA30,Museums & Galleries,CCA,Culture & Heritage,CC,Cultural & Related Services,C,"Cultural, Environmental & Planning Services"
GUILDFORD BOROUGH COUNCIL,Off Street Parking,118990,B T U (Installation & Maintenance) Ltd,23/06/2022,30070527,870,0,Asset Maintenance,Mechanical Engineers,Invoice,BACS,No,30/05/2022 00:00,2022,3,OP/I280591,B2219,Bedford Road Mscp,B1001,Asset Maintenance,HTP10,Off-Street Parking,HTP,Parking Services,HT,"Highways, Roads and Transport Services",H,"Highways, Roads and Transport Services"
GUILDFORD BOROUGH COUNCIL,Guildford House,118990,B T U (Installation & Maintenance) Ltd,23/06/2022,30070527,766.23,0,Asset Maintenance,Mechanical Engineers,Invoice,BACS,No,30/05/2022 00:00,2022,3,OP/I280591,A4511,Guildford House Administration,B1001,Asset Maintenance,CCA30,Museums & Galleries,CCA,Culture & Heritage,CC,Cultural & Related Services,C,"Cultural, Environmental & Planning Services"
GUILDFORD BOROUGH COUNCIL,Park and Ride Service,118990,B T U (Installation & Maintenance) Ltd,23/06/2022,30070527,314.71,0,Asset Maintenance,Mechanical Engineers,Invoice,BACS,No,30/05/2022 00:00,2022,3,OP/I280591,B5201,Artington Park & Ride,B1001,Asset Maintenance,HTT11,Support to Public Transport Operators - Bus Services,HTT,Public Transport,HT,"Highways, Roads and Transport Services",H,"Highways, Roads and Transport Services"
GUILDFORD BOROUGH COUNCIL,Responsive & Planned Maintenance,118990,B T U (Installation & Maintenance) Ltd,23/06/2022,30070527,1452.96,0,Asset Maintenance,Mechanical Engineers,Invoice,BACS,No,30/05/2022 00:00,2022,3,OP/I280591,M5106,Repairs-Shelt-Responsive (BHS),B1001,Asset Maintenance,XXX99,*** UNASSIGNED ***,WCC,CEC Recharges,WC,CEC Recharges,A,Central Services
GUILDFORD BOROUGH COUNCIL,Flats Communal Services,118990,B T U (Installation & Maintenance) Ltd,23/06/2022,30070527,492.6,0,Asset Maintenance,Mechanical Engineers,Invoice,BACS,No,30/05/2022 00:00,2022,3,OP/I280591,M2736,Friary House 1-61 (61),B1001,Asset Maintenance,XXX99,*** UNASSIGNED ***,WCC,CEC Recharges,WC,CEC Recharges,A,Central Services
GUILDFORD BOROUGH COUNCIL,Responsive & Planned Maintenance,118990,B T U (Installation & Maintenance) Ltd,23/06/2022,30070527,412.01,0,Asset Maintenance,Mechanical Engineers,Invoice,BACS,No,30/05/2022 00:00,2022,3,OP/I280591,M5106,Repairs-Shelt-Responsive (BHS),B1001,Asset Maintenance,XXX99,*** UNASSIGNED ***,WCC,CEC Recharges,WC,CEC Recharges,A,Central Services
GUILDFORD BOROUGH COUNCIL,Responsive & Planned Maintenance,118990,B T U (Installation & Maintenance) Ltd,23/06/2022,30070527,815.43,0,Asset Maintenance,Mechanical Engineers,Invoice,BACS,No,30/05/2022 00:00,2022,3,OP/I280591,M5106,Repairs-Shelt-Responsive (BHS),B1001,Asset Maintenance,XXX99,*** UNASSIGNED ***,WCC,CEC Recharges,WC,CEC Recharges,A,Central Services
GUILDFORD BOROUGH COUNCIL,Public Conveniences,118990,B T U (Installation & Maintenance) Ltd,12/04/2022,30046234,328.64,0,Asset Maintenance,Mechanical Engineers,Invoice,BACS,No,12/01/2022 00:00,2022,1,OP/I278688,K6500,Public Conveniences,B1001,Asset Maintenance,W3A48,Current Service Costs - Fleet Management,W3A,Current Service Costs adjustment,W3,Current Service Costs,W,Other Operating Income and Expenditure
GUILDFORD BOROUGH COUNCIL,Countryside and Parks Services,118990,B T U (Installation & Maintenance) Ltd,12/04/2022,30046234,555.12,0,Asset Maintenance,Mechanical Engineers,Invoice,BACS,No,12/01/2022 00:00,2022,1,OP/I278688,A1200,Sports Grounds,B1001,Asset Maintenance,CCE00,Community Parks & Open Spaces,CCE,Open Spaces,CC,Cultural & Related Services,C,"Cultural, Environmental & Planning Services"
GUILDFORD BOROUGH COUNCIL,Crematorium,118990,B T U (Installation & Maintenance) Ltd,12/04/2022,30046234,1975,0,Asset Maintenance,Mechanical Engineers,Invoice,BACS,No,12/01/2022 00:00,2022,1,OP/I278688,A1500,Crematorium,B1001,Asset Maintenance,CEA10,Crematoria,CEA,"Cemetery, Cremation and Mortuary Services",CE,Environmental & Regulatory Services,C,"Cultural, Environmental & Planning Services"
GUILDFORD BOROUGH COUNCIL,Other Property,118990,B T U (Installation & Maintenance) Ltd,12/04/2022,30046234,2463.43,0,Asset Maintenance,Mechanical Engineers,Invoice,BACS,No,12/01/2022 00:00,2022,1,OP/I278688,G7515,Old Millmead House,B1001,Asset Maintenance,DBX45,Property Services,DBX,Support Service and Management Costs,DB,Children's Social Care,E,Childrens and Education Services
GUILDFORD BOROUGH COUNCIL,Responsive & Planned Maintenance,118990,B T U (Installation & Maintenance) Ltd,12/04/2022,30046234,848.69,0,Asset Maintenance,Mechanical Engineers,Invoice,BACS,No,12/01/2022 00:00,2022,1,OP/I278688,M5106,Repairs-Shelt-Responsive (BHS),B1001,Asset Maintenance,XXX99,*** UNASSIGNED ***,WCC,CEC Recharges,WC,CEC Recharges,A,Central Services
GUILDFORD BOROUGH COUNCIL,Responsive & Planned Maintenance,118990,B T U (Installation & Maintenance) Ltd,12/04/2022,30046234,595.17,0,Asset Maintenance,Mechanical Engineers,Invoice,BACS,No,12/01/2022 00:00,2022,1,OP/I278688,M5106,Repairs-Shelt-Responsive (BHS),B1001,Asset Maintenance,XXX99,*** UNASSIGNED ***,WCC,CEC Recharges,WC,CEC Recharges,A,Central Services
GUILDFORD BOROUGH COUNCIL,Responsive & Planned Maintenance,118990,B T U (Installation & Maintenance) Ltd,12/04/2022,30046234,667,0,Asset Maintenance,Mechanical Engineers,Invoice,BACS,No,12/01/2022 00:00,2022,1,OP/I278688,M5113,Repairs-Responsive (BHS),B1001,Asset Maintenance,XXX99,*** UNASSIGNED ***,WCC,CEC Recharges,WC,CEC Recharges,A,Central Services
GUILDFORD BOROUGH COUNCIL,Responsive & Planned Maintenance,118990,B T U (Installation & Maintenance) Ltd,12/04/2022,30046234,1148.94,0,Asset Maintenance,Mechanical Engineers,Invoice,BACS,No,12/01/2022 00:00,2022,1,OP/I278688,M5106,Repairs-Shelt-Responsive (BHS),B1001,Asset Maintenance,XXX99,*** UNASSIGNED ***,WCC,CEC Recharges,WC,CEC Recharges,A,Central Services
GUILDFORD BOROUGH COUNCIL,Responsive & Planned Maintenance,118990,B T U (Installation & Maintenance) Ltd,28/04/2022,30047210,367.31,0,Asset Maintenance,Mechanical Engineers,Invoice,BACS,No,14/03/2022 00:00,2022,1,OP/I279557,M5106,Repairs-Shelt-Responsive (BHS),B1001,Asset Maintenance,XXX99,*** UNASSIGNED ***,WCC,CEC Recharges,WC,CEC Recharges,A,Central Services
GUILDFORD BOROUGH COUNCIL,Responsive & Planned Maintenance,118990,B T U (Installation & Maintenance) Ltd,28/04/2022,30047210,435.63,0,Asset Maintenance,Mechanical Engineers,Invoice,BACS,No,14/03/2022 00:00,2022,1,OP/I279557,M5106,Repairs-Shelt-Responsive (BHS),B1001,Asset Maintenance,XXX99,*** UNASSIGNED ***,WCC,CEC Recharges,WC,CEC Recharges,A,Central Services
GUILDFORD BOROUGH COUNCIL,Day Services,118990,B T U (Installation & Maintenance) Ltd,28/04/2022,30047210,320.46,0,Asset Maintenance,Mechanical Engineers,Invoice,BACS,No,14/03/2022 00:00,2022,1,OP/I279557,C8100,Community Hubs,B1001,Asset Maintenance,KGU00,Supporting People - Strategy,KGU,Supporting People,KG,Housing General Fund,K,Housing Services
GUILDFORD BOROUGH COUNCIL,Day Services,118990,B T U (Installation & Maintenance) Ltd,28/04/2022,30047210,299.5,0,Asset Maintenance,Mechanical Engineers,Invoice,BACS,No,14/03/2022 00:00,2022,1,OP/I279557,C8100,Community Hubs,B1001,Asset Maintenance,KGU00,Supporting People - Strategy,KGU,Supporting People,KG,Housing General Fund,K,Housing Services
GUILDFORD BOROUGH COUNCIL,Responsive & Planned Maintenance,118990,B T U (Installation & Maintenance) Ltd,28/04/2022,30047210,293.73,0,Asset Maintenance,Mechanical Engineers,Invoice,BACS,No,14/03/2022 00:00,2022,1,OP/I279557,M5106,Repairs-Shelt-Responsive (BHS),B1001,Asset Maintenance,XXX99,*** UNASSIGNED ***,WCC,CEC Recharges,WC,CEC Recharges,A,Central Services
GUILDFORD BOROUGH COUNCIL,Woking Road Depot,118990,B T U (Installation & Maintenance) Ltd,28/04/2022,30047210,487.34,0,Asset Maintenance,Mechanical Engineers,Invoice,BACS,No,14/03/2022 00:00,2022,1,OP/I279557,B4452,Woking Road Depot,B1001,Asset Maintenance,W3A48,Current Service Costs - Fleet Management,W3A,Current Service Costs adjustment,W3,Current Service Costs,W,Other Operating Income and Expenditure
GUILDFORD BOROUGH COUNCIL,Other Property,118990,B T U (Installation & Maintenance) Ltd,28/04/2022,30047210,318.46,0,Asset Maintenance,Mechanical Engineers,Invoice,BACS,No,14/03/2022 00:00,2022,1,OP/I279557,G7515,Old Millmead House,B1001,Asset Maintenance,DBX45,Property Services,DBX,Support Service and Management Costs,DB,Children's Social Care,E,Childrens and Education Services
GUILDFORD BOROUGH COUNCIL,Other Property,118990,B T U (Installation & Maintenance) Ltd,28/04/2022,30047210,326.43,0,Asset Maintenance,Mechanical Engineers,Invoice,BACS,No,14/03/2022 00:00,2022,1,OP/I279557,G7515,Old Millmead House,B1001,Asset Maintenance,DBX45,Property Services,DBX,Support Service and Management Costs,DB,Children's Social Care,E,Childrens and Education Services
GUILDFORD BOROUGH COUNCIL,Leisure and Community,118990,B T U (Installation & Maintenance) Ltd,28/04/2022,30047210,342.22,0,Asset Maintenance,Mechanical Engineers,Invoice,BACS,No,14/03/2022 00:00,2022,1,OP/I279557,A8141,Park Barn Youth and Community Centre,B1001,Asset Maintenance,CCD00,Community Centres and Public Halls,CCD,Recreation & Sport,CC,Cultural & Related Services,C,"Cultural, Environmental & Planning Services"
GUILDFORD BOROUGH COUNCIL,Crematorium,118990,B T U (Installation & Maintenance) Ltd,26/05/2022,30065182,554.08,0,Asset Maintenance,Mechanical Engineers,Invoice,BACS,No,09/05/2022 00:00,2022,2,OP/I280388,A1500,Crematorium,B1001,Asset Maintenance,CEA10,Crematoria,CEA,"Cemetery, Cremation and Mortuary Services",CE,Environmental & Regulatory Services,C,"Cultural, Environmental & Planning Services"
GUILDFORD BOROUGH COUNCIL,Woking Road Depot,118990,B T U (Installation & Maintenance) Ltd,26/05/2022,30065182,423.35,0,Asset Maintenance,Mechanical Engineers,Invoice,BACS,No,09/05/2022 00:00,2022,2,OP/I280388,B4452,Woking Road Depot,B1001,Asset Maintenance,W3A48,Current Service Costs - Fleet Management,W3A,Current Service Costs adjustment,W3,Current Service Costs,W,Other Operating Income and Expenditure
GUILDFORD BOROUGH COUNCIL,Crematorium,118990,B T U (Installation & Maintenance) Ltd,26/05/2022,30065182,429.57,0,Equipment,Mechanical Engineers,Invoice,BACS,No,09/05/2022 00:00,2022,2,OP/I280388,A1500,Crematorium,D2001,Equipment,CEA10,Crematoria,CEA,"Cemetery, Cremation and Mortuary Services",CE,Environmental & Regulatory Services,C,"Cultural, Environmental & Planning Services"
GUILDFORD BOROUGH COUNCIL,Flats Communal Services,118990,B T U (Installation & Maintenance) Ltd,26/05/2022,30065182,343.4,0,Asset Maintenance,Mechanical Engineers,Invoice,BACS,No,09/05/2022 00:00,2022,2,OP/I280388,M2652,Coppice Close 9-16 (8),B1001,Asset Maintenance,XXX99,*** UNASSIGNED ***,WCC,CEC Recharges,WC,CEC Recharges,A,Central Services
GUILDFORD BOROUGH COUNCIL,Responsive & Planned Maintenance,118990,B T U (Installation & Maintenance) Ltd,26/05/2022,30065182,2358.02,0,Asset Maintenance,Mechanical Engineers,Invoice,BACS,No,09/05/2022 00:00,2022,2,OP/I280388,M5106,Repairs-Shelt-Responsive (BHS),B1001,Asset Maintenance,XXX99,*** UNASSIGNED ***,WCC,CEC Recharges,WC,CEC Recharges,A,Central Services
GUILDFORD BOROUGH COUNCIL,Flats Communal Services,118990,B T U (Installation & Maintenance) Ltd,26/05/2022,30065182,367.56,0,Asset Maintenance,Mechanical Engineers,Invoice,BACS,No,09/05/2022 00:00,2022,2,OP/I280388,M2736,Friary House 1-61 (61),B1001,Asset Maintenance,XXX99,*** UNASSIGNED ***,WCC,CEC Recharges,WC,CEC Recharges,A,Central Services
GUILDFORD BOROUGH COUNCIL,Responsive & Planned Maintenance,118990,B T U (Installation & Maintenance) Ltd,26/05/2022,30065182,284.43,0,Equipment,Mechanical Engineers,Invoice,BACS,No,09/05/2022 00:00,2022,2,OP/I280388,M5106,Repairs-Shelt-Responsive (BHS),D2001,Equipment,XXX99,*** UNASSIGNED ***,WCC,CEC Recharges,WC,CEC Recharges,A,Central Services
GUILDFORD BOROUGH COUNCIL,Responsive & Planned Maintenance,118990,B T U (Installation & Maintenance) Ltd,26/05/2022,30065182,924.12,0,Asset Maintenance,Mechanical Engineers,Invoice,BACS,No,09/05/2022 00:00,2022,2,OP/I280388,M5106,Repairs-Shelt-Responsive (BHS),B1001,Asset Maintenance,XXX99,*** UNASSIGNED ***,WCC,CEC Recharges,WC,CEC Recharges,A,Central Services
GUILDFORD BOROUGH COUNCIL,Guildford House,118990,B T U (Installation & Maintenance) Ltd,14/06/2022,30067480,707.9,0,Asset Maintenance,Mechanical Engineers,Invoice,BACS,No,19/05/2022 00:00,2022,3,OP/I280495,A4511,Guildford House Administration,B1001,Asset Maintenance,CCA30,Museums & Galleries,CCA,Culture & Heritage,CC,Cultural & Related Services,C,"Cultural, Environmental & Planning Services"
GUILDFORD BOROUGH COUNCIL,Public Conveniences,118990,B T U (Installation & Maintenance) Ltd,14/06/2022,30067480,331.21,0,Asset Maintenance,Mechanical Engineers,Invoice,BACS,No,19/05/2022 00:00,2022,3,OP/I280495,K6500,Public Conveniences,B1001,Asset Maintenance,W3A48,Current Service Costs - Fleet Management,W3A,Current Service Costs adjustment,W3,Current Service Costs,W,Other Operating Income and Expenditure
GUILDFORD BOROUGH COUNCIL,Guildford Museum,118990,B T U (Installation & Maintenance) Ltd,14/06/2022,30067480,485.94,0,Asset Maintenance,Mechanical Engineers,Invoice,BACS,No,19/05/2022 00:00,2022,3,OP/I280495,A5511,Museum,B1001,Asset Maintenance,CCA30,Museums & Galleries,CCA,Culture & Heritage,CC,Cultural & Related Services,C,"Cultural, Environmental & Planning Services"
GUILDFORD BOROUGH COUNCIL,Responsive & Planned Maintenance,118990,B T U (Installation & Maintenance) Ltd,14/06/2022,30067480,366.24,0,Asset Maintenance,Mechanical Engineers,Invoice,BACS,No,19/05/2022 00:00,2022,3,OP/I280495,M5106,Repairs-Shelt-Responsive (BHS),B1001,Asset Maintenance,XXX99,*** UNASSIGNED ***,WCC,CEC Recharges,WC,CEC Recharges,A,Central Services
GUILDFORD BOROUGH COUNCIL,Responsive & Planned Maintenance,118990,B T U (Installation & Maintenance) Ltd,14/06/2022,30067480,312.41,0,Asset Maintenance,Mechanical Engineers,Invoice,BACS,No,19/05/2022 00:00,2022,3,OP/I280495,M5106,Repairs-Shelt-Responsive (BHS),B1001,Asset Maintenance,XXX99,*** UNASSIGNED ***,WCC,CEC Recharges,WC,CEC Recharges,A,Central Services
GUILDFORD BOROUGH COUNCIL,Responsive & Planned Maintenance,118990,B T U (Installation & Maintenance) Ltd,14/06/2022,30067480,764.02,0,Asset Maintenance,Mechanical Engineers,Invoice,BACS,No,19/05/2022 00:00,2022,3,OP/I280495,M5113,Repairs-Responsive (BHS),B1001,Asset Maintenance,XXX99,*** UNASSIGNED ***,WCC,CEC Recharges,WC,CEC Recharges,A,Central Services
GUILDFORD BOROUGH COUNCIL,Flats Communal Services,118990,B T U (Installation & Maintenance) Ltd,14/06/2022,30067480,1074.66,0,Asset Maintenance,Mechanical Engineers,Invoice,BACS,No,19/05/2022 00:00,2022,3,OP/I280495,M3513,Epsom Road Equity Share,B1001,Asset Maintenance,XXX99,*** UNASSIGNED ***,WCC,CEC Recharges,WC,CEC Recharges,A,Central Services
GUILDFORD BOROUGH COUNCIL,Flats Communal Services,118990,B T U (Installation & Maintenance) Ltd,14/06/2022,30067480,386.4,0,Asset Maintenance,Mechanical Engineers,Invoice,BACS,No,19/05/2022 00:00,2022,3,OP/I280495,M2736,Friary House 1-61 (61),B1001,Asset Maintenance,XXX99,*** UNASSIGNED ***,WCC,CEC Recharges,WC,CEC Recharges,A,Central Services
GUILDFORD BOROUGH COUNCIL,Public Conveniences,118990,B T U (Installation & Maintenance) Ltd,21/04/2022,30046785,572.33,0,Asset Maintenance,Mechanical Engineers,Invoice,BACS,No,26/01/2022 00:00,2022,1,OP/I278886,K6500,Public Conveniences,B1001,Asset Maintenance,W3A48,Current Service Costs - Fleet Management,W3A,Current Service Costs adjustment,W3,Current Service Costs,W,Other Operating Income and Expenditure
GUILDFORD BOROUGH COUNCIL,Leisure and Community,118990,B T U (Installation & Maintenance) Ltd,21/04/2022,30046785,415.82,0,Asset Maintenance,Mechanical Engineers,Invoice,BACS,No,26/01/2022 00:00,2022,1,OP/I278886,A8121,Bellfields Youth and Community Centre,B1001,Asset Maintenance,CCD00,Community Centres and Public Halls,CCD,Recreation & Sport,CC,Cultural & Related Services,C,"Cultural, Environmental & Planning Services"
GUILDFORD BOROUGH COUNCIL,Countryside and Parks Services,118990,B T U (Installation & Maintenance) Ltd,21/04/2022,30046785,2024,0,Asset Maintenance,Mechanical Engineers,Invoice,BACS,No,26/01/2022 00:00,2022,1,OP/I278886,A1130,Castle Grounds,B1001,Asset Maintenance,CCE00,Community Parks & Open Spaces,CCE,Open Spaces,CC,Cultural & Related Services,C,"Cultural, Environmental & Planning Services"
GUILDFORD BOROUGH COUNCIL,Other Property,118990,B T U (Installation & Maintenance) Ltd,21/04/2022,30046785,8904.68,0,Asset Maintenance,Mechanical Engineers,Invoice,BACS,No,26/01/2022 00:00,2022,1,OP/I278886,G7515,Old Millmead House,B1001,Asset Maintenance,DBX45,Property Services,DBX,Support Service and Management Costs,DB,Children's Social Care,E,Childrens and Education Services
GUILDFORD BOROUGH COUNCIL,Other Property,118990,B T U (Installation & Maintenance) Ltd,21/04/2022,30046785,26070.75,0,Asset Maintenance,Mechanical Engineers,Invoice,BACS,No,26/01/2022 00:00,2022,1,OP/I278886,G7515,Old Millmead House,B1001,Asset Maintenance,DBX45,Property Services,DBX,Support Service and Management Costs,DB,Children's Social Care,E,Childrens and Education Services
GUILDFORD BOROUGH COUNCIL,Other Property,118990,B T U (Installation & Maintenance) Ltd,21/04/2022,30046785,680.73,0,Asset Maintenance,Mechanical Engineers,Invoice,BACS,No,26/01/2022 00:00,2022,1,OP/I278886,G7515,Old Millmead House,B1001,Asset Maintenance,DBX45,Property Services,DBX,Support Service and Management Costs,DB,Children's Social Care,E,Childrens and Education Services
GUILDFORD BOROUGH COUNCIL,Woking Road Depot,118990,B T U (Installation & Maintenance) Ltd,21/04/2022,30046785,546.64,0,Asset Maintenance,Mechanical Engineers,Invoice,BACS,No,26/01/2022 00:00,2022,1,OP/I278886,B4452,Woking Road Depot,B1001,Asset Maintenance,W3A48,Current Service Costs - Fleet Management,W3A,Current Service Costs adjustment,W3,Current Service Costs,W,Other Operating Income and Expenditure
GUILDFORD BOROUGH COUNCIL,Crematorium,118990,B T U (Installation & Maintenance) Ltd,21/04/2022,30046785,617.54,0,Asset Maintenance,Mechanical Engineers,Invoice,BACS,No,26/01/2022 00:00,2022,1,OP/I278886,A1500,Crematorium,B1001,Asset Maintenance,CEA10,Crematoria,CEA,"Cemetery, Cremation and Mortuary Services",CE,Environmental & Regulatory Services,C,"Cultural, Environmental & Planning Services"
GUILDFORD BOROUGH COUNCIL,Guildford House,118990,B T U (Installation & Maintenance) Ltd,21/04/2022,30046785,827.35,0,Asset Maintenance,Mechanical Engineers,Invoice,BACS,No,26/01/2022 00:00,2022,1,OP/I278886,A4511,Guildford House Administration,B1001,Asset Maintenance,CCA30,Museums & Galleries,CCA,Culture & Heritage,CC,Cultural & Related Services,C,"Cultural, Environmental & Planning Services"
GUILDFORD BOROUGH COUNCIL,Guildhall,118990,B T U (Installation & Maintenance) Ltd,21/04/2022,30046785,817.65,0,Asset Maintenance,Mechanical Engineers,Invoice,BACS,No,26/01/2022 00:00,2022,1,OP/I278886,F3311,Guildhall,B1001,Asset Maintenance,CCA30,Museums & Galleries,CCA,Culture & Heritage,CC,Cultural & Related Services,C,"Cultural, Environmental & Planning Services"
GUILDFORD BOROUGH COUNCIL,Leisure and Community,118990,B T U (Installation & Maintenance) Ltd,21/04/2022,30046785,1095.91,0,Asset Maintenance,Mechanical Engineers,Invoice,BACS,No,26/01/2022 00:00,2022,1,OP/I278886,A8151,Stoughton Youth and Community Centre,B1001,Asset Maintenance,CCD00,Community Centres and Public Halls,CCD,Recreation & Sport,CC,Cultural & Related Services,C,"Cultural, Environmental & Planning Services"
GUILDFORD BOROUGH COUNCIL,Public Conveniences,118990,B T U (Installation & Maintenance) Ltd,21/04/2022,30046785,725,0,Asset Maintenance,Mechanical Engineers,Invoice,BACS,No,26/01/2022 00:00,2022,1,OP/I278886,K6500,Public Conveniences,B1001,Asset Maintenance,W3A48,Current Service Costs - Fleet Management,W3A,Current Service Costs adjustment,W3,Current Service Costs,W,Other Operating Income and Expenditure
GUILDFORD BOROUGH COUNCIL,Responsive & Planned Maintenance,118990,B T U (Installation & Maintenance) Ltd,21/04/2022,30046785,300.47,0,Asset Maintenance,Mechanical Engineers,Invoice,BACS,No,28/01/2022 00:00,2022,1,OP/I278886,M5113,Repairs-Responsive (BHS),B1001,Asset Maintenance,XXX99,*** UNASSIGNED ***,WCC,CEC Recharges,WC,CEC Recharges,A,Central Services
GUILDFORD BOROUGH COUNCIL,Responsive & Planned Maintenance,118990,B T U (Installation & Maintenance) Ltd,21/04/2022,30046785,254.27,0,Asset Maintenance,Mechanical Engineers,Invoice,BACS,No,28/01/2022 00:00,2022,1,OP/I278886,M5106,Repairs-Shelt-Responsive (BHS),B1001,Asset Maintenance,XXX99,*** UNASSIGNED ***,WCC,CEC Recharges,WC,CEC Recharges,A,Central Services
GUILDFORD BOROUGH COUNCIL,Responsive & Planned Maintenance,118990,B T U (Installation & Maintenance) Ltd,21/04/2022,30046785,307.88,0,Asset Maintenance,Mechanical Engineers,Invoice,BACS,No,28/01/2022 00:00,2022,1,OP/I278886,M5113,Repairs-Responsive (BHS),B1001,Asset Maintenance,XXX99,*** UNASSIGNED ***,WCC,CEC Recharges,WC,CEC Recharges,A,Central Services
GUILDFORD BOROUGH COUNCIL,Responsive & Planned Maintenance,118990,B T U (Installation & Maintenance) Ltd,21/04/2022,30046785,999.67,0,Asset Maintenance,Mechanical Engineers,Invoice,BACS,No,28/01/2022 00:00,2022,1,OP/I278886,M5113,Repairs-Responsive (BHS),B1001,Asset Maintenance,XXX99,*** UNASSIGNED ***,WCC,CEC Recharges,WC,CEC Recharges,A,Central Services
GUILDFORD BOROUGH COUNCIL,Responsive & Planned Maintenance,118990,B T U (Installation & Maintenance) Ltd,21/04/2022,30046785,1243.6,0,Asset Maintenance,Mechanical Engineers,Invoice,BACS,No,28/01/2022 00:00,2022,1,OP/I278886,M5113,Repairs-Responsive (BHS),B1001,Asset Maintenance,XXX99,*** UNASSIGNED ***,WCC,CEC Recharges,WC,CEC Recharges,A,Central Services
GUILDFORD BOROUGH COUNCIL,Responsive & Planned Maintenance,118990,B T U (Installation & Maintenance) Ltd,21/04/2022,30046785,442.81,0,Asset Maintenance,Mechanical Engineers,Invoice,BACS,No,28/01/2022 00:00,2022,1,OP/I278886,M5106,Repairs-Shelt-Responsive (BHS),B1001,Asset Maintenance,XXX99,*** UNASSIGNED ***,WCC,CEC Recharges,WC,CEC Recharges,A,Central Services
GUILDFORD BOROUGH COUNCIL,Heating,118990,B T U (Installation & Maintenance) Ltd,21/04/2022,30046785,869.88,0,Contractor Payments,Mechanical Engineers,Invoice,BACS,No,28/01/2022 00:00,2022,1,OP/I278886,N44075,Central heating boiler upgrades,1233,Contractor Payments,,,,,,,,
GUILDFORD BOROUGH COUNCIL,Responsive & Planned Maintenance,118990,B T U (Installation & Maintenance) Ltd,21/04/2022,30046785,3566.2,0,Asset Maintenance,Mechanical Engineers,Invoice,BACS,No,28/01/2022 00:00,2022,1,OP/I278886,M5113,Repairs-Responsive (BHS),B1001,Asset Maintenance,XXX99,*** UNASSIGNED ***,WCC,CEC Recharges,WC,CEC Recharges,A,Central Services
GUILDFORD BOROUGH COUNCIL,Responsive & Planned Maintenance,118990,B T U (Installation & Maintenance) Ltd,21/04/2022,30046785,692.05,0,Asset Maintenance,Mechanical Engineers,Invoice,BACS,No,28/01/2022 00:00,2022,1,OP/I278886,M5113,Repairs-Responsive (BHS),B1001,Asset Maintenance,XXX99,*** UNASSIGNED ***,WCC,CEC Recharges,WC,CEC Recharges,A,Central Services
GUILDFORD BOROUGH COUNCIL,Responsive & Planned Maintenance,118990,B T U (Installation & Maintenance) Ltd,21/04/2022,30046785,1769.49,0,Asset Maintenance,Mechanical Engineers,Invoice,BACS,No,28/01/2022 00:00,2022,1,OP/I278886,M5106,Repairs-Shelt-Responsive (BHS),B1001,Asset Maintenance,XXX99,*** UNASSIGNED ***,WCC,CEC Recharges,WC,CEC Recharges,A,Central Services
GUILDFORD BOROUGH COUNCIL,Flats Communal Services,118990,B T U (Installation & Maintenance) Ltd,21/04/2022,30046785,884.91,0,Asset Maintenance,Mechanical Engineers,Invoice,BACS,No,28/01/2022 00:00,2022,1,OP/I278886,M2736,Friary House 1-61 (61),B1001,Asset Maintenance,XXX99,*** UNASSIGNED ***,WCC,CEC Recharges,WC,CEC Recharges,A,Central Services
GUILDFORD BOROUGH COUNCIL,Cemeteries,118990,B T U (Installation & Maintenance) Ltd,21/04/2022,30046786,505.66,0,Asset Maintenance,Mechanical Engineers,Invoice,BACS,No,08/02/2022 00:00,2022,1,OP/I279055,A1430,Cemeteries - Stoke Cemetery,B1001,Asset Maintenance,CEA00,Cemeteries,CEA,"Cemetery, Cremation and Mortuary Services",CE,Environmental & Regulatory Services,C,"Cultural, Environmental & Planning Services"
GUILDFORD BOROUGH COUNCIL,Off Street Parking,118990,B T U (Installation & Maintenance) Ltd,21/04/2022,30046786,343.01,0,Asset Maintenance,Mechanical Engineers,Invoice,BACS,No,08/02/2022 00:00,2022,1,OP/I279055,B2111,Car Parks - Administration,B1001,Asset Maintenance,HTP10,Off-Street Parking,HTP,Parking Services,HT,"Highways, Roads and Transport Services",H,"Highways, Roads and Transport Services"
GUILDFORD BOROUGH COUNCIL,Guildford House,118990,B T U (Installation & Maintenance) Ltd,21/04/2022,30046786,1416.1,0,Asset Maintenance,Mechanical Engineers,Invoice,BACS,No,08/02/2022 00:00,2022,1,OP/I279055,A4511,Guildford House Administration,B1001,Asset Maintenance,CCA30,Museums & Galleries,CCA,Culture & Heritage,CC,Cultural & Related Services,C,"Cultural, Environmental & Planning Services"
GUILDFORD BOROUGH COUNCIL,Investment Properties,118990,B T U (Installation & Maintenance) Ltd,21/04/2022,30046786,708.52,0,Asset Maintenance,Mechanical Engineers,Invoice,BACS,No,08/02/2022 00:00,2022,1,OP/I279055,B6111,Investment Property,B1001,Asset Maintenance,CPJ00,Market Undertakings,CPJ,Economic Development,CP,Planning and Development Services,C,"Cultural, Environmental & Planning Services"
GUILDFORD BOROUGH COUNCIL,Off Street Parking,118990,B T U (Installation & Maintenance) Ltd,21/04/2022,30046786,1171.43,0,Asset Maintenance,Mechanical Engineers,Invoice,BACS,No,08/02/2022 00:00,2022,1,OP/I279055,B2219,Bedford Road Mscp,B1001,Asset Maintenance,HTP10,Off-Street Parking,HTP,Parking Services,HT,"Highways, Roads and Transport Services",H,"Highways, Roads and Transport Services"
GUILDFORD BOROUGH COUNCIL,Other Property,118990,B T U (Installation & Maintenance) Ltd,21/04/2022,30046786,1083.73,0,Asset Maintenance,Mechanical Engineers,Invoice,BACS,No,08/02/2022 00:00,2022,1,OP/I279055,G7515,Old Millmead House,B1001,Asset Maintenance,DBX45,Property Services,DBX,Support Service and Management Costs,DB,Children's Social Care,E,Childrens and Education Services
GUILDFORD BOROUGH COUNCIL,Responsive & Planned Maintenance,118990,B T U (Installation & Maintenance) Ltd,21/04/2022,30046786,874,0,Asset Maintenance,Mechanical Engineers,Invoice,BACS,No,08/02/2022 00:00,2022,1,OP/I279055,M5113,Repairs-Responsive (BHS),B1001,Asset Maintenance,XXX99,*** UNASSIGNED ***,WCC,CEC Recharges,WC,CEC Recharges,A,Central Services
GUILDFORD BOROUGH COUNCIL,Responsive & Planned Maintenance,118990,B T U (Installation & Maintenance) Ltd,21/04/2022,30046786,718.55,0,Asset Maintenance,Mechanical Engineers,Invoice,BACS,No,08/02/2022 00:00,2022,1,OP/I279055,M5106,Repairs-Shelt-Responsive (BHS),B1001,Asset Maintenance,XXX99,*** UNASSIGNED ***,WCC,CEC Recharges,WC,CEC Recharges,A,Central Services
GUILDFORD BOROUGH COUNCIL,Responsive & Planned Maintenance,118990,B T U (Installation & Maintenance) Ltd,21/04/2022,30046786,422.79,0,Asset Maintenance,Mechanical Engineers,Invoice,BACS,No,08/02/2022 00:00,2022,1,OP/I279055,M5113,Repairs-Responsive (BHS),B1001,Asset Maintenance,XXX99,*** UNASSIGNED ***,WCC,CEC Recharges,WC,CEC Recharges,A,Central Services
GUILDFORD BOROUGH COUNCIL,Day Services,118990,B T U (Installation & Maintenance) Ltd,21/04/2022,30046786,2246.53,0,Asset Maintenance,Mechanical Engineers,Invoice,BACS,No,08/02/2022 00:00,2022,1,OP/I279055,C8100,Community Hubs,B1001,Asset Maintenance,KGU00,Supporting People - Strategy,KGU,Supporting People,KG,Housing General Fund,K,Housing Services
GUILDFORD BOROUGH COUNCIL,Responsive & Planned Maintenance,118990,B T U (Installation & Maintenance) Ltd,21/04/2022,30046786,404.8,0,Asset Maintenance,Mechanical Engineers,Invoice,BACS,No,08/02/2022 00:00,2022,1,OP/I279055,M5113,Repairs-Responsive (BHS),B1001,Asset Maintenance,XXX99,*** UNASSIGNED ***,WCC,CEC Recharges,WC,CEC Recharges,A,Central Services
GUILDFORD BOROUGH COUNCIL,Day Services,118990,B T U (Installation & Maintenance) Ltd,21/04/2022,30046786,1144.54,0,Asset Maintenance,Mechanical Engineers,Invoice,BACS,No,08/02/2022 00:00,2022,1,OP/I279055,C8100,Community Hubs,B1001,Asset Maintenance,KGU00,Supporting People - Strategy,KGU,Supporting People,KG,Housing General Fund,K,Housing Services
GUILDFORD BOROUGH COUNCIL,Flats Communal Services,118990,B T U (Installation & Maintenance) Ltd,21/04/2022,30046786,255.9,0,Asset Maintenance,Mechanical Engineers,Invoice,BACS,No,08/02/2022 00:00,2022,1,OP/I279055,M2736,Friary House 1-61 (61),B1001,Asset Maintenance,XXX99,*** UNASSIGNED ***,WCC,CEC Recharges,WC,CEC Recharges,A,Central Services
GUILDFORD BOROUGH COUNCIL,Other Property,118990,B T U (Installation & Maintenance) Ltd,31/05/2022,30067414,1507.52,0,Asset Maintenance,Mechanical Engineers,Invoice,BACS,No,24/02/2022 00:00,2022,2,OP/I279276,G7515,Old Millmead House,B1001,Asset Maintenance,DBX45,Property Services,DBX,Support Service and Management Costs,DB,Children's Social Care,E,Childrens and Education Services
GUILDFORD BOROUGH COUNCIL,Other Property,118990,B T U (Installation & Maintenance) Ltd,31/05/2022,30067414,436.76,0,Asset Maintenance,Mechanical Engineers,Invoice,BACS,No,24/02/2022 00:00,2022,2,OP/I279276,G7515,Old Millmead House,B1001,Asset Maintenance,DBX45,Property Services,DBX,Support Service and Management Costs,DB,Children's Social Care,E,Childrens and Education Services
GUILDFORD BOROUGH COUNCIL,Responsive & Planned Maintenance,118990,B T U (Installation & Maintenance) Ltd,31/05/2022,30067414,1124.34,0,Asset Maintenance,Mechanical Engineers,Invoice,BACS,No,24/02/2022 00:00,2022,2,OP/I279276,M5113,Repairs-Responsive (BHS),B1001,Asset Maintenance,XXX99,*** UNASSIGNED ***,WCC,CEC Recharges,WC,CEC Recharges,A,Central Services
GUILDFORD BOROUGH COUNCIL,Responsive & Planned Maintenance,118990,B T U (Installation & Maintenance) Ltd,31/05/2022,30067414,529.79,0,Asset Maintenance,Mechanical Engineers,Invoice,BACS,No,24/02/2022 00:00,2022,2,OP/I279276,M5106,Repairs-Shelt-Responsive (BHS),B1001,Asset Maintenance,XXX99,*** UNASSIGNED ***,WCC,CEC Recharges,WC,CEC Recharges,A,Central Services
GUILDFORD BOROUGH COUNCIL,Flats Communal Services,118990,B T U (Installation & Maintenance) Ltd,31/05/2022,30067414,322.43,0,Asset Maintenance,Mechanical Engineers,Invoice,BACS,No,24/02/2022 00:00,2022,2,OP/I279276,M2656,Cabell Rd 193-207 Odd (8),B1001,Asset Maintenance,XXX99,*** UNASSIGNED ***,WCC,CEC Recharges,WC,CEC Recharges,A,Central Services
GUILDFORD BOROUGH COUNCIL,Responsive & Planned Maintenance,118990,B T U (Installation & Maintenance) Ltd,31/05/2022,30067414,485.6,0,Asset Maintenance,Mechanical Engineers,Invoice,BACS,No,24/02/2022 00:00,2022,2,OP/I279276,M5106,Repairs-Shelt-Responsive (BHS),B1001,Asset Maintenance,XXX99,*** UNASSIGNED ***,WCC,CEC Recharges,WC,CEC Recharges,A,Central Services
GUILDFORD BOROUGH COUNCIL,Responsive & Planned Maintenance,118990,B T U (Installation & Maintenance) Ltd,31/05/2022,30067414,301.9,0,Asset Maintenance,Mechanical Engineers,Invoice,BACS,No,24/02/2022 00:00,2022,2,OP/I279276,M5113,Repairs-Responsive (BHS),B1001,Asset Maintenance,XXX99,*** UNASSIGNED ***,WCC,CEC Recharges,WC,CEC Recharges,A,Central Services
GUILDFORD BOROUGH COUNCIL,Guildhall,118990,B T U (Installation & Maintenance) Ltd,16/06/2022,30070526,402.4,0,Asset Maintenance,Mechanical Engineers,Invoice,BACS,No,20/05/2022 00:00,2022,3,OP/I280523,F3311,Guildhall,B1001,Asset Maintenance,CCA30,Museums & Galleries,CCA,Culture & Heritage,CC,Cultural & Related Services,C,"Cultural, Environmental & Planning Services"
GUILDFORD BOROUGH COUNCIL,Responsive & Planned Maintenance,118990,B T U (Installation & Maintenance) Ltd,16/06/2022,30070526,454.6,0,Asset Maintenance,Mechanical Engineers,Invoice,BACS,No,20/05/2022 00:00,2022,3,OP/I280523,M5113,Repairs-Responsive (BHS),B1001,Asset Maintenance,XXX99,*** UNASSIGNED ***,WCC,CEC Recharges,WC,CEC Recharges,A,Central Services
GUILDFORD BOROUGH COUNCIL,Responsive & Planned Maintenance,118990,B T U (Installation & Maintenance) Ltd,16/06/2022,30070526,657.91,0,Asset Maintenance,Mechanical Engineers,Invoice,BACS,No,20/05/2022 00:00,2022,3,OP/I280523,M5106,Repairs-Shelt-Responsive (BHS),B1001,Asset Maintenance,XXX99,*** UNASSIGNED ***,WCC,CEC Recharges,WC,CEC Recharges,A,Central Services
GUILDFORD BOROUGH COUNCIL,Responsive & Planned Maintenance,118990,B T U (Installation & Maintenance) Ltd,16/06/2022,30070526,1756.4,0,Asset Maintenance,Mechanical Engineers,Invoice,BACS,No,20/05/2022 00:00,2022,3,OP/I280523,M5106,Repairs-Shelt-Responsive (BHS),B1001,Asset Maintenance,XXX99,*** UNASSIGNED ***,WCC,CEC Recharges,WC,CEC Recharges,A,Central Services
GUILDFORD BOROUGH COUNCIL,Responsive & Planned Maintenance,524580,B&Q Plc,26/05/2022,30066593,1666.67,0,Building Expenses,Do-It-Yourself (Diy) Stores,Invoice,BACS,No,22/05/2022 00:00,2022,2,15028-58424,M5113,Repairs-Responsive (BHS),B1002,Building Expenses,XXX99,*** UNASSIGNED ***,WCC,CEC Recharges,WC,CEC Recharges,A,Central Services
GUILDFORD BOROUGH COUNCIL,Homelessness Support,1000552,Badenoch and Clark Limited,26/04/2022,30045944,1235.43,0,Agency,,Invoice,BACS,No,31/03/2022 00:00,2022,1,SV7383,C3311,Homelessness,A5191,Agency,KGU00,Supporting People - Strategy,KGU,Supporting People,KG,Housing General Fund,K,Housing Services
GUILDFORD BOROUGH COUNCIL,Void Property Management,1000552,Badenoch and Clark Limited,03/05/2022,30046759,1147,0,Agency,,Invoice,BACS,No,06/04/2022 00:00,2022,1,SW2817,M1141,Void Property Mgmt (SHS),A5191,Agency,XXX99,*** UNASSIGNED ***,WCC,CEC Recharges,WC,CEC Recharges,A,Central Services
GUILDFORD BOROUGH COUNCIL,Homelessness Support,1000552,Badenoch and Clark Limited,28/04/2022,30045962,1235.43,0,Agency,,Invoice,BACS,No,04/04/2022 00:00,2022,1,SV8940,C3311,Homelessness,A5191,Agency,KGU00,Supporting People - Strategy,KGU,Supporting People,KG,Housing General Fund,K,Housing Services
GUILDFORD BOROUGH COUNCIL,Homelessness Support,1000552,Badenoch and Clark Limited,24/05/2022,30052585,1001.7,0,Agency,,Invoice,BACS,No,28/04/2022 00:00,2022,2,SY1958,C3311,Homelessness,A5191,Agency,KGU00,Supporting People - Strategy,KGU,Supporting People,KG,Housing General Fund,K,Housing Services
GUILDFORD BOROUGH COUNCIL,Homelessness Support,1000552,Badenoch and Clark Limited,24/05/2022,30052560,1001.7,0,Agency,,Invoice,BACS,No,28/04/2022 00:00,2022,2,SY1957,C3311,Homelessness,A5191,Agency,KGU00,Supporting People - Strategy,KGU,Supporting People,KG,Housing General Fund,K,Housing Services
GUILDFORD BOROUGH COUNCIL,Homelessness Support,1000552,Badenoch and Clark Limited,24/05/2022,30052570,1001.7,0,Agency,,Invoice,BACS,No,28/04/2022 00:00,2022,2,SY1997,C3311,Homelessness,A5191,Agency,KGU00,Supporting People - Strategy,KGU,Supporting People,KG,Housing General Fund,K,Housing Services
GUILDFORD BOROUGH COUNCIL,Void Property Management,1000552,Badenoch and Clark Limited,26/05/2022,30066118,1147,0,Agency,,Invoice,BACS,No,16/05/2022 00:00,2022,2,SZ6810,M1141,Void Property Mgmt (SHS),A5191,Agency,XXX99,*** UNASSIGNED ***,WCC,CEC Recharges,WC,CEC Recharges,A,Central Services
GUILDFORD BOROUGH COUNCIL,Homelessness Support,1000552,Badenoch and Clark Limited,26/05/2022,30066136,985.01,0,Agency,,Invoice,BACS,No,17/05/2022 00:00,2022,2,SZ6957,C3311,Homelessness,A5191,Agency,KGU00,Supporting People - Strategy,KGU,Supporting People,KG,Housing General Fund,K,Housing Services
GUILDFORD BOROUGH COUNCIL,Void Property Management,1000552,Badenoch and Clark Limited,26/05/2022,30064957,1100.5,0,Agency,,Invoice,BACS,No,09/05/2022 00:00,2022,2,SY9655,M1141,Void Property Mgmt (SHS),A5191,Agency,XXX99,*** UNASSIGNED ***,WCC,CEC Recharges,WC,CEC Recharges,A,Central Services
GUILDFORD BOROUGH COUNCIL,Homelessness Support,1000552,Badenoch and Clark Limited,26/05/2022,30064916,1001.7,0,Agency,,Invoice,BACS,No,09/05/2022 00:00,2022,2,SY9012,C3311,Homelessness,A5191,Agency,KGU00,Supporting People - Strategy,KGU,Supporting People,KG,Housing General Fund,K,Housing Services
GUILDFORD BOROUGH COUNCIL,Void Property Management,1000552,Badenoch and Clark Limited,26/05/2022,30052727,1147,0,Agency,,Invoice,BACS,No,03/05/2022 00:00,2022,2,SY3838,M1141,Void Property Mgmt (SHS),A5191,Agency,XXX99,*** UNASSIGNED ***,WCC,CEC Recharges,WC,CEC Recharges,A,Central Services
GUILDFORD BOROUGH COUNCIL,Homelessness Support,1000552,Badenoch and Clark Limited,26/05/2022,30052652,1110.22,0,Agency,,Invoice,BACS,No,03/05/2022 00:00,2022,2,SY3829,C3311,Homelessness,A5191,Agency,KGU00,Supporting People - Strategy,KGU,Supporting People,KG,Housing General Fund,K,Housing Services
GUILDFORD BOROUGH COUNCIL,Void Property Management,1000552,Badenoch and Clark Limited,05/05/2022,30046510,1147,0,Agency,,Invoice,BACS,No,11/04/2022 00:00,2022,1,SW5263,M1141,Void Property Mgmt (SHS),A5191,Agency,XXX99,*** UNASSIGNED ***,WCC,CEC Recharges,WC,CEC Recharges,A,Central Services
GUILDFORD BOROUGH COUNCIL,Homelessness Support,1000552,Badenoch and Clark Limited,05/05/2022,30052555,1235.43,0,Agency,,Invoice,BACS,No,12/04/2022 00:00,2022,2,SW5648,C3311,Homelessness,A5191,Agency,KGU00,Supporting People - Strategy,KGU,Supporting People,KG,Housing General Fund,K,Housing Services
GUILDFORD BOROUGH COUNCIL,Void Property Management,1000552,Badenoch and Clark Limited,17/05/2022,30064906,1038.5,0,Agency,,Invoice,BACS,No,19/04/2022 00:00,2022,2,SX2147,M1141,Void Property Mgmt (SHS),A5191,Agency,XXX99,*** UNASSIGNED ***,WCC,CEC Recharges,WC,CEC Recharges,A,Central Services
GUILDFORD BOROUGH COUNCIL,Homelessness Support,1000552,Badenoch and Clark Limited,21/06/2022,30067446,1235.43,0,Agency,,Invoice,BACS,No,26/05/2022 00:00,2022,3,TA8457,C3311,Homelessness,A5191,Agency,KGU00,Supporting People - Strategy,KGU,Supporting People,KG,Housing General Fund,K,Housing Services
GUILDFORD BOROUGH COUNCIL,Void Property Management,1000552,Badenoch and Clark Limited,10/05/2022,30046761,418.5,0,Agency,,Invoice,BACS,No,06/04/2022 00:00,2022,2,SW2815,M1141,Void Property Mgmt (SHS),A5191,Agency,XXX99,*** UNASSIGNED ***,WCC,CEC Recharges,WC,CEC Recharges,A,Central Services
GUILDFORD BOROUGH COUNCIL,Void Property Management,1000552,Badenoch and Clark Limited,10/05/2022,30046749,1147,0,Agency,,Invoice,BACS,No,06/04/2022 00:00,2022,2,SW2816,M1141,Void Property Mgmt (SHS),A5191,Agency,XXX99,*** UNASSIGNED ***,WCC,CEC Recharges,WC,CEC Recharges,A,Central Services
GUILDFORD BOROUGH COUNCIL,Void Property Management,1000552,Badenoch and Clark Limited,19/05/2022,30052680,1038.5,0,Agency,,Invoice,BACS,No,25/04/2022 00:00,2022,2,SX6519,M1141,Void Property Mgmt (SHS),A5191,Agency,XXX99,*** UNASSIGNED ***,WCC,CEC Recharges,WC,CEC Recharges,A,Central Services
GUILDFORD BOROUGH COUNCIL,Executive - Miscellaneous,702080,Balfour Beatty Civil Engineering Ltd,24/05/2022,30066355,297081.24,0,Consultants Fees,Civil Engineers,Invoice,BACS,No,18/05/2022 00:00,2022,2,CSUKOU/INV/125050,P79037,Ash Road Bridge,1221,Consultants Fees,XXX99,*** UNASSIGNED ***,WCC,CEC Recharges,WC,CEC Recharges,A,Central Services
GUILDFORD BOROUGH COUNCIL,Executive - Miscellaneous,702080,Balfour Beatty Civil Engineering Ltd,21/04/2022,30046744,130691.98,0,Consultants Fees,Civil Engineers,Invoice,BACS,No,13/04/2022 00:00,2022,1,CSUKOU/INV/123474,P79037,Ash Road Bridge,1221,Consultants Fees,XXX99,*** UNASSIGNED ***,WCC,CEC Recharges,WC,CEC Recharges,A,Central Services
GUILDFORD BOROUGH COUNCIL,Executive - Miscellaneous,702080,Balfour Beatty Civil Engineering Ltd,16/06/2022,30070426,107548.99,0,Consultants Fees,Civil Engineers,Invoice,BACS,No,14/06/2022 00:00,2022,3,CSUKOU/INV/126173,P79037,Ash Road Bridge,1221,Consultants Fees,XXX99,*** UNASSIGNED ***,WCC,CEC Recharges,WC,CEC Recharges,A,Central Services
GUILDFORD BOROUGH COUNCIL,Resources Caseworker,834160,Banner Group Limited,26/04/2022,30046673,315.59,0,Stationery & Paper,Other Office Equipment Suppliers,Invoice,BACS,No,30/03/2022 00:00,2022,1,8039548,G3550,Resources Caseworker,D5007,Stationery & Paper,DBX35,Finance (including Internal Audit),DBX,Support Service and Management Costs,DB,Children's Social Care,E,Childrens and Education Services
GUILDFORD BOROUGH COUNCIL,Resources Caseworker,834160,Banner Group Limited,14/06/2022,30067947,494.08,0,Stationery & Paper,Other Office Equipment Suppliers,Invoice,BACS,No,01/05/2022 00:00,2022,3,8288054,G3550,Resources Caseworker,D5007,Stationery & Paper,DBX35,Finance (including Internal Audit),DBX,Support Service and Management Costs,DB,Children's Social Care,E,Childrens and Education Services
GUILDFORD BOROUGH COUNCIL,Development Control,1000707,Bath Publishing,26/05/2022,30066122,330,0,Staff Costs,,Invoice,BACS,No,03/05/2022 00:00,2022,2,BP15214,D5200,Development Control Non Fee,A7100,Staff Costs,CPC00,Development Control Advice,CPC,Development Control,CP,Planning and Development Services,C,"Cultural, Environmental & Planning Services"
GUILDFORD BOROUGH COUNCIL,Day Services,908000,Beeline Taxis,23/06/2022,30068636,1914,0,Expenses,Taxis And Private Hire Companies,Invoice,BACS,No,31/05/2022 00:00,2022,3,452,C8100,Community Hubs,D8004,Expenses,KGU00,Supporting People - Strategy,KGU,Supporting People,KG,Housing General Fund,K,Housing Services
GUILDFORD BOROUGH COUNCIL,Day Services,908000,Beeline Taxis,24/05/2022,30052721,1849.54,0,Expenses,Taxis And Private Hire Companies,Invoice,BACS,No,01/05/2022 00:00,2022,2,406,C8100,Community Hubs,D8004,Expenses,KGU00,Supporting People - Strategy,KGU,Supporting People,KG,Housing General Fund,K,Housing Services
GUILDFORD BOROUGH COUNCIL,Day Services,908000,Beeline Taxis,10/05/2022,30052670,1186.02,0,Expenses,Taxis And Private Hire Companies,Invoice,BACS,No,01/04/2022 00:00,2022,2,361,C8100,Community Hubs,D8004,Expenses,KGU00,Supporting People - Strategy,KGU,Supporting People,KG,Housing General Fund,K,Housing Services
GUILDFORD BOROUGH COUNCIL,Off Street Parking,953400,Bemrose Booth Paragon Ltd,10/05/2022,30052662,3796,0,"Printing, Photocopying And Reprographics External",Printing Service Providers,Invoice,BACS,No,18/02/2022 00:00,2022,2,501344,B2216,General Upkeep- Urban Car Pks,D5005,"Printing, Photocopying And Reprographics External",HTP10,Off-Street Parking,HTP,Parking Services,HT,"Highways, Roads and Transport Services",H,"Highways, Roads and Transport Services"
GUILDFORD BOROUGH COUNCIL,Grants,929000,Bentley Mobility Services Limited,26/05/2022,30064983,3600,0,Grants To Private Owners,Mobility Disability Equipment Suppliers,Invoice,BACS,No,11/05/2022 00:00,2022,2,Bentley Mobility Services 28759,N51019,BCF Non Grant Expenditure,1311,Grants To Private Owners,XXX99,*** UNASSIGNED ***,WCC,CEC Recharges,WC,CEC Recharges,A,Central Services
GUILDFORD BOROUGH COUNCIL,Grants,929000,Bentley Mobility Services Limited,26/05/2022,30064980,2082,0,Grants To Private Owners,Mobility Disability Equipment Suppliers,Invoice,BACS,No,11/05/2022 00:00,2022,2,Bentley Mobility Services 28757,N51019,BCF Non Grant Expenditure,1311,Grants To Private Owners,XXX99,*** UNASSIGNED ***,WCC,CEC Recharges,WC,CEC Recharges,A,Central Services
GUILDFORD BOROUGH COUNCIL,Grants,929000,Bentley Mobility Services Limited,16/06/2022,30066804,5490,0,Grants To Private Owners,Mobility Disability Equipment Suppliers,Invoice,BACS,No,23/05/2022 00:00,2022,2,Bentley Mobility Services 28799,N51008,Mandatory DFG,1311,Grants To Private Owners,XXX99,*** UNASSIGNED ***,WCC,CEC Recharges,WC,CEC Recharges,A,Central Services
GUILDFORD BOROUGH COUNCIL,Grants,929000,Bentley Mobility Services Limited,10/05/2022,30046547,1145,0,Grants To Private Owners,Mobility Disability Equipment Suppliers,Invoice,BACS,No,13/04/2022 00:00,2022,1,28695 re 18 Coriander Crescent,N51019,BCF Non Grant Expenditure,1311,Grants To Private Owners,XXX99,*** UNASSIGNED ***,WCC,CEC Recharges,WC,CEC Recharges,A,Central Services
GUILDFORD BOROUGH COUNCIL,Grants,929000,Bentley Mobility Services Limited,19/05/2022,30047059,5077,0,Grants To Private Owners,Mobility Disability Equipment Suppliers,Invoice,BACS,No,25/04/2022 00:00,2022,1,Bentley Mobility Services 28723,N51019,BCF Non Grant Expenditure,1311,Grants To Private Owners,XXX99,*** UNASSIGNED ***,WCC,CEC Recharges,WC,CEC Recharges,A,Central Services
GUILDFORD BOROUGH COUNCIL,Millmead House,817300,Berendsen Workwear Ltd T/A Elis,26/04/2022,30046954,355.94,0,Services,Linen And Blanket Suppliers,Invoice,BACS,No,01/04/2022 00:00,2022,1,SN3471445,G7511,Millmead House,D6004,Services,DBX70,Other Management Costs,DBX,Support Service and Management Costs,DB,Children's Social Care,E,Childrens and Education Services
GUILDFORD BOROUGH COUNCIL,Millmead House,817300,Berendsen Workwear Ltd T/A Elis,26/04/2022,30046977,401.65,0,Services,Linen And Blanket Suppliers,Invoice,BACS,No,01/04/2022 00:00,2022,1,SN3470988,G7511,Millmead House,D6004,Services,DBX70,Other Management Costs,DBX,Support Service and Management Costs,DB,Children's Social Care,E,Childrens and Education Services
GUILDFORD BOROUGH COUNCIL,Guildhall,685740,Bernard Sims Associates,28/04/2022,30046350,420,0,Consultancy,Health And Safety Consultants,Invoice,BACS,No,08/04/2022 00:00,2022,1,52687,F3311,Guildhall,D6001,Consultancy,CCA30,Museums & Galleries,CCA,Culture & Heritage,CC,Cultural & Related Services,C,"Cultural, Environmental & Planning Services"
GUILDFORD BOROUGH COUNCIL,Countryside and Parks Services,685740,Bernard Sims Associates,21/06/2022,30067169,1750,0,Consultancy,Health And Safety Consultants,Invoice,BACS,No,26/05/2022 00:00,2022,3,53220,A1250,Stoke Park,D6001,Consultancy,CCE00,Community Parks & Open Spaces,CCE,Open Spaces,CC,Cultural & Related Services,C,"Cultural, Environmental & Planning Services"
GUILDFORD BOROUGH COUNCIL,Corporate Services,218050,Bevan Brittan LLP,05/05/2022,30052610,409.5,0,Services,Solicitors [Uk Only],Invoice,BACS,No,11/04/2022 00:00,2022,2,10177464,F1111,Corporate Services,D6004,Services,DBX70,Other Management Costs,DBX,Support Service and Management Costs,DB,Children's Social Care,E,Childrens and Education Services
GUILDFORD BOROUGH COUNCIL,Corporate Financial,943290,BGC European Holdings Lp,24/05/2022,30066510,7534.25,0,Brokers Commission,,Invoice,BACS,No,28/02/2022 00:00,2022,2,BGC-Feb-2022-00002637,F1135,Treasury Management Admin,D6003,Brokers Commission,DBX35,Finance (including Internal Audit),DBX,Support Service and Management Costs,DB,Children's Social Care,E,Childrens and Education Services
GUILDFORD BOROUGH COUNCIL,Revenue Balances,1000456,Birketts LLP,19/04/2022,30046362,512,0,OOE - G/L On Disp - Rev Inc,,Invoice,BACS,No,23/03/2022 00:00,2022,1,781381,V02005,Hra Net Revenue Account,2300,OOE - G/L On Disp - Rev Inc,,,,,,,,
GUILDFORD BOROUGH COUNCIL,Private Sector Housing Maintenance,938540,BJC Design (Southeast) Ltd,26/05/2022,30052701,468.6,0,Contractors,Surveyors And Inspectors,Invoice,BACS,No,03/05/2022 00:00,2022,2,INV000836,C5132,Care And Repair (Detr),D6012,Contractors,KGU00,Supporting People - Strategy,KGU,Supporting People,KG,Housing General Fund,K,Housing Services
GUILDFORD BOROUGH COUNCIL,Private Sector Housing Maintenance,938540,BJC Design (Southeast) Ltd,26/05/2022,30066322,529.42,0,Contractors,Surveyors And Inspectors,Invoice,BACS,No,18/05/2022 00:00,2022,2,846,C5132,Care And Repair (Detr),D6012,Contractors,KGU00,Supporting People - Strategy,KGU,Supporting People,KG,Housing General Fund,K,Housing Services
GUILDFORD BOROUGH COUNCIL,Private Sector Housing Maintenance,938540,BJC Design (Southeast) Ltd,26/05/2022,30066357,732.21,0,Contractors,Surveyors And Inspectors,Invoice,BACS,No,18/05/2022 00:00,2022,2,845,C5132,Care And Repair (Detr),D6012,Contractors,KGU00,Supporting People - Strategy,KGU,Supporting People,KG,Housing General Fund,K,Housing Services
GUILDFORD BOROUGH COUNCIL,Private Sector Housing Maintenance,938540,BJC Design (Southeast) Ltd,17/05/2022,30047022,3107.5,0,Contractors,Surveyors And Inspectors,Invoice,BACS,No,20/04/2022 00:00,2022,1,830,C5132,Care And Repair (Detr),D6012,Contractors,KGU00,Supporting People - Strategy,KGU,Supporting People,KG,Housing General Fund,K,Housing Services
GUILDFORD BOROUGH COUNCIL,Private Sector Housing Maintenance,938540,BJC Design (Southeast) Ltd,10/05/2022,30046880,543,0,Services,Surveyors And Inspectors,Invoice,BACS,No,13/04/2022 00:00,2022,1,827,C5132,Care And Repair (Detr),D6004,Services,KGU00,Supporting People - Strategy,KGU,Supporting People,KG,Housing General Fund,K,Housing Services
GUILDFORD BOROUGH COUNCIL,Executive - Miscellaneous,1000280,Blakedown Landscapes (SE) Ltd,17/05/2022,30064913,83586.84,0,Consultants Fees,,Invoice,BACS,No,05/05/2022 00:00,2022,2,L12147,P79100,Wuv - Allotment Relocation,1221,Consultants Fees,,,,,,,,
GUILDFORD BOROUGH COUNCIL,Executive - Miscellaneous,1000280,Blakedown Landscapes (SE) Ltd,07/06/2022,30067551,73266.04,0,Consultants Fees,,Invoice,BACS,No,27/05/2022 00:00,2022,3,L12173,P79100,Wuv - Allotment Relocation,1221,Consultants Fees,,,,,,,,
GUILDFORD BOROUGH COUNCIL,Corporate Property Management,892850,Bolderwood Solutions Ltd,05/05/2022,30046520,1177.5,0,Consultancy,Computer Systems Integrators,Invoice,BACS,No,11/04/2022 00:00,2022,1,GBC-0090,G4575,Asset Management,D6001,Consultancy,DBX45,Property Services,DBX,Support Service and Management Costs,DB,Children's Social Care,E,Childrens and Education Services
GUILDFORD BOROUGH COUNCIL,Other Property,495400,Bolton Gate Services Ltd,30/06/2022,30069453,418.5,0,Asset Maintenance,"Security Shutter, Door And Gate Contractors",Invoice,BACS,No,08/06/2022 00:00,2022,3,SI0074721,G7515,Old Millmead House,B1001,Asset Maintenance,DBX45,Property Services,DBX,Support Service and Management Costs,DB,Children's Social Care,E,Childrens and Education Services
GUILDFORD BOROUGH COUNCIL,Environmental Health,931600,Bracknell Forest Borough Council,14/04/2022,30031086,1248,0,Services,Local Government [Uk Only],Invoice,BACS,No,13/09/2021 00:00,2022,1,6619328,C1113,Environmental Control,D6004,Services,CEE25,Environmental Protection,CEE,Environmental Health (Regulatory Services),CE,Environmental & Regulatory Services,C,"Cultural, Environmental & Planning Services"
GUILDFORD BOROUGH COUNCIL,Environmental Health,931600,Bracknell Forest Borough Council,30/06/2022,30068848,1593.9,0,Services,Local Government [Uk Only],Invoice,BACS,No,08/06/2022 00:00,2022,3,6841524,C1113,Environmental Control,D6004,Services,CEE25,Environmental Protection,CEE,Environmental Health (Regulatory Services),CE,Environmental & Regulatory Services,C,"Cultural, Environmental & Planning Services"
GUILDFORD BOROUGH COUNCIL,Woking Road Depot,101300,Brakes,17/05/2022,30063808,462.64,0,Materials,Other Food Suppliers,Invoice,BACS,No,02/06/2021 00:00,2022,2,9303174891,B4452,Woking Road Depot,D2003,Materials,W3A48,Current Service Costs - Fleet Management,W3A,Current Service Costs adjustment,W3,Current Service Costs,W,Other Operating Income and Expenditure
GUILDFORD BOROUGH COUNCIL,Woking Road Depot,101300,Brakes,10/05/2022,30063798,334.59,0,Materials,Other Food Suppliers,Invoice,BACS,No,23/06/2021 00:00,2022,2,9303218263,B4452,Woking Road Depot,D2003,Materials,W3A48,Current Service Costs - Fleet Management,W3A,Current Service Costs adjustment,W3,Current Service Costs,W,Other Operating Income and Expenditure
GUILDFORD BOROUGH COUNCIL,Off Street Parking,202390,Brand Pest Control,14/04/2022,30045229,295,0,Cleaning Contractors,Pest And Vermin Control Service Providers,Invoice,BACS,No,15/03/2022 00:00,2022,1,2579,B2216,General Upkeep- Urban Car Pks,D6006,Cleaning Contractors,HTP10,Off-Street Parking,HTP,Parking Services,HT,"Highways, Roads and Transport Services",H,"Highways, Roads and Transport Services"
GUILDFORD BOROUGH COUNCIL,Crematorium,202390,Brand Pest Control,30/06/2022,30069328,360,0,Contractors,Pest And Vermin Control Service Providers,Invoice,BACS,No,08/06/2022 00:00,2022,3,2684,A1500,Crematorium,D6012,Contractors,CEA10,Crematoria,CEA,"Cemetery, Cremation and Mortuary Services",CE,Environmental & Regulatory Services,C,"Cultural, Environmental & Planning Services"
GUILDFORD BOROUGH COUNCIL,Modern Homes,129090,Breyer Group Plc,12/04/2022,30046236,13760.96,0,Contractor Payments,General Builders,Invoice,BACS,No,25/03/2022 00:00,2022,1,53858,N42068,"Kitchen, bathroom and electrical upgrades",1233,Contractor Payments,,,,,,,,
GUILDFORD BOROUGH COUNCIL,Modern Homes,129090,Breyer Group Plc,12/04/2022,30046236,10000,0,Contractor Payments,General Builders,Invoice,BACS,No,25/03/2022 00:00,2022,1,53858,N42069,Void Properties - refurbishment,1233,Contractor Payments,,,,,,,,
GUILDFORD BOROUGH COUNCIL,Modern Homes,129090,Breyer Group Plc,12/04/2022,30046237,16508.79,0,Contractor Payments,General Builders,Invoice,BACS,No,25/03/2022 00:00,2022,1,53859,N42068,"Kitchen, bathroom and electrical upgrades",1233,Contractor Payments,,,,,,,,
GUILDFORD BOROUGH COUNCIL,Modern Homes,129090,Breyer Group Plc,12/04/2022,30046237,15000,0,Contractor Payments,General Builders,Invoice,BACS,No,25/03/2022 00:00,2022,1,53859,N42069,Void Properties - refurbishment,1233,Contractor Payments,,,,,,,,
GUILDFORD BOROUGH COUNCIL,Modern Homes,129090,Breyer Group Plc,12/04/2022,30046238,14114.7,0,Contractor Payments,General Builders,Invoice,BACS,No,29/03/2022 00:00,2022,1,53906,N42068,"Kitchen, bathroom and electrical upgrades",1233,Contractor Payments,,,,,,,,
GUILDFORD BOROUGH COUNCIL,Modern Homes,129090,Breyer Group Plc,12/04/2022,30046238,6699.5,0,Contractor Payments,General Builders,Invoice,BACS,No,29/03/2022 00:00,2022,1,53906,N42069,Void Properties - refurbishment,1233,Contractor Payments,,,,,,,,
GUILDFORD BOROUGH COUNCIL,Modern Homes,129090,Breyer Group Plc,12/04/2022,30046239,15968.17,0,Contractor Payments,General Builders,Invoice,BACS,No,29/03/2022 00:00,2022,1,53907,N42068,"Kitchen, bathroom and electrical upgrades",1233,Contractor Payments,,,,,,,,
GUILDFORD BOROUGH COUNCIL,Modern Homes,129090,Breyer Group Plc,12/04/2022,30046239,12228.26,0,Contractor Payments,General Builders,Invoice,BACS,No,29/03/2022 00:00,2022,1,53907,N42069,Void Properties - refurbishment,1233,Contractor Payments,,,,,,,,
GUILDFORD BOROUGH COUNCIL,Modern Homes,129090,Breyer Group Plc,12/04/2022,30046240,90000,0,Contractor Payments,General Builders,Invoice,BACS,No,31/03/2022 00:00,2022,1,53932,N42069,Void Properties - refurbishment,1233,Contractor Payments,,,,,,,,
GUILDFORD BOROUGH COUNCIL,Modern Homes,129090,Breyer Group Plc,12/04/2022,30046241,64113.41,0,Contractor Payments,General Builders,Invoice,BACS,No,31/03/2022 00:00,2022,1,53933,N42069,Void Properties - refurbishment,1233,Contractor Payments,,,,,,,,
GUILDFORD BOROUGH COUNCIL,Modern Homes,129090,Breyer Group Plc,12/04/2022,30046242,16990.04,0,Contractor Payments,General Builders,Invoice,BACS,No,31/03/2022 00:00,2022,1,53941,N42068,"Kitchen, bathroom and electrical upgrades",1233,Contractor Payments,,,,,,,,
GUILDFORD BOROUGH COUNCIL,Heating,129090,Breyer Group Plc,28/04/2022,30047211,26955.71,0,Contractor Payments,General Builders,Invoice,BACS,No,21/04/2022 00:00,2022,1,54047,N44074,External wall insulation system to solid wall properties 2021/22,1233,Contractor Payments,,,,,,,,
GUILDFORD BOROUGH COUNCIL,Heating,129090,Breyer Group Plc,28/04/2022,30047211,17500,0,Contractor Payments,General Builders,Invoice,BACS,No,21/04/2022 00:00,2022,1,54047,N44074,External wall insulation system to solid wall properties 2021/22,1233,Contractor Payments,,,,,,,,
GUILDFORD BOROUGH COUNCIL,Heating,129090,Breyer Group Plc,28/04/2022,30047212,10000,0,Contractor Payments,General Builders,Invoice,BACS,No,21/04/2022 00:00,2022,1,54048,N44074,External wall insulation system to solid wall properties 2021/22,1233,Contractor Payments,,,,,,,,
GUILDFORD BOROUGH COUNCIL,Heating,129090,Breyer Group Plc,28/04/2022,30047212,18639.48,0,Contractor Payments,General Builders,Invoice,BACS,No,21/04/2022 00:00,2022,1,54048,N44074,External wall insulation system to solid wall properties 2021/22,1233,Contractor Payments,,,,,,,,
GUILDFORD BOROUGH COUNCIL,Modern Homes,129090,Breyer Group Plc,14/04/2022,30046565,17638.66,0,Contractor Payments,General Builders,Invoice,BACS,No,17/03/2022 00:00,2022,1,53788,N48057,Structural works - various properties,1233,Contractor Payments,,,,,,,,
GUILDFORD BOROUGH COUNCIL,Modern Homes,129090,Breyer Group Plc,14/04/2022,30046566,40144.97,0,Contractor Payments,General Builders,Invoice,BACS,No,05/04/2022 00:00,2022,1,53964,N48057,Structural works - various properties,1233,Contractor Payments,,,,,,,,
GUILDFORD BOROUGH COUNCIL,Modern Homes,129090,Breyer Group Plc,17/05/2022,30065069,22501.52,0,Contractor Payments,General Builders,Invoice,BACS,No,25/04/2022 00:00,2022,2,54054,N42068,"Kitchen, bathroom and electrical upgrades",1233,Contractor Payments,,,,,,,,
GUILDFORD BOROUGH COUNCIL,Modern Homes,129090,Breyer Group Plc,17/05/2022,30065070,25063.75,0,Contractor Payments,General Builders,Invoice,BACS,No,25/04/2022 00:00,2022,2,54055,N42068,"Kitchen, bathroom and electrical upgrades",1233,Contractor Payments,,,,,,,,
GUILDFORD BOROUGH COUNCIL,Modern Homes,129090,Breyer Group Plc,17/05/2022,30065071,21910.63,0,Contractor Payments,General Builders,Invoice,BACS,No,25/04/2022 00:00,2022,2,54056,N42068,"Kitchen, bathroom and electrical upgrades",1233,Contractor Payments,,,,,,,,
GUILDFORD BOROUGH COUNCIL,Modern Homes,129090,Breyer Group Plc,17/05/2022,30065072,2100,0,Contractor Payments,General Builders,Invoice,BACS,No,03/05/2022 00:00,2022,2,54098,N42064,Kitchens & Bathrooms 2019-20,1233,Contractor Payments,,,,,,,,
GUILDFORD BOROUGH COUNCIL,Modern Homes,129090,Breyer Group Plc,17/05/2022,30065073,350,0,Contractor Payments,General Builders,Invoice,BACS,No,03/05/2022 00:00,2022,2,54099,N42064,Kitchens & Bathrooms 2019-20,1233,Contractor Payments,,,,,,,,
GUILDFORD BOROUGH COUNCIL,Modern Homes,129090,Breyer Group Plc,14/06/2022,30068865,28902.65,0,Contractor Payments,General Builders,Invoice,BACS,No,30/05/2022 00:00,2022,3,54307,N42068,"Kitchen, bathroom and electrical upgrades",1233,Contractor Payments,,,,,,,,
GUILDFORD BOROUGH COUNCIL,Modern Homes,129090,Breyer Group Plc,14/06/2022,30068866,23369,0,Contractor Payments,General Builders,Invoice,BACS,No,30/05/2022 00:00,2022,3,54308,N42069,Void Properties - refurbishment,1233,Contractor Payments,,,,,,,,
GUILDFORD BOROUGH COUNCIL,Heating,129090,Breyer Group Plc,14/06/2022,30068867,7632.79,0,Contractor Payments,General Builders,Invoice,BACS,No,30/05/2022 00:00,2022,3,54313,N44074,External wall insulation system to solid wall properties 2021/22,1233,Contractor Payments,,,,,,,,
GUILDFORD BOROUGH COUNCIL,Modern Homes,129090,Breyer Group Plc,14/06/2022,30068868,7481.43,0,Contractor Payments,General Builders,Invoice,BACS,No,30/05/2022 00:00,2022,3,54314,N48057,Structural works - various properties,1233,Contractor Payments,,,,,,,,
GUILDFORD BOROUGH COUNCIL,Modern Homes,129090,Breyer Group Plc,14/06/2022,30068869,26000,0,Contractor Payments,General Builders,Invoice,BACS,No,30/05/2022 00:00,2022,3,54315,N42069,Void Properties - refurbishment,1233,Contractor Payments,,,,,,,,
GUILDFORD BOROUGH COUNCIL,Modern Homes,129090,Breyer Group Plc,14/06/2022,30068870,20000,0,Contractor Payments,General Builders,Invoice,BACS,No,30/05/2022 00:00,2022,3,54317,N42068,"Kitchen, bathroom and electrical upgrades",1233,Contractor Payments,,,,,,,,
GUILDFORD BOROUGH COUNCIL,Modern Homes,129090,Breyer Group Plc,14/06/2022,30068871,12500,0,Contractor Payments,General Builders,Invoice,BACS,No,30/05/2022 00:00,2022,3,54318,N42069,Void Properties - refurbishment,1233,Contractor Payments,,,,,,,,
GUILDFORD BOROUGH COUNCIL,Modern Homes,129090,Breyer Group Plc,14/06/2022,30068872,10000,0,Contractor Payments,General Builders,Invoice,BACS,No,30/05/2022 00:00,2022,3,54319,N42069,Void Properties - refurbishment,1233,Contractor Payments,,,,,,,,
GUILDFORD BOROUGH COUNCIL,Modern Homes,129090,Breyer Group Plc,14/06/2022,30068873,1750,0,Contractor Payments,General Builders,Invoice,BACS,No,30/05/2022 00:00,2022,3,54320,N42068,"Kitchen, bathroom and electrical upgrades",1233,Contractor Payments,,,,,,,,
GUILDFORD BOROUGH COUNCIL,Modern Homes,129090,Breyer Group Plc,14/06/2022,30068874,20000,0,Contractor Payments,General Builders,Invoice,BACS,No,06/06/2022 00:00,2022,3,54330,N42068,"Kitchen, bathroom and electrical upgrades",1233,Contractor Payments,,,,,,,,
GUILDFORD BOROUGH COUNCIL,Modern Homes,129090,Breyer Group Plc,14/06/2022,30068875,20000,0,Contractor Payments,General Builders,Invoice,BACS,No,06/06/2022 00:00,2022,3,54331,N42068,"Kitchen, bathroom and electrical upgrades",1233,Contractor Payments,,,,,,,,
GUILDFORD BOROUGH COUNCIL,Modern Homes,129090,Breyer Group Plc,14/06/2022,30068876,10728.39,0,Contractor Payments,General Builders,Invoice,BACS,No,07/06/2022 00:00,2022,3,54347,N47034,Pitched roof replacement,1233,Contractor Payments,,,,,,,,
GUILDFORD BOROUGH COUNCIL,Modern Homes,129090,Breyer Group Plc,14/06/2022,30068877,10728.39,0,Contractor Payments,General Builders,Invoice,BACS,No,07/06/2022 00:00,2022,3,54348,N47034,Pitched roof replacement,1233,Contractor Payments,,,,,,,,
GUILDFORD BOROUGH COUNCIL,Modern Homes,129090,Breyer Group Plc,14/06/2022,30068878,13839.05,0,Contractor Payments,General Builders,Invoice,BACS,No,07/06/2022 00:00,2022,3,54349,N47034,Pitched roof replacement,1233,Contractor Payments,,,,,,,,
GUILDFORD BOROUGH COUNCIL,Modern Homes,129090,Breyer Group Plc,14/06/2022,30068879,13839.05,0,Contractor Payments,General Builders,Invoice,BACS,No,07/06/2022 00:00,2022,3,54350,N47034,Pitched roof replacement,1233,Contractor Payments,,,,,,,,
GUILDFORD BOROUGH COUNCIL,Modern Homes,129090,Breyer Group Plc,14/06/2022,30069452,33605.82,0,Contractor Payments,General Builders,Invoice,BACS,No,30/05/2022 00:00,2022,3,54312,N48057,Structural works - various properties,1233,Contractor Payments,,,,,,,,
GUILDFORD BOROUGH COUNCIL,Modern Homes,129090,Breyer Group Plc,30/06/2022,30073510,1258.35,0,Contractor Payments,General Builders,Invoice,BACS,No,21/04/2022 00:00,2022,3,54049,N48057,Structural works - various properties,1233,Contractor Payments,,,,,,,,
GUILDFORD BOROUGH COUNCIL,Modern Homes,129090,Breyer Group Plc,30/06/2022,30073511,440,0,Contractor Payments,General Builders,Invoice,BACS,No,24/05/2022 00:00,2022,3,54267,N48057,Structural works - various properties,1233,Contractor Payments,,,,,,,,
GUILDFORD BOROUGH COUNCIL,Modern Homes,129090,Breyer Group Plc,30/06/2022,30073512,531.63,0,Contractor Payments,General Builders,Invoice,BACS,No,23/06/2022 00:00,2022,3,54506,N42069,Void Properties - refurbishment,1233,Contractor Payments,,,,,,,,
GUILDFORD BOROUGH COUNCIL,Modern Homes,129090,Breyer Group Plc,21/04/2022,30046787,20449.75,0,Contractor Payments,General Builders,Invoice,BACS,No,12/04/2022 00:00,2022,1,54007,N42069,Void Properties - refurbishment,1233,Contractor Payments,,,,,,,,
GUILDFORD BOROUGH COUNCIL,Modern Homes,129090,Breyer Group Plc,07/06/2022,30068478,16015.84,0,Contractor Payments,General Builders,Invoice,BACS,No,24/05/2022 00:00,2022,3,54242,N47034,Pitched roof replacement,1233,Contractor Payments,,,,,,,,
GUILDFORD BOROUGH COUNCIL,Modern Homes,129090,Breyer Group Plc,07/06/2022,30068479,10194.7,0,Contractor Payments,General Builders,Invoice,BACS,No,24/05/2022 00:00,2022,3,54243,N47034,Pitched roof replacement,1233,Contractor Payments,,,,,,,,
GUILDFORD BOROUGH COUNCIL,Modern Homes,129090,Breyer Group Plc,07/06/2022,30068480,10194.7,0,Contractor Payments,General Builders,Invoice,BACS,No,24/05/2022 00:00,2022,3,54244,N47034,Pitched roof replacement,1233,Contractor Payments,,,,,,,,
GUILDFORD BOROUGH COUNCIL,Modern Homes,129090,Breyer Group Plc,07/06/2022,30068481,15000.09,0,Contractor Payments,General Builders,Invoice,BACS,No,24/05/2022 00:00,2022,3,54245,N47034,Pitched roof replacement,1233,Contractor Payments,,,,,,,,
GUILDFORD BOROUGH COUNCIL,Modern Homes,129090,Breyer Group Plc,07/06/2022,30068482,41590.95,0,Contractor Payments,General Builders,Invoice,BACS,No,24/05/2022 00:00,2022,3,54246,N47034,Pitched roof replacement,1233,Contractor Payments,,,,,,,,
GUILDFORD BOROUGH COUNCIL,Modern Homes,129090,Breyer Group Plc,07/06/2022,30068483,42465.75,0,Contractor Payments,General Builders,Invoice,BACS,No,24/05/2022 00:00,2022,3,54247,N47034,Pitched roof replacement,1233,Contractor Payments,,,,,,,,
GUILDFORD BOROUGH COUNCIL,Modern Homes,129090,Breyer Group Plc,07/06/2022,30068484,42084.39,0,Contractor Payments,General Builders,Invoice,BACS,No,24/05/2022 00:00,2022,3,54248,N47034,Pitched roof replacement,1233,Contractor Payments,,,,,,,,
GUILDFORD BOROUGH COUNCIL,Modern Homes,129090,Breyer Group Plc,07/06/2022,30068485,22133.57,0,Contractor Payments,General Builders,Invoice,BACS,No,24/05/2022 00:00,2022,3,54249,N47034,Pitched roof replacement,1233,Contractor Payments,,,,,,,,
GUILDFORD BOROUGH COUNCIL,Modern Homes,129090,Breyer Group Plc,07/06/2022,30068486,16384.38,0,Contractor Payments,General Builders,Invoice,BACS,No,24/05/2022 00:00,2022,3,54250,N47034,Pitched roof replacement,1233,Contractor Payments,,,,,,,,
GUILDFORD BOROUGH COUNCIL,Modern Homes,129090,Breyer Group Plc,21/06/2022,30071384,5414.04,0,Contractor Payments,General Builders,Invoice,BACS,No,15/06/2022 00:00,2022,3,54415,N48057,Structural works - various properties,1233,Contractor Payments,,,,,,,,
GUILDFORD BOROUGH COUNCIL,Modern Homes,129090,Breyer Group Plc,10/05/2022,30063876,30000,0,Contractor Payments,General Builders,Invoice,BACS,No,29/04/2022 00:00,2022,2,54087,N42069,Void Properties - refurbishment,1233,Contractor Payments,,,,,,,,
GUILDFORD BOROUGH COUNCIL,Modern Homes,129090,Breyer Group Plc,10/05/2022,30063877,17500,0,Contractor Payments,General Builders,Invoice,BACS,No,29/04/2022 00:00,2022,2,54090,N42068,"Kitchen, bathroom and electrical upgrades",1233,Contractor Payments,,,,,,,,
GUILDFORD BOROUGH COUNCIL,Industrial Estates,412860,British Gas (Payment Area 60),28/04/2022,30045973,430.94,0,Utilities,Mains Gas Suppliers,Invoice,BACS,No,04/04/2022 00:00,2022,1,281045405,B5331,Lysons Avenue Small Units,B2001,Utilities,,,,,,,,
GUILDFORD BOROUGH COUNCIL,Industrial Estates,412860,British Gas (Payment Area 60),30/06/2022,30070351,297.43,0,Utilities,Mains Gas Suppliers,Invoice,BACS,No,06/06/2022 00:00,2022,3,963842528,B5331,Lysons Avenue Small Units,B2001,Utilities,,,,,,,,
GUILDFORD BOROUGH COUNCIL,Telephony Holding Account (Service),105900,British Telecom (Durham),03/05/2022,30047428,9055.91,0,Telephones & Broadband,Fixed Telecoms Service Providers,Invoice,BACS,No,23/04/2022 00:00,2022,1,M264W,G1151,Telephony Holding Account,D7004,Telephones & Broadband,,,,,,,,
GUILDFORD BOROUGH COUNCIL,Telephony Holding Account (Service),105900,British Telecom (Durham),19/05/2022,30065951,401.33,0,Telephones & Broadband,Fixed Telecoms Service Providers,Invoice,BACS,No,11/04/2022 00:00,2022,2,Q0115F,G1151,Telephony Holding Account,D7004,Telephones & Broadband,,,,,,,,
GUILDFORD BOROUGH COUNCIL,Other Employee Costs,722200,Brooks Jordan Training Services Limited,14/06/2022,30069407,2385,0,Staff Costs,Other Training Providers,Invoice,BACS,No,06/04/2022 00:00,2022,3,2022-03,G1121,Organisation Development,A7100,Staff Costs,DBX70,Other Management Costs,DBX,Support Service and Management Costs,DB,Children's Social Care,E,Childrens and Education Services
GUILDFORD BOROUGH COUNCIL,Acquisition of Land and Buildings,1000649,Brookworth Homes (Holdings) Limited,28/04/2022,30046367,60338,0,Property Purchase-Price,,Invoice,BACS,No,04/04/2022 00:00,2022,1,219005,N10026,20 The Street,1566,Property Purchase-Price,,,,,,,,
GUILDFORD BOROUGH COUNCIL,Executive - Miscellaneous,979780,Bryan Cave Leighton Paisner Llp,16/06/2022,30070336,15000,0,Consultants Fees,Third Party Supplier,Invoice,BACS,No,26/04/2022 00:00,2022,3,1257104,P79036,Ash Bridge Land Acquistion,1221,Consultants Fees,XXX99,*** UNASSIGNED ***,WCC,CEC Recharges,WC,CEC Recharges,A,Central Services
GUILDFORD BOROUGH COUNCIL,Heating,900320,BSW Building Services Ltd,07/04/2022,30046097,9937.42,0,Contractor Payments,"Plumbing, Heating And Ac (Hvac) Contractors",Invoice,BACS,No,13/01/2022 00:00,2022,1,77246,N44066,Boiler Ugrade Friary House,1233,Contractor Payments,,,,,,,,
GUILDFORD BOROUGH COUNCIL,Heating,900320,BSW Building Services Ltd,07/04/2022,30046098,11685.82,0,Contractor Payments,"Plumbing, Heating And Ac (Hvac) Contractors",Invoice,BACS,No,18/03/2022 00:00,2022,1,77392,N44076,Domestic Air Source Heat Pump heating  systems,1233,Contractor Payments,,,,,,,,
GUILDFORD BOROUGH COUNCIL,Heating,900320,BSW Building Services Ltd,07/04/2022,30046099,9959.23,0,Contractor Payments,"Plumbing, Heating And Ac (Hvac) Contractors",Invoice,BACS,No,18/03/2022 00:00,2022,1,77393,N44073,ASHP installations 2020-21,1233,Contractor Payments,,,,,,,,
GUILDFORD BOROUGH COUNCIL,Heating,900320,BSW Building Services Ltd,07/04/2022,30046100,9970.12,0,Contractor Payments,"Plumbing, Heating And Ac (Hvac) Contractors",Invoice,BACS,No,18/03/2022 00:00,2022,1,77394,N44066,Boiler Ugrade Friary House,1233,Contractor Payments,,,,,,,,
GUILDFORD BOROUGH COUNCIL,Heating,900320,BSW Building Services Ltd,12/04/2022,30046252,9546.52,0,Contractor Payments,"Plumbing, Heating And Ac (Hvac) Contractors",Invoice,BACS,No,18/03/2022 00:00,2022,1,77395,N44066,Boiler Ugrade Friary House,1233,Contractor Payments,,,,,,,,
GUILDFORD BOROUGH COUNCIL,Heating,900320,BSW Building Services Ltd,28/04/2022,30047223,9402.32,0,Contractor Payments,"Plumbing, Heating And Ac (Hvac) Contractors",Invoice,BACS,No,21/03/2022 00:00,2022,1,77398,N44073,ASHP installations 2020-21,1233,Contractor Payments,,,,,,,,
GUILDFORD BOROUGH COUNCIL,Heating,900320,BSW Building Services Ltd,28/04/2022,30047224,9481.92,0,Contractor Payments,"Plumbing, Heating And Ac (Hvac) Contractors",Invoice,BACS,No,21/03/2022 00:00,2022,1,77399,N44073,ASHP installations 2020-21,1233,Contractor Payments,,,,,,,,
GUILDFORD BOROUGH COUNCIL,Responsive & Planned Maintenance,900320,BSW Building Services Ltd,14/04/2022,30046576,274.49,0,Asset Maintenance,"Plumbing, Heating And Ac (Hvac) Contractors",Invoice,BACS,No,31/01/2022 00:00,2022,1,77288,M5106,Repairs-Shelt-Responsive (BHS),B1001,Asset Maintenance,XXX99,*** UNASSIGNED ***,WCC,CEC Recharges,WC,CEC Recharges,A,Central Services
GUILDFORD BOROUGH COUNCIL,Heating,900320,BSW Building Services Ltd,21/04/2022,30046803,9420.32,0,Contractor Payments,"Plumbing, Heating And Ac (Hvac) Contractors",Invoice,BACS,No,21/03/2022 00:00,2022,1,77396,N44076,Domestic Air Source Heat Pump heating  systems,1233,Contractor Payments,,,,,,,,
GUILDFORD BOROUGH COUNCIL,Heating,900320,BSW Building Services Ltd,21/04/2022,30046804,9890.52,0,Contractor Payments,"Plumbing, Heating And Ac (Hvac) Contractors",Invoice,BACS,No,21/03/2022 00:00,2022,1,77397,N44076,Domestic Air Source Heat Pump heating  systems,1233,Contractor Payments,,,,,,,,
GUILDFORD BOROUGH COUNCIL,Town Centre CCTV,777540,BT Global Services,12/05/2022,30064011,6926.94,0,Telephones & Broadband,Fixed Telecoms Service Providers,Invoice,BACS,No,06/04/2021 00:00,2022,2,20031888,F7540,Town Centre CCTV System,D7004,Telephones & Broadband,HTX10,Highways & Transport - Professional and Engineering Services,HTX,Highways Management and Support,HT,"Highways, Roads and Transport Services",H,"Highways, Roads and Transport Services"
GUILDFORD BOROUGH COUNCIL,Town Centre CCTV,777540,BT Global Services,30/06/2022,30073419,6926.94,0,Telephones & Broadband,Fixed Telecoms Service Providers,Invoice,BACS,No,01/04/2022 00:00,2022,3,20033615,F7540,Town Centre CCTV System,D7004,Telephones & Broadband,HTX10,Highways & Transport - Professional and Engineering Services,HTX,Highways Management and Support,HT,"Highways, Roads and Transport Services",H,"Highways, Roads and Transport Services"
GUILDFORD BOROUGH COUNCIL,Lead Specialist - ICT,777540,BT Global Services,16/06/2022,30066989,11543.08,0,Telephones & Broadband,Fixed Telecoms Service Providers,Invoice,BACS,No,24/05/2022 00:00,2022,2,597777,G3548,ICT Technical & Infrastructure,D7004,Telephones & Broadband,DBX70,Other Management Costs,DBX,Support Service and Management Costs,DB,Children's Social Care,E,Childrens and Education Services
GUILDFORD BOROUGH COUNCIL,Lead Specialist - ICT,777540,BT Global Services,19/05/2022,30047158,12054.45,0,Telephones & Broadband,Fixed Telecoms Service Providers,Invoice,BACS,No,25/04/2022 00:00,2022,1,595557,G3548,ICT Technical & Infrastructure,D7004,Telephones & Broadband,DBX70,Other Management Costs,DBX,Support Service and Management Costs,DB,Children's Social Care,E,Childrens and Education Services
GUILDFORD BOROUGH COUNCIL,New Build,1000577,Building Design Partnership Limited,26/04/2022,30045655,18900,0,Consultants Fees,,Invoice,BACS,No,30/03/2022 00:00,2022,1,BL0099962,N30011,Guildford Park,1221,Consultants Fees,XXX99,*** UNASSIGNED ***,WCC,CEC Recharges,WC,CEC Recharges,A,Central Services
GUILDFORD BOROUGH COUNCIL,New Build,1000577,Building Design Partnership Limited,28/06/2022,30067932,24300,0,Consultants Fees,,Invoice,BACS,No,01/06/2022 00:00,2022,3,BL0100705,N30011,Guildford Park,1221,Consultants Fees,XXX99,*** UNASSIGNED ***,WCC,CEC Recharges,WC,CEC Recharges,A,Central Services
GUILDFORD BOROUGH COUNCIL,New Build,1000577,Building Design Partnership Limited,24/05/2022,30047411,24300,0,Consultants Fees,,Invoice,BACS,No,28/04/2022 00:00,2022,2,BL0100228,N30011,Guildford Park,1221,Consultants Fees,XXX99,*** UNASSIGNED ***,WCC,CEC Recharges,WC,CEC Recharges,A,Central Services
GUILDFORD BOROUGH COUNCIL,Renovations,1000340,Buildperfect Group Ltd,17/05/2022,30065111,5574.99,0,Contractor Payments,,Invoice,BACS,No,20/04/2022 00:00,2022,2,M-2504,N40295,Disabled adaptations,1233,Contractor Payments,,,,,,,,
GUILDFORD BOROUGH COUNCIL,Renovations,1000340,Buildperfect Group Ltd,17/05/2022,30065112,7789.88,0,Contractor Payments,,Invoice,BACS,No,22/04/2022 00:00,2022,2,M-2506,N40295,Disabled adaptations,1233,Contractor Payments,,,,,,,,
GUILDFORD BOROUGH COUNCIL,Renovations,1000340,Buildperfect Group Ltd,17/05/2022,30065113,1485.84,0,Contractor Payments,,Invoice,BACS,No,25/04/2022 00:00,2022,2,M-2507,N40295,Disabled adaptations,1233,Contractor Payments,,,,,,,,
GUILDFORD BOROUGH COUNCIL,Renovations,1000340,Buildperfect Group Ltd,17/05/2022,30065114,5761.99,0,Contractor Payments,,Invoice,BACS,No,25/04/2022 00:00,2022,2,M-2508,N40295,Disabled adaptations,1233,Contractor Payments,,,,,,,,
GUILDFORD BOROUGH COUNCIL,Renovations,1000340,Buildperfect Group Ltd,17/05/2022,30065115,1210.99,0,Contractor Payments,,Invoice,BACS,No,25/04/2022 00:00,2022,2,M-2509,N40295,Disabled adaptations,1233,Contractor Payments,,,,,,,,
GUILDFORD BOROUGH COUNCIL,Renovations,1000340,Buildperfect Group Ltd,14/06/2022,30069476,5633.56,0,Contractor Payments,,Invoice,BACS,No,30/05/2022 00:00,2022,3,M-2547,N40295,Disabled adaptations,1233,Contractor Payments,,,,,,,,
GUILDFORD BOROUGH COUNCIL,Renovations,1000340,Buildperfect Group Ltd,07/06/2022,30068509,5880.93,0,Contractor Payments,,Invoice,BACS,No,18/05/2022 00:00,2022,3,M-2543,N40295,Disabled adaptations,1233,Contractor Payments,,,,,,,,
GUILDFORD BOROUGH COUNCIL,Renovations,1000340,Buildperfect Group Ltd,07/06/2022,30068510,2729.27,0,Contractor Payments,,Invoice,BACS,No,30/05/2022 00:00,2022,3,M-2548,N40295,Disabled adaptations,1233,Contractor Payments,,,,,,,,
GUILDFORD BOROUGH COUNCIL,Renovations,1000340,Buildperfect Group Ltd,21/06/2022,30071406,6170.72,0,Contractor Payments,,Invoice,BACS,No,25/04/2022 00:00,2022,3,M-2510,N40295,Disabled adaptations,1233,Contractor Payments,,,,,,,,
GUILDFORD BOROUGH COUNCIL,Responsive & Planned Maintenance,982900,C L C Contractors Limited,12/04/2022,30046272,2112.68,0,Asset Maintenance,Property Maintenance Contractors,Invoice,BACS,No,05/04/2022 00:00,2022,1,INV008361,M5114,Repairs-Cyclical (BHS),B1001,Asset Maintenance,XXX99,*** UNASSIGNED ***,WCC,CEC Recharges,WC,CEC Recharges,A,Central Services
GUILDFORD BOROUGH COUNCIL,Responsive & Planned Maintenance,982900,C L C Contractors Limited,12/04/2022,30046272,1929.5,0,Asset Maintenance,Property Maintenance Contractors,Invoice,BACS,No,05/04/2022 00:00,2022,1,INV008361,M5114,Repairs-Cyclical (BHS),B1001,Asset Maintenance,XXX99,*** UNASSIGNED ***,WCC,CEC Recharges,WC,CEC Recharges,A,Central Services
GUILDFORD BOROUGH COUNCIL,Responsive & Planned Maintenance,982900,C L C Contractors Limited,12/04/2022,30046272,999.38,0,Asset Maintenance,Property Maintenance Contractors,Invoice,BACS,No,05/04/2022 00:00,2022,1,INV008361,M5114,Repairs-Cyclical (BHS),B1001,Asset Maintenance,XXX99,*** UNASSIGNED ***,WCC,CEC Recharges,WC,CEC Recharges,A,Central Services
GUILDFORD BOROUGH COUNCIL,Responsive & Planned Maintenance,982900,C L C Contractors Limited,12/04/2022,30046272,2112.68,0,Asset Maintenance,Property Maintenance Contractors,Invoice,BACS,No,05/04/2022 00:00,2022,1,INV008361,M5114,Repairs-Cyclical (BHS),B1001,Asset Maintenance,XXX99,*** UNASSIGNED ***,WCC,CEC Recharges,WC,CEC Recharges,A,Central Services
GUILDFORD BOROUGH COUNCIL,Responsive & Planned Maintenance,982900,C L C Contractors Limited,12/04/2022,30046272,421.48,0,Asset Maintenance,Property Maintenance Contractors,Invoice,BACS,No,05/04/2022 00:00,2022,1,INV008361,M5114,Repairs-Cyclical (BHS),B1001,Asset Maintenance,XXX99,*** UNASSIGNED ***,WCC,CEC Recharges,WC,CEC Recharges,A,Central Services
GUILDFORD BOROUGH COUNCIL,Responsive & Planned Maintenance,982900,C L C Contractors Limited,12/04/2022,30046273,445.64,0,Asset Maintenance,Property Maintenance Contractors,Invoice,BACS,No,05/04/2022 00:00,2022,1,INV008362,M5114,Repairs-Cyclical (BHS),B1001,Asset Maintenance,XXX99,*** UNASSIGNED ***,WCC,CEC Recharges,WC,CEC Recharges,A,Central Services
GUILDFORD BOROUGH COUNCIL,Responsive & Planned Maintenance,982900,C L C Contractors Limited,12/04/2022,30046273,350.15,0,Asset Maintenance,Property Maintenance Contractors,Invoice,BACS,No,05/04/2022 00:00,2022,1,INV008362,M5114,Repairs-Cyclical (BHS),B1001,Asset Maintenance,XXX99,*** UNASSIGNED ***,WCC,CEC Recharges,WC,CEC Recharges,A,Central Services
GUILDFORD BOROUGH COUNCIL,Responsive & Planned Maintenance,982900,C L C Contractors Limited,12/04/2022,30046273,350.15,0,Asset Maintenance,Property Maintenance Contractors,Invoice,BACS,No,05/04/2022 00:00,2022,1,INV008362,M5114,Repairs-Cyclical (BHS),B1001,Asset Maintenance,XXX99,*** UNASSIGNED ***,WCC,CEC Recharges,WC,CEC Recharges,A,Central Services
GUILDFORD BOROUGH COUNCIL,Responsive & Planned Maintenance,982900,C L C Contractors Limited,12/04/2022,30046273,435.03,0,Asset Maintenance,Property Maintenance Contractors,Invoice,BACS,No,05/04/2022 00:00,2022,1,INV008362,M5114,Repairs-Cyclical (BHS),B1001,Asset Maintenance,XXX99,*** UNASSIGNED ***,WCC,CEC Recharges,WC,CEC Recharges,A,Central Services
GUILDFORD BOROUGH COUNCIL,Responsive & Planned Maintenance,982900,C L C Contractors Limited,12/04/2022,30046273,392.58,0,Asset Maintenance,Property Maintenance Contractors,Invoice,BACS,No,05/04/2022 00:00,2022,1,INV008362,M5114,Repairs-Cyclical (BHS),B1001,Asset Maintenance,XXX99,*** UNASSIGNED ***,WCC,CEC Recharges,WC,CEC Recharges,A,Central Services
GUILDFORD BOROUGH COUNCIL,Responsive & Planned Maintenance,982900,C L C Contractors Limited,12/04/2022,30046273,392.58,0,Asset Maintenance,Property Maintenance Contractors,Invoice,BACS,No,05/04/2022 00:00,2022,1,INV008362,M5114,Repairs-Cyclical (BHS),B1001,Asset Maintenance,XXX99,*** UNASSIGNED ***,WCC,CEC Recharges,WC,CEC Recharges,A,Central Services
GUILDFORD BOROUGH COUNCIL,Responsive & Planned Maintenance,982900,C L C Contractors Limited,12/04/2022,30046273,392.58,0,Asset Maintenance,Property Maintenance Contractors,Invoice,BACS,No,05/04/2022 00:00,2022,1,INV008362,M5114,Repairs-Cyclical (BHS),B1001,Asset Maintenance,XXX99,*** UNASSIGNED ***,WCC,CEC Recharges,WC,CEC Recharges,A,Central Services
GUILDFORD BOROUGH COUNCIL,Responsive & Planned Maintenance,982900,C L C Contractors Limited,12/04/2022,30046273,445.64,0,Asset Maintenance,Property Maintenance Contractors,Invoice,BACS,No,05/04/2022 00:00,2022,1,INV008362,M5114,Repairs-Cyclical (BHS),B1001,Asset Maintenance,XXX99,*** UNASSIGNED ***,WCC,CEC Recharges,WC,CEC Recharges,A,Central Services
GUILDFORD BOROUGH COUNCIL,Responsive & Planned Maintenance,982900,C L C Contractors Limited,12/04/2022,30046273,360.76,0,Asset Maintenance,Property Maintenance Contractors,Invoice,BACS,No,05/04/2022 00:00,2022,1,INV008362,M5114,Repairs-Cyclical (BHS),B1001,Asset Maintenance,XXX99,*** UNASSIGNED ***,WCC,CEC Recharges,WC,CEC Recharges,A,Central Services
GUILDFORD BOROUGH COUNCIL,Responsive & Planned Maintenance,982900,C L C Contractors Limited,12/04/2022,30046273,445.64,0,Asset Maintenance,Property Maintenance Contractors,Invoice,BACS,No,05/04/2022 00:00,2022,1,INV008362,M5114,Repairs-Cyclical (BHS),B1001,Asset Maintenance,XXX99,*** UNASSIGNED ***,WCC,CEC Recharges,WC,CEC Recharges,A,Central Services
GUILDFORD BOROUGH COUNCIL,Responsive & Planned Maintenance,982900,C L C Contractors Limited,12/04/2022,30046273,371.37,0,Asset Maintenance,Property Maintenance Contractors,Invoice,BACS,No,05/04/2022 00:00,2022,1,INV008362,M5114,Repairs-Cyclical (BHS),B1001,Asset Maintenance,XXX99,*** UNASSIGNED ***,WCC,CEC Recharges,WC,CEC Recharges,A,Central Services
GUILDFORD BOROUGH COUNCIL,Responsive & Planned Maintenance,982900,C L C Contractors Limited,12/04/2022,30046273,360.76,0,Asset Maintenance,Property Maintenance Contractors,Invoice,BACS,No,05/04/2022 00:00,2022,1,INV008362,M5114,Repairs-Cyclical (BHS),B1001,Asset Maintenance,XXX99,*** UNASSIGNED ***,WCC,CEC Recharges,WC,CEC Recharges,A,Central Services
GUILDFORD BOROUGH COUNCIL,Responsive & Planned Maintenance,982900,C L C Contractors Limited,28/06/2022,30072697,477.47,0,Asset Maintenance,Property Maintenance Contractors,Invoice,BACS,No,22/06/2022 00:00,2022,3,INV010435,M5114,Repairs-Cyclical (BHS),B1001,Asset Maintenance,XXX99,*** UNASSIGNED ***,WCC,CEC Recharges,WC,CEC Recharges,A,Central Services
GUILDFORD BOROUGH COUNCIL,Responsive & Planned Maintenance,982900,C L C Contractors Limited,28/06/2022,30072697,477.47,0,Asset Maintenance,Property Maintenance Contractors,Invoice,BACS,No,22/06/2022 00:00,2022,3,INV010435,M5114,Repairs-Cyclical (BHS),B1001,Asset Maintenance,XXX99,*** UNASSIGNED ***,WCC,CEC Recharges,WC,CEC Recharges,A,Central Services
GUILDFORD BOROUGH COUNCIL,Responsive & Planned Maintenance,982900,C L C Contractors Limited,28/06/2022,30072697,477.47,0,Asset Maintenance,Property Maintenance Contractors,Invoice,BACS,No,22/06/2022 00:00,2022,3,INV010435,M5114,Repairs-Cyclical (BHS),B1001,Asset Maintenance,XXX99,*** UNASSIGNED ***,WCC,CEC Recharges,WC,CEC Recharges,A,Central Services
GUILDFORD BOROUGH COUNCIL,Responsive & Planned Maintenance,982900,C L C Contractors Limited,28/06/2022,30072697,8965,0,Asset Maintenance,Property Maintenance Contractors,Invoice,BACS,No,22/06/2022 00:00,2022,3,INV010435,M5114,Repairs-Cyclical (BHS),B1001,Asset Maintenance,XXX99,*** UNASSIGNED ***,WCC,CEC Recharges,WC,CEC Recharges,A,Central Services
GUILDFORD BOROUGH COUNCIL,Responsive & Planned Maintenance,982900,C L C Contractors Limited,28/06/2022,30072697,1430,0,Asset Maintenance,Property Maintenance Contractors,Invoice,BACS,No,22/06/2022 00:00,2022,3,INV010435,M5114,Repairs-Cyclical (BHS),B1001,Asset Maintenance,XXX99,*** UNASSIGNED ***,WCC,CEC Recharges,WC,CEC Recharges,A,Central Services
GUILDFORD BOROUGH COUNCIL,Responsive & Planned Maintenance,982900,C L C Contractors Limited,28/06/2022,30072697,1540,0,Asset Maintenance,Property Maintenance Contractors,Invoice,BACS,No,22/06/2022 00:00,2022,3,INV010435,M5114,Repairs-Cyclical (BHS),B1001,Asset Maintenance,XXX99,*** UNASSIGNED ***,WCC,CEC Recharges,WC,CEC Recharges,A,Central Services
GUILDFORD BOROUGH COUNCIL,Responsive & Planned Maintenance,982900,C L C Contractors Limited,28/06/2022,30072697,399.02,0,Asset Maintenance,Property Maintenance Contractors,Invoice,BACS,No,22/06/2022 00:00,2022,3,INV010435,M5114,Repairs-Cyclical (BHS),B1001,Asset Maintenance,XXX99,*** UNASSIGNED ***,WCC,CEC Recharges,WC,CEC Recharges,A,Central Services
GUILDFORD BOROUGH COUNCIL,Responsive & Planned Maintenance,982900,C L C Contractors Limited,28/06/2022,30072697,456.44,0,Asset Maintenance,Property Maintenance Contractors,Invoice,BACS,No,22/06/2022 00:00,2022,3,INV010435,M5114,Repairs-Cyclical (BHS),B1001,Asset Maintenance,XXX99,*** UNASSIGNED ***,WCC,CEC Recharges,WC,CEC Recharges,A,Central Services
GUILDFORD BOROUGH COUNCIL,Responsive & Planned Maintenance,982900,C L C Contractors Limited,28/06/2022,30072697,334.24,0,Asset Maintenance,Property Maintenance Contractors,Invoice,BACS,No,22/06/2022 00:00,2022,3,INV010435,M5114,Repairs-Cyclical (BHS),B1001,Asset Maintenance,XXX99,*** UNASSIGNED ***,WCC,CEC Recharges,WC,CEC Recharges,A,Central Services
GUILDFORD BOROUGH COUNCIL,Responsive & Planned Maintenance,982900,C L C Contractors Limited,28/06/2022,30072697,328.94,0,Asset Maintenance,Property Maintenance Contractors,Invoice,BACS,No,22/06/2022 00:00,2022,3,INV010435,M5114,Repairs-Cyclical (BHS),B1001,Asset Maintenance,XXX99,*** UNASSIGNED ***,WCC,CEC Recharges,WC,CEC Recharges,A,Central Services
GUILDFORD BOROUGH COUNCIL,Responsive & Planned Maintenance,982900,C L C Contractors Limited,28/06/2022,30072697,254.66,0,Asset Maintenance,Property Maintenance Contractors,Invoice,BACS,No,22/06/2022 00:00,2022,3,INV010435,M5114,Repairs-Cyclical (BHS),B1001,Asset Maintenance,XXX99,*** UNASSIGNED ***,WCC,CEC Recharges,WC,CEC Recharges,A,Central Services
GUILDFORD BOROUGH COUNCIL,Responsive & Planned Maintenance,982900,C L C Contractors Limited,28/06/2022,30072697,265.3,0,Asset Maintenance,Property Maintenance Contractors,Invoice,BACS,No,22/06/2022 00:00,2022,3,INV010435,M5114,Repairs-Cyclical (BHS),B1001,Asset Maintenance,XXX99,*** UNASSIGNED ***,WCC,CEC Recharges,WC,CEC Recharges,A,Central Services
GUILDFORD BOROUGH COUNCIL,Responsive & Planned Maintenance,982900,C L C Contractors Limited,28/06/2022,30072697,4797.8,0,Asset Maintenance,Property Maintenance Contractors,Invoice,BACS,No,22/06/2022 00:00,2022,3,INV010435,M5114,Repairs-Cyclical (BHS),B1001,Asset Maintenance,XXX99,*** UNASSIGNED ***,WCC,CEC Recharges,WC,CEC Recharges,A,Central Services
GUILDFORD BOROUGH COUNCIL,Responsive & Planned Maintenance,982900,C L C Contractors Limited,28/06/2022,30072698,396.27,0,Asset Maintenance,Property Maintenance Contractors,Invoice,BACS,No,24/06/2022 00:00,2022,3,INV010539,M5114,Repairs-Cyclical (BHS),B1001,Asset Maintenance,XXX99,*** UNASSIGNED ***,WCC,CEC Recharges,WC,CEC Recharges,A,Central Services
GUILDFORD BOROUGH COUNCIL,Responsive & Planned Maintenance,982900,C L C Contractors Limited,28/06/2022,30072698,396.27,0,Asset Maintenance,Property Maintenance Contractors,Invoice,BACS,No,24/06/2022 00:00,2022,3,INV010539,M5114,Repairs-Cyclical (BHS),B1001,Asset Maintenance,XXX99,*** UNASSIGNED ***,WCC,CEC Recharges,WC,CEC Recharges,A,Central Services
GUILDFORD BOROUGH COUNCIL,Responsive & Planned Maintenance,982900,C L C Contractors Limited,28/06/2022,30072698,396.27,0,Asset Maintenance,Property Maintenance Contractors,Invoice,BACS,No,24/06/2022 00:00,2022,3,INV010539,M5114,Repairs-Cyclical (BHS),B1001,Asset Maintenance,XXX99,*** UNASSIGNED ***,WCC,CEC Recharges,WC,CEC Recharges,A,Central Services
GUILDFORD BOROUGH COUNCIL,Responsive & Planned Maintenance,982900,C L C Contractors Limited,28/06/2022,30072698,396.27,0,Asset Maintenance,Property Maintenance Contractors,Invoice,BACS,No,24/06/2022 00:00,2022,3,INV010539,M5114,Repairs-Cyclical (BHS),B1001,Asset Maintenance,XXX99,*** UNASSIGNED ***,WCC,CEC Recharges,WC,CEC Recharges,A,Central Services
GUILDFORD BOROUGH COUNCIL,Responsive & Planned Maintenance,982900,C L C Contractors Limited,28/06/2022,30072698,396.27,0,Asset Maintenance,Property Maintenance Contractors,Invoice,BACS,No,24/06/2022 00:00,2022,3,INV010539,M5114,Repairs-Cyclical (BHS),B1001,Asset Maintenance,XXX99,*** UNASSIGNED ***,WCC,CEC Recharges,WC,CEC Recharges,A,Central Services
GUILDFORD BOROUGH COUNCIL,Responsive & Planned Maintenance,982900,C L C Contractors Limited,28/06/2022,30072698,396.27,0,Asset Maintenance,Property Maintenance Contractors,Invoice,BACS,No,24/06/2022 00:00,2022,3,INV010539,M5114,Repairs-Cyclical (BHS),B1001,Asset Maintenance,XXX99,*** UNASSIGNED ***,WCC,CEC Recharges,WC,CEC Recharges,A,Central Services
GUILDFORD BOROUGH COUNCIL,Responsive & Planned Maintenance,982900,C L C Contractors Limited,28/06/2022,30072698,396.27,0,Asset Maintenance,Property Maintenance Contractors,Invoice,BACS,No,24/06/2022 00:00,2022,3,INV010539,M5114,Repairs-Cyclical (BHS),B1001,Asset Maintenance,XXX99,*** UNASSIGNED ***,WCC,CEC Recharges,WC,CEC Recharges,A,Central Services
GUILDFORD BOROUGH COUNCIL,Responsive & Planned Maintenance,982900,C L C Contractors Limited,28/06/2022,30072698,396.27,0,Asset Maintenance,Property Maintenance Contractors,Invoice,BACS,No,24/06/2022 00:00,2022,3,INV010539,M5114,Repairs-Cyclical (BHS),B1001,Asset Maintenance,XXX99,*** UNASSIGNED ***,WCC,CEC Recharges,WC,CEC Recharges,A,Central Services
GUILDFORD BOROUGH COUNCIL,Responsive & Planned Maintenance,982900,C L C Contractors Limited,28/06/2022,30072698,266.75,0,Asset Maintenance,Property Maintenance Contractors,Invoice,BACS,No,24/06/2022 00:00,2022,3,INV010539,M5114,Repairs-Cyclical (BHS),B1001,Asset Maintenance,XXX99,*** UNASSIGNED ***,WCC,CEC Recharges,WC,CEC Recharges,A,Central Services
GUILDFORD BOROUGH COUNCIL,Responsive & Planned Maintenance,982900,C L C Contractors Limited,28/06/2022,30072698,266.75,0,Asset Maintenance,Property Maintenance Contractors,Invoice,BACS,No,24/06/2022 00:00,2022,3,INV010539,M5114,Repairs-Cyclical (BHS),B1001,Asset Maintenance,XXX99,*** UNASSIGNED ***,WCC,CEC Recharges,WC,CEC Recharges,A,Central Services
GUILDFORD BOROUGH COUNCIL,Responsive & Planned Maintenance,982900,C L C Contractors Limited,28/06/2022,30072698,266.75,0,Asset Maintenance,Property Maintenance Contractors,Invoice,BACS,No,24/06/2022 00:00,2022,3,INV010539,M5114,Repairs-Cyclical (BHS),B1001,Asset Maintenance,XXX99,*** UNASSIGNED ***,WCC,CEC Recharges,WC,CEC Recharges,A,Central Services
GUILDFORD BOROUGH COUNCIL,Responsive & Planned Maintenance,982900,C L C Contractors Limited,28/06/2022,30072698,266.75,0,Asset Maintenance,Property Maintenance Contractors,Invoice,BACS,No,24/06/2022 00:00,2022,3,INV010539,M5114,Repairs-Cyclical (BHS),B1001,Asset Maintenance,XXX99,*** UNASSIGNED ***,WCC,CEC Recharges,WC,CEC Recharges,A,Central Services
GUILDFORD BOROUGH COUNCIL,Responsive & Planned Maintenance,982900,C L C Contractors Limited,28/06/2022,30072698,266.75,0,Asset Maintenance,Property Maintenance Contractors,Invoice,BACS,No,24/06/2022 00:00,2022,3,INV010539,M5114,Repairs-Cyclical (BHS),B1001,Asset Maintenance,XXX99,*** UNASSIGNED ***,WCC,CEC Recharges,WC,CEC Recharges,A,Central Services
GUILDFORD BOROUGH COUNCIL,Responsive & Planned Maintenance,982900,C L C Contractors Limited,28/06/2022,30072698,266.75,0,Asset Maintenance,Property Maintenance Contractors,Invoice,BACS,No,24/06/2022 00:00,2022,3,INV010539,M5114,Repairs-Cyclical (BHS),B1001,Asset Maintenance,XXX99,*** UNASSIGNED ***,WCC,CEC Recharges,WC,CEC Recharges,A,Central Services
GUILDFORD BOROUGH COUNCIL,Responsive & Planned Maintenance,982900,C L C Contractors Limited,28/06/2022,30072698,266.75,0,Asset Maintenance,Property Maintenance Contractors,Invoice,BACS,No,24/06/2022 00:00,2022,3,INV010539,M5114,Repairs-Cyclical (BHS),B1001,Asset Maintenance,XXX99,*** UNASSIGNED ***,WCC,CEC Recharges,WC,CEC Recharges,A,Central Services
GUILDFORD BOROUGH COUNCIL,Responsive & Planned Maintenance,982900,C L C Contractors Limited,28/06/2022,30072698,266.75,0,Asset Maintenance,Property Maintenance Contractors,Invoice,BACS,No,24/06/2022 00:00,2022,3,INV010539,M5114,Repairs-Cyclical (BHS),B1001,Asset Maintenance,XXX99,*** UNASSIGNED ***,WCC,CEC Recharges,WC,CEC Recharges,A,Central Services
GUILDFORD BOROUGH COUNCIL,Responsive & Planned Maintenance,982900,C L C Contractors Limited,28/06/2022,30072698,266.75,0,Asset Maintenance,Property Maintenance Contractors,Invoice,BACS,No,24/06/2022 00:00,2022,3,INV010539,M5114,Repairs-Cyclical (BHS),B1001,Asset Maintenance,XXX99,*** UNASSIGNED ***,WCC,CEC Recharges,WC,CEC Recharges,A,Central Services
GUILDFORD BOROUGH COUNCIL,Responsive & Planned Maintenance,982900,C L C Contractors Limited,28/06/2022,30072698,266.75,0,Asset Maintenance,Property Maintenance Contractors,Invoice,BACS,No,24/06/2022 00:00,2022,3,INV010539,M5114,Repairs-Cyclical (BHS),B1001,Asset Maintenance,XXX99,*** UNASSIGNED ***,WCC,CEC Recharges,WC,CEC Recharges,A,Central Services
GUILDFORD BOROUGH COUNCIL,Responsive & Planned Maintenance,982900,C L C Contractors Limited,28/06/2022,30072698,266.75,0,Asset Maintenance,Property Maintenance Contractors,Invoice,BACS,No,24/06/2022 00:00,2022,3,INV010539,M5114,Repairs-Cyclical (BHS),B1001,Asset Maintenance,XXX99,*** UNASSIGNED ***,WCC,CEC Recharges,WC,CEC Recharges,A,Central Services
GUILDFORD BOROUGH COUNCIL,Responsive & Planned Maintenance,982900,C L C Contractors Limited,28/06/2022,30072698,266.75,0,Asset Maintenance,Property Maintenance Contractors,Invoice,BACS,No,24/06/2022 00:00,2022,3,INV010539,M5114,Repairs-Cyclical (BHS),B1001,Asset Maintenance,XXX99,*** UNASSIGNED ***,WCC,CEC Recharges,WC,CEC Recharges,A,Central Services
GUILDFORD BOROUGH COUNCIL,Responsive & Planned Maintenance,982900,C L C Contractors Limited,28/06/2022,30072698,266.75,0,Asset Maintenance,Property Maintenance Contractors,Invoice,BACS,No,24/06/2022 00:00,2022,3,INV010539,M5114,Repairs-Cyclical (BHS),B1001,Asset Maintenance,XXX99,*** UNASSIGNED ***,WCC,CEC Recharges,WC,CEC Recharges,A,Central Services
GUILDFORD BOROUGH COUNCIL,Responsive & Planned Maintenance,982900,C L C Contractors Limited,28/06/2022,30072698,1976.96,0,Asset Maintenance,Property Maintenance Contractors,Invoice,BACS,No,24/06/2022 00:00,2022,3,INV010539,M5114,Repairs-Cyclical (BHS),B1001,Asset Maintenance,XXX99,*** UNASSIGNED ***,WCC,CEC Recharges,WC,CEC Recharges,A,Central Services
GUILDFORD BOROUGH COUNCIL,Responsive & Planned Maintenance,982900,C L C Contractors Limited,28/06/2022,30072698,2032.12,0,Asset Maintenance,Property Maintenance Contractors,Invoice,BACS,No,24/06/2022 00:00,2022,3,INV010539,M5114,Repairs-Cyclical (BHS),B1001,Asset Maintenance,XXX99,*** UNASSIGNED ***,WCC,CEC Recharges,WC,CEC Recharges,A,Central Services
GUILDFORD BOROUGH COUNCIL,Responsive & Planned Maintenance,982900,C L C Contractors Limited,28/06/2022,30072698,2032.12,0,Asset Maintenance,Property Maintenance Contractors,Invoice,BACS,No,24/06/2022 00:00,2022,3,INV010539,M5114,Repairs-Cyclical (BHS),B1001,Asset Maintenance,XXX99,*** UNASSIGNED ***,WCC,CEC Recharges,WC,CEC Recharges,A,Central Services
GUILDFORD BOROUGH COUNCIL,Responsive & Planned Maintenance,982900,C L C Contractors Limited,28/06/2022,30072698,1976.96,0,Asset Maintenance,Property Maintenance Contractors,Invoice,BACS,No,24/06/2022 00:00,2022,3,INV010539,M5114,Repairs-Cyclical (BHS),B1001,Asset Maintenance,XXX99,*** UNASSIGNED ***,WCC,CEC Recharges,WC,CEC Recharges,A,Central Services
GUILDFORD BOROUGH COUNCIL,Responsive & Planned Maintenance,982900,C L C Contractors Limited,28/06/2022,30072698,880,0,Asset Maintenance,Property Maintenance Contractors,Invoice,BACS,No,24/06/2022 00:00,2022,3,INV010539,M5114,Repairs-Cyclical (BHS),B1001,Asset Maintenance,XXX99,*** UNASSIGNED ***,WCC,CEC Recharges,WC,CEC Recharges,A,Central Services
GUILDFORD BOROUGH COUNCIL,Responsive & Planned Maintenance,982900,C L C Contractors Limited,28/06/2022,30072698,944.34,0,Asset Maintenance,Property Maintenance Contractors,Invoice,BACS,No,24/06/2022 00:00,2022,3,INV010539,M5114,Repairs-Cyclical (BHS),B1001,Asset Maintenance,XXX99,*** UNASSIGNED ***,WCC,CEC Recharges,WC,CEC Recharges,A,Central Services
GUILDFORD BOROUGH COUNCIL,Responsive & Planned Maintenance,982900,C L C Contractors Limited,28/06/2022,30072698,944.34,0,Asset Maintenance,Property Maintenance Contractors,Invoice,BACS,No,24/06/2022 00:00,2022,3,INV010539,M5114,Repairs-Cyclical (BHS),B1001,Asset Maintenance,XXX99,*** UNASSIGNED ***,WCC,CEC Recharges,WC,CEC Recharges,A,Central Services
GUILDFORD BOROUGH COUNCIL,Responsive & Planned Maintenance,982900,C L C Contractors Limited,28/06/2022,30072698,944.34,0,Asset Maintenance,Property Maintenance Contractors,Invoice,BACS,No,24/06/2022 00:00,2022,3,INV010539,M5114,Repairs-Cyclical (BHS),B1001,Asset Maintenance,XXX99,*** UNASSIGNED ***,WCC,CEC Recharges,WC,CEC Recharges,A,Central Services
GUILDFORD BOROUGH COUNCIL,Responsive & Planned Maintenance,982900,C L C Contractors Limited,28/06/2022,30072698,944.34,0,Asset Maintenance,Property Maintenance Contractors,Invoice,BACS,No,24/06/2022 00:00,2022,3,INV010539,M5114,Repairs-Cyclical (BHS),B1001,Asset Maintenance,XXX99,*** UNASSIGNED ***,WCC,CEC Recharges,WC,CEC Recharges,A,Central Services
GUILDFORD BOROUGH COUNCIL,Responsive & Planned Maintenance,982900,C L C Contractors Limited,28/06/2022,30072698,944.34,0,Asset Maintenance,Property Maintenance Contractors,Invoice,BACS,No,24/06/2022 00:00,2022,3,INV010539,M5114,Repairs-Cyclical (BHS),B1001,Asset Maintenance,XXX99,*** UNASSIGNED ***,WCC,CEC Recharges,WC,CEC Recharges,A,Central Services
GUILDFORD BOROUGH COUNCIL,Responsive & Planned Maintenance,982900,C L C Contractors Limited,28/06/2022,30072698,498.7,0,Asset Maintenance,Property Maintenance Contractors,Invoice,BACS,No,24/06/2022 00:00,2022,3,INV010539,M5114,Repairs-Cyclical (BHS),B1001,Asset Maintenance,XXX99,*** UNASSIGNED ***,WCC,CEC Recharges,WC,CEC Recharges,A,Central Services
GUILDFORD BOROUGH COUNCIL,Responsive & Planned Maintenance,982900,C L C Contractors Limited,28/06/2022,30072698,944.34,0,Asset Maintenance,Property Maintenance Contractors,Invoice,BACS,No,24/06/2022 00:00,2022,3,INV010539,M5114,Repairs-Cyclical (BHS),B1001,Asset Maintenance,XXX99,*** UNASSIGNED ***,WCC,CEC Recharges,WC,CEC Recharges,A,Central Services
GUILDFORD BOROUGH COUNCIL,Responsive & Planned Maintenance,982900,C L C Contractors Limited,28/06/2022,30072698,944.34,0,Asset Maintenance,Property Maintenance Contractors,Invoice,BACS,No,24/06/2022 00:00,2022,3,INV010539,M5114,Repairs-Cyclical (BHS),B1001,Asset Maintenance,XXX99,*** UNASSIGNED ***,WCC,CEC Recharges,WC,CEC Recharges,A,Central Services
GUILDFORD BOROUGH COUNCIL,Responsive & Planned Maintenance,982900,C L C Contractors Limited,28/06/2022,30072698,1705,0,Asset Maintenance,Property Maintenance Contractors,Invoice,BACS,No,24/06/2022 00:00,2022,3,INV010539,M5114,Repairs-Cyclical (BHS),B1001,Asset Maintenance,XXX99,*** UNASSIGNED ***,WCC,CEC Recharges,WC,CEC Recharges,A,Central Services
GUILDFORD BOROUGH COUNCIL,Industrial Estates,982900,C L C Contractors Limited,26/05/2022,30065034,2543.5,0,Contractor Payments,Property Maintenance Contractors,Invoice,BACS,No,10/05/2022 00:00,2022,2,INV009255,P72049,C4 41 MOORFIELD ROAD SLYFIELD,1233,Contractor Payments,,,,,,,,
GUILDFORD BOROUGH COUNCIL,Countryside and Parks Services,982900,C L C Contractors Limited,30/06/2022,30073435,5403,0,Asset Maintenance,Property Maintenance Contractors,Invoice,BACS,No,29/04/2022 00:00,2022,3,INV009055,A1250,Stoke Park,B1001,Asset Maintenance,CCE00,Community Parks & Open Spaces,CCE,Open Spaces,CC,Cultural & Related Services,C,"Cultural, Environmental & Planning Services"
GUILDFORD BOROUGH COUNCIL,Parks & Countryside,982900,C L C Contractors Limited,30/06/2022,30073404,38666.13,0,Contractor Payments,Property Maintenance Contractors,Invoice,BACS,No,24/06/2022 00:00,2022,3,INV010603,P18416,SMP Cricket Pavilion,1233,Contractor Payments,,,,,,,,
GUILDFORD BOROUGH COUNCIL,Property,982900,C L C Contractors Limited,16/06/2022,30069350,54357.65,0,Contractor Payments,Property Maintenance Contractors,Invoice,BACS,No,09/06/2022 00:00,2022,3,INV010101,P74077,2 THE BILLINGS VOID WORKS,1233,Contractor Payments,,,,,,,,
GUILDFORD BOROUGH COUNCIL,Industrial Estates,982900,C L C Contractors Limited,10/05/2022,30046314,3006.72,0,Asset Maintenance,Property Maintenance Contractors,Invoice,BACS,No,07/04/2022 00:00,2022,2,INV008394,B5346,Slyfield Ind Est Moorfield Rd 41 - Rechargable,B1001,Asset Maintenance,,,,,,,,
GUILDFORD BOROUGH COUNCIL,Resources Caseworker,1000065,Canon (UK) Ltd,24/05/2022,30066297,452,0,Stationery & Paper,,Invoice,BACS,No,10/08/2021 00:00,2022,2,44202541,G3550,Resources Caseworker,D5007,Stationery & Paper,DBX35,Finance (including Internal Audit),DBX,Support Service and Management Costs,DB,Children's Social Care,E,Childrens and Education Services
GUILDFORD BOROUGH COUNCIL,Resources Caseworker,1000065,Canon (UK) Ltd,24/05/2022,30066297,452,0,Stationery & Paper,,Invoice,BACS,No,10/08/2021 00:00,2022,2,44202541,G4545,Reprographics,D5007,Stationery & Paper,DBX70,Other Management Costs,DBX,Support Service and Management Costs,DB,Children's Social Care,E,Childrens and Education Services
GUILDFORD BOROUGH COUNCIL,Resources Caseworker,1000065,Canon (UK) Ltd,26/05/2022,30066790,1164.8,0,Stationery & Paper,,Invoice,BACS,No,23/05/2022 00:00,2022,2,44226389,G3550,Resources Caseworker,D5007,Stationery & Paper,DBX35,Finance (including Internal Audit),DBX,Support Service and Management Costs,DB,Children's Social Care,E,Childrens and Education Services
GUILDFORD BOROUGH COUNCIL,Resources Caseworker,1000065,Canon (UK) Ltd,21/06/2022,30067223,419,0,Stationery & Paper,,Invoice,BACS,No,26/05/2022 00:00,2022,3,44226804,G4545,Reprographics,D5007,Stationery & Paper,DBX70,Other Management Costs,DBX,Support Service and Management Costs,DB,Children's Social Care,E,Childrens and Education Services
GUILDFORD BOROUGH COUNCIL,Off Street Parking,297500,Capita Business Services Limited (prev Liberty Printers),19/05/2022,30052678,1023,0,"Printing, Photocopying And Reprographics External",Printing Service Providers,Invoice,BACS,No,26/04/2022 00:00,2022,2,6128024580,B2111,Car Parks - Administration,D5005,"Printing, Photocopying And Reprographics External",HTP10,Off-Street Parking,HTP,Parking Services,HT,"Highways, Roads and Transport Services",H,"Highways, Roads and Transport Services"
GUILDFORD BOROUGH COUNCIL,Off Street Parking,120400,Capita Business Services Ltd,23/06/2022,30070406,355.5,0,Postage,Managed And Outsourced Business Services Providers,Invoice,BACS,No,30/05/2022 00:00,2022,3,6004115984,B2111,Car Parks - Administration,D5003,Postage,HTP10,Off-Street Parking,HTP,Parking Services,HT,"Highways, Roads and Transport Services",H,"Highways, Roads and Transport Services"
GUILDFORD BOROUGH COUNCIL,Off Street Parking,120400,Capita Business Services Ltd,19/04/2022,30046696,566.25,0,Postage,Managed And Outsourced Business Services Providers,Invoice,BACS,No,28/02/2022 00:00,2022,1,6004105684,B2111,Car Parks - Administration,D5003,Postage,HTP10,Off-Street Parking,HTP,Parking Services,HT,"Highways, Roads and Transport Services",H,"Highways, Roads and Transport Services"
GUILDFORD BOROUGH COUNCIL,Off Street Parking,120400,Capita Business Services Ltd,21/06/2022,30066171,680.25,0,Postage,Managed And Outsourced Business Services Providers,Invoice,BACS,No,29/04/2022 00:00,2022,2,6004113574,B2111,Car Parks - Administration,D5003,Postage,HTP10,Off-Street Parking,HTP,Parking Services,HT,"Highways, Roads and Transport Services",H,"Highways, Roads and Transport Services"
GUILDFORD BOROUGH COUNCIL,Off Street Parking,120400,Capita Business Services Ltd,21/06/2022,30068803,1092,0,Materials,Managed And Outsourced Business Services Providers,Invoice,BACS,No,26/05/2022 00:00,2022,3,6004115440,B2111,Car Parks - Administration,D2003,Materials,HTP10,Off-Street Parking,HTP,Parking Services,HT,"Highways, Roads and Transport Services",H,"Highways, Roads and Transport Services"
GUILDFORD BOROUGH COUNCIL,On Street Parking,120400,Capita Business Services Ltd,21/06/2022,30068814,717,0,Equipment,Managed And Outsourced Business Services Providers,Invoice,BACS,No,26/05/2022 00:00,2022,3,6004115424,B2217,Guildford On-Street,D2001,Equipment,HTP00,On-Street Parking,HTP,Parking Services,HT,"Highways, Roads and Transport Services",H,"Highways, Roads and Transport Services"
GUILDFORD BOROUGH COUNCIL,Car Leasing Holding Code (Service),856090,Car Hire (Day Of Swansea) Ltd,10/05/2022,30045716,330.08,0,Car Leasing,"Car, Van And Truck Hire Companies",Invoice,BACS,No,01/04/2022 00:00,2022,1,INV00318147,G1131,Car Leasing Holding Code,C3002,Car Leasing,,,,,,,,
